Workbook

Sheet Orçamento
A2: ORÇAMENTO ONERADO
A3: OBJETO: | B3: Orçamento para contratação de empresa especializada para realização de serviços de levantamento cadastral multifinalitário e laudo de avaliação de bem imóvel
A4: LOCALIDADE: | B4: Área de atuação da Codevasf dividida em 8 grupos | E4: DATA BASE: | F4: 2024-10-01
A7: Grupo | B7: Descrição do Serviço | C7: Uni. | D7: Quant. | E7: Valor Unit c/BDI | F7: Total | I7: G1 | J7: =G15 -> 20674814
A8: 1 | B8: Cadastro para certificação INCRA | C8: ha. | D8: 1200 | E8: =Análise!F14 -> 593.825 | F8: =Tabela1[[#This Row],[Valor Unit c/BDI]]*Tabela1[[#This Row],[Quant.]] -> 712590 | I8: G2 | J8: =G23 -> 2555620.833
A9: 1 | B9: Cadastro urbano | C9: ha. | D9: 400 | E9: =Análise!M14 -> 3349.47 | F9: =Tabela1[[#This Row],[Valor Unit c/BDI]]*Tabela1[[#This Row],[Quant.]] -> 1339788 | I9: G3 | J9: =G31 -> 17640150.31
A10: 1 | B10: Cadastro Juridico | C10: uni. | D10: =4500+1200 -> 5700 | E10: =Análise!T14 -> 461.25 | F10: =Tabela1[[#This Row],[Valor Unit c/BDI]]*Tabela1[[#This Row],[Quant.]] -> 2629125 | I10: G4 | J10: =G39 -> 4435152.967
A11: 1 | B11: Cadastro Agrícola | C11: uni. | D11: 1200 | E11: =Análise!AA14 -> 339.25 | F11: =Tabela1[[#This Row],[Valor Unit c/BDI]]*Tabela1[[#This Row],[Quant.]] -> 407100 | I11: G5 | J11: =G47 -> 5361128.4
A12: 1 | B12: Cadastro Socioeconomico | C12: uni. | D12: 1600 | E12: =Análise!AH14 -> 327.985 | F12: =Tabela1[[#This Row],[Valor Unit c/BDI]]*Tabela1[[#This Row],[Quant.]] -> 524776 | I12: G6 | J12: =G55 -> 4715501
A13: 1 | B13: Avaliação de Imóveis | C13: uni. | D13: 1200 | E13: =Análise!AO14 -> 1250 | F13: =Tabela1[[#This Row],[Valor Unit c/BDI]]*Tabela1[[#This Row],[Quant.]] -> 1500000 | I13: G7 | J13: =G63 -> 4091399.958
A14: 1 | B14: Levantamento Planimétrico | C14: ha. | D14: 2200 | E14: =Análise!AV14 -> 267.925 | F14: =Tabela1[[#This Row],[Valor Unit c/BDI]]*Tabela1[[#This Row],[Quant.]] -> 589435 | G14: Total G1 | I14: G8 | J14: =G71 -> 6115972.45
A15: 1 | B15: Levantamento Planialtimétrico | C15: ha. | D15: 470000 | E15: =Análise!BC14 -> 27.6 | F15: =Tabela1[[#This Row],[Valor Unit c/BDI]]*Tabela1[[#This Row],[Quant.]] -> 12972000 | G15: =SUM(F8:F15) -> 20674814 | I15: Total | J15: =SUM(J7:J14) -> 65589739.92
A16: 2 | B16: Cadastro para certificação INCRA | C16: ha. | D16: 200 | E16: =Análise!F22 -> 1149.61 | F16: =Tabela1[[#This Row],[Valor Unit c/BDI]]*Tabela1[[#This Row],[Quant.]] -> 229922
A17: 2 | B17: Cadastro urbano | C17: ha. | D17: 200 | E17: =Análise!M22 -> 3943.666667 | F17: =Tabela1[[#This Row],[Valor Unit c/BDI]]*Tabela1[[#This Row],[Quant.]] -> 788733.3333
A18: 2 | B18: Cadastro Juridico | C18: uni. | D18: 200 | E18: =Análise!T22 -> 507.75 | F18: =Tabela1[[#This Row],[Valor Unit c/BDI]]*Tabela1[[#This Row],[Quant.]] -> 101550
A19: 2 | B19: Cadastro Agrícola | C19: uni. | D19: 200 | E19: =Análise!AA22 -> 410.9 | F19: =Tabela1[[#This Row],[Valor Unit c/BDI]]*Tabela1[[#This Row],[Quant.]] -> 82180
A20: 2 | B20: Cadastro Socioeconomico | C20: uni. | D20: 200 | E20: =Análise!AH22 -> 352.175 | F20: =Tabela1[[#This Row],[Valor Unit c/BDI]]*Tabela1[[#This Row],[Quant.]] -> 70435
A21: 2 | B21: Avaliação de Imóveis | C21: uni. | D21: 200 | E21: =Análise!AO22 -> 1500 | F21: =Tabela1[[#This Row],[Valor Unit c/BDI]]*Tabela1[[#This Row],[Quant.]] -> 300000
A22: 2 | B22: Levantamento Planimétrico | C22: ha. | D22: 2200 | E22: =Análise!AV22 -> 209.04 | F22: =Tabela1[[#This Row],[Valor Unit c/BDI]]*Tabela1[[#This Row],[Quant.]] -> 459888 | G22: Total G2
A23: 2 | B23: Levantamento Planialtimétrico | C23: ha. | D23: 2200 | E23: =Análise!BC22 -> 237.6875 | F23: =Tabela1[[#This Row],[Valor Unit c/BDI]]*Tabela1[[#This Row],[Quant.]] -> 522912.5 | G23: =SUM(F16:F23) -> 2555620.833
A24: 3 | B24: Cadastro para certificação INCRA | C24: ha. | D24: 1875 | E24: =Análise!F30 -> 861.421 | F24: =Tabela1[[#This Row],[Valor Unit c/BDI]]*Tabela1[[#This Row],[Quant.]] -> 1615164.375
A25: 3 | B25: Cadastro urbano | C25: ha. | D25: 1875 | E25: =Análise!M30 -> 3604.5 | F25: =Tabela1[[#This Row],[Valor Unit c/BDI]]*Tabela1[[#This Row],[Quant.]] -> 6758437.5
A26: 3 | B26: Cadastro Juridico | C26: uni. | D26: 1875 | E26: =Análise!T30 -> 501.65 | F26: =Tabela1[[#This Row],[Valor Unit c/BDI]]*Tabela1[[#This Row],[Quant.]] -> 940593.75
A27: 3 | B27: Cadastro Agrícola | C27: uni. | D27: 1875 | E27: =Análise!AA30 -> 890.49 | F27: =Tabela1[[#This Row],[Valor Unit c/BDI]]*Tabela1[[#This Row],[Quant.]] -> 1669668.75
A28: 3 | B28: Cadastro Socioeconomico | C28: uni. | D28: 1875 | E28: =Análise!AH30 -> 311.8925 | F28: =Tabela1[[#This Row],[Valor Unit c/BDI]]*Tabela1[[#This Row],[Quant.]] -> 584798.4375
A29: 3 | B29: Avaliação de Imóveis | C29: uni. | D29: 1775 | E29: =Análise!AO30 -> 1432.5 | F29: =Tabela1[[#This Row],[Valor Unit c/BDI]]*Tabela1[[#This Row],[Quant.]] -> 2542687.5
A30: 3 | B30: Levantamento Planimétrico | C30: ha. | D30: 32000 | E30: =Análise!AV30 -> 82.15 | F30: =Tabela1[[#This Row],[Valor Unit c/BDI]]*Tabela1[[#This Row],[Quant.]] -> 2628800 | G30: Total G3
A31: 3 | B31: Levantamento Planialtimétrico | C31: ha. | D31: 32000 | E31: =Análise!BC30 -> 28.125 | F31: =Tabela1[[#This Row],[Valor Unit c/BDI]]*Tabela1[[#This Row],[Quant.]] -> 900000 | G31: =SUM(F24:F31) -> 17640150.31
A32: 4 | B32: Cadastro para certificação INCRA | C32: ha. | D32: 500 | E32: =Análise!F38 -> 1160.956 | F32: =Tabela1[[#This Row],[Valor Unit c/BDI]]*Tabela1[[#This Row],[Quant.]] -> 580478
A33: 4 | B33: Cadastro urbano | C33: ha. | D33: 500 | E33: =Análise!M38 -> 3560.333333 | F33: =Tabela1[[#This Row],[Valor Unit c/BDI]]*Tabela1[[#This Row],[Quant.]] -> 1780166.667
A34: 4 | B34: Cadastro Juridico | C34: uni. | D34: 500 | E34: =Análise!T38 -> 516.9 | F34: =Tabela1[[#This Row],[Valor Unit c/BDI]]*Tabela1[[#This Row],[Quant.]] -> 258450
A35: 4 | B35: Cadastro Agrícola | C35: uni. | D35: 500 | E35: =Análise!AA38 -> 416.39 | F35: =Tabela1[[#This Row],[Valor Unit c/BDI]]*Tabela1[[#This Row],[Quant.]] -> 208195
A36: 4 | B36: Cadastro Socioeconomico | C36: uni. | D36: 500 | E36: =Análise!AH38 -> 354.005 | F36: =Tabela1[[#This Row],[Valor Unit c/BDI]]*Tabela1[[#This Row],[Quant.]] -> 177002.5
A37: 4 | B37: Avaliação de Imóveis | C37: uni. | D37: 500 | E37: =Análise!AO38 -> 1500 | F37: =Tabela1[[#This Row],[Valor Unit c/BDI]]*Tabela1[[#This Row],[Quant.]] -> 750000
A38: 4 | B38: Levantamento Planimétrico | C38: ha. | D38: 1200 | E38: =Análise!AV38 -> 212.334 | F38: =Tabela1[[#This Row],[Valor Unit c/BDI]]*Tabela1[[#This Row],[Quant.]] -> 254800.8 | G38: Total G4
A39: 4 | B39: Levantamento Planialtimétrico | C39: ha. | D39: 1200 | E39: =Análise!BC38 -> 355.05 | F39: =Tabela1[[#This Row],[Valor Unit c/BDI]]*Tabela1[[#This Row],[Quant.]] -> 426060 | G39: =SUM(F32:F39) -> 4435152.967
A40: 5 | B40: Cadastro para certificação INCRA | C40: ha. | D40: 600 | E40: =Análise!F46 -> 1176.084 | F40: =Tabela1[[#This Row],[Valor Unit c/BDI]]*Tabela1[[#This Row],[Quant.]] -> 705650.4
A41: 5 | B41: Cadastro urbano | C41: ha. | D41: 600 | E41: =Análise!M46 -> 3943.666667 | F41: =Tabela1[[#This Row],[Valor Unit c/BDI]]*Tabela1[[#This Row],[Quant.]] -> 2366200
A42: 5 | B42: Cadastro Juridico | C42: uni. | D42: 600 | E42: =Análise!T46 -> 529.1 | F42: =Tabela1[[#This Row],[Valor Unit c/BDI]]*Tabela1[[#This Row],[Quant.]] -> 317460
A43: 5 | B43: Cadastro Agrícola | C43: uni. | D43: 600 | E43: =Análise!AA46 -> 423.71 | F43: =Tabela1[[#This Row],[Valor Unit c/BDI]]*Tabela1[[#This Row],[Quant.]] -> 254226
A44: 5 | B44: Cadastro Socioeconomico | C44: uni. | D44: 600 | E44: =Análise!AH46 -> 356.445 | F44: =Tabela1[[#This Row],[Valor Unit c/BDI]]*Tabela1[[#This Row],[Quant.]] -> 213867
A45: 5 | B45: Avaliação de Imóveis | C45: uni. | D45: 600 | E45: =Análise!AO46 -> 1500 | F45: =Tabela1[[#This Row],[Valor Unit c/BDI]]*Tabela1[[#This Row],[Quant.]] -> 900000
A46: 5 | B46: Levantamento Planimétrico | C46: ha. | D46: 500 | E46: =Análise!AV46 -> 681.45 | F46: =Tabela1[[#This Row],[Valor Unit c/BDI]]*Tabela1[[#This Row],[Quant.]] -> 340725 | G46: Total G5
A47: 5 | B47: Levantamento Planialtimétrico | C47: ha. | D47: 500 | E47: =Análise!BC46 -> 526 | F47: =Tabela1[[#This Row],[Valor Unit c/BDI]]*Tabela1[[#This Row],[Quant.]] -> 263000 | G47: =SUM(F40:F47) -> 5361128.4
A48: 6 | B48: Cadastro para certificação INCRA | C48: ha. | D48: 600 | E48: =Análise!F54 -> 1105.345 | F48: =Tabela1[[#This Row],[Valor Unit c/BDI]]*Tabela1[[#This Row],[Quant.]] -> 663207
A49: 6 | B49: Cadastro urbano | C49: ha. | D49: 600 | E49: =Análise!M54 -> 3486.803333 | F49: =Tabela1[[#This Row],[Valor Unit c/BDI]]*Tabela1[[#This Row],[Quant.]] -> 2092082
A50: 6 | B50: Cadastro Juridico | C50: uni. | D50: 600 | E50: =Análise!T54 -> 507.75 | F50: =Tabela1[[#This Row],[Valor Unit c/BDI]]*Tabela1[[#This Row],[Quant.]] -> 304650
A51: 6 | B51: Cadastro Agrícola | C51: uni. | D51: 600 | E51: =Análise!AA54 -> 410.9 | F51: =Tabela1[[#This Row],[Valor Unit c/BDI]]*Tabela1[[#This Row],[Quant.]] -> 246540
A52: 6 | B52: Cadastro Socioeconomico | C52: uni. | D52: 600 | E52: =Análise!AH54 -> 346.66 | F52: =Tabela1[[#This Row],[Valor Unit c/BDI]]*Tabela1[[#This Row],[Quant.]] -> 207996
A53: 6 | B53: Avaliação de Imóveis | C53: uni. | D53: 600 | E53: =Análise!AO54 -> 1643.38 | F53: =Tabela1[[#This Row],[Valor Unit c/BDI]]*Tabela1[[#This Row],[Quant.]] -> 986028
A54: 6 | B54: Levantamento Planimétrico | C54: ha. | D54: 300 | E54: =Análise!AV54 -> 209.04 | F54: =Tabela1[[#This Row],[Valor Unit c/BDI]]*Tabela1[[#This Row],[Quant.]] -> 62712 | G54: Total G6
A55: 6 | B55: Levantamento Planialtimétrico | C55: ha. | D55: 300 | E55: =Análise!BC54 -> 507.62 | F55: =Tabela1[[#This Row],[Valor Unit c/BDI]]*Tabela1[[#This Row],[Quant.]] -> 152286 | G55: =SUM(F48:F55) -> 4715501
A56: 7 | B56: Cadastro para certificação INCRA | C56: ha. | D56: 200 | E56: =Análise!F62 -> 1313.84 | F56: =Tabela1[[#This Row],[Valor Unit c/BDI]]*Tabela1[[#This Row],[Quant.]] -> 262768
A57: 7 | B57: Cadastro urbano | C57: ha. | D57: 500 | E57: =Análise!M62 -> 4285.71 | F57: =Tabela1[[#This Row],[Valor Unit c/BDI]]*Tabela1[[#This Row],[Quant.]] -> 2142855
A58: 7 | B58: Cadastro Juridico | C58: uni. | D58: 550 | E58: =Análise!T62 -> 553.5 | F58: =Tabela1[[#This Row],[Valor Unit c/BDI]]*Tabela1[[#This Row],[Quant.]] -> 304425
A59: 7 | B59: Cadastro Agrícola | C59: uni. | D59: 200 | E59: =Análise!AA62 -> 407.1 | F59: =Tabela1[[#This Row],[Valor Unit c/BDI]]*Tabela1[[#This Row],[Quant.]] -> 81420
A60: 7 | B60: Cadastro Socioeconomico | C60: uni. | D60: 550 | E60: =Análise!AH62 -> 374.7175 | F60: =Tabela1[[#This Row],[Valor Unit c/BDI]]*Tabela1[[#This Row],[Quant.]] -> 206094.625
A61: 7 | B61: Avaliação de Imóveis | C61: uni. | D61: 550 | E61: =Análise!AO62 -> 1508.263333 | F61: =Tabela1[[#This Row],[Valor Unit c/BDI]]*Tabela1[[#This Row],[Quant.]] -> 829544.8333
A62: 7 | B62: Levantamento Planimétrico | C62: ha. | D62: 300 | E62: =Análise!AV62 -> 310.33 | F62: =Tabela1[[#This Row],[Valor Unit c/BDI]]*Tabela1[[#This Row],[Quant.]] -> 93099 | G62: Total G7
A63: 7 | B63: Levantamento Planialtimétrico | C63: ha. | D63: 300 | E63: =Análise!BC62 -> 570.645 | F63: =Tabela1[[#This Row],[Valor Unit c/BDI]]*Tabela1[[#This Row],[Quant.]] -> 171193.5 | G63: =SUM(F56:F63) -> 4091399.958
A64: 8 | B64: Cadastro para certificação INCRA | C64: ha. | D64: 730 | E64: =Análise!F70 -> 1143.165 | F64: =Tabela1[[#This Row],[Valor Unit c/BDI]]*Tabela1[[#This Row],[Quant.]] -> 834510.45
A65: 8 | B65: Cadastro urbano | C65: ha. | D65: 600 | E65: =Análise!M70 -> 3529.41 | F65: =Tabela1[[#This Row],[Valor Unit c/BDI]]*Tabela1[[#This Row],[Quant.]] -> 2117646
A66: 8 | B66: Cadastro Juridico | C66: uni. | D66: 760 | E66: =Análise!T70 -> 538.25 | F66: =Tabela1[[#This Row],[Valor Unit c/BDI]]*Tabela1[[#This Row],[Quant.]] -> 409070
A67: 8 | B67: Cadastro Agrícola | C67: uni. | D67: 730 | E67: =Análise!AA70 -> 429.2 | F67: =Tabela1[[#This Row],[Valor Unit c/BDI]]*Tabela1[[#This Row],[Quant.]] -> 313316
A68: 8 | B68: Cadastro Socioeconomico | C68: uni. | D68: 1330 | E68: =Análise!AH70 -> 352.76 | F68: =Tabela1[[#This Row],[Valor Unit c/BDI]]*Tabela1[[#This Row],[Quant.]] -> 469170.8
A69: 8 | B69: Avaliação de Imóveis | C69: uni. | D69: 760 | E69: =Análise!AO70 -> 1643.38 | F69: =Tabela1[[#This Row],[Valor Unit c/BDI]]*Tabela1[[#This Row],[Quant.]] -> 1248968.8
A70: 8 | B70: Levantamento Planimétrico | C70: ha. | D70: 2520 | E70: =Análise!AV70 -> 220.02 | F70: =Tabela1[[#This Row],[Valor Unit c/BDI]]*Tabela1[[#This Row],[Quant.]] -> 554450.4 | G70: Total G8
A71: 8 | B71: Levantamento Planialtimétrico | C71: ha. | D71: 2520 | E71: =Análise!BC70 -> 67 | F71: =Tabela1[[#This Row],[Valor Unit c/BDI]]*Tabela1[[#This Row],[Quant.]] -> 168840 | G71: =SUM(F64:F71) -> 6115972.45
A72: TOTAL COM BDI: | E72: =SUM(Tabela1[Total]) -> 65589739.92

Sheet Análise
A7: Cadastro para certificação INCRA | H7: Cadastro Urbano | O7: Cadastro Juridico | V7: Cadastro Agrícola | AC7: Cadastro Socioeconomico | AJ7: Avaliação de Imóveis | AQ7: Levantamento Planimétrico | AX7: Levantamento Planialtimétrico
A8: Grupo 1 | B8: TerraGraph | C8: Engefoto | D8: Topocart | E8: Hiparc | F8: Aerosat | H8: Grupo 1 | I8: TerraGraph | J8: Engefoto | K8: Topocart | L8: Hiparc | M8: Aerosat | O8: Grupo 1 | P8: TerraGraph | Q8: Engefoto | R8: Topocart | S8: Hiparc | T8: Aerosat | V8: Grupo 1 | W8: TerraGraph | X8: Engefoto | Y8: Topocart | Z8: Hiparc | AA8: Aerosat | AC8: Grupo 1 | AD8: TerraGraph | AE8: Engefoto | AF8: Topocart | AG8: Hiparc | AH8: Aerosat | AJ8: Grupo 1 | AK8: TerraGraph | AL8: Engefoto | AM8: Topocart | AN8: Hiparc | AO8: Aerosat | AQ8: Grupo 1 | AR8: TerraGraph | AS8: Engefoto | AT8: Topocart | AU8: Hiparc | AV8: Aerosat | AX8: Grupo 1 | AY8: TerraGraph | AZ8: Engefoto | BA8: Topocart | BB8: Hiparc | BC8: Aerosat
A9: Valor Unit c/ BDI | B9: =TerraGraph!G8 -> 431.25 | C9: =Engefoto!G8 -> 6305 | D9: =Topocart!G8 -> 756.4 | E9: =Hiparc!G8 -> 1416.47 | F9: =Aerosat!G8 -> 62.5 | H9: Valor Unit c/ BDI | I9: =TerraGraph!G9 -> 2645 | J9: =Engefoto!G9 -> 3874 | K9: =Topocart!G9 -> 829.6 | L9: =Hiparc!G9 -> 3529.41 | M9: =Aerosat!G9 -> 250 | O9: Valor Unit c/ BDI | P9: =TerraGraph!G10 -> 2300 | Q9: =Engefoto!G10 -> 1300 | R9: =Topocart!G10 -> 610 | S9: =Hiparc!G10 -> 147.06 | T9: =Aerosat!G10 -> 312.5 | V9: Valor Unit c/ BDI | W9: =TerraGraph!G11 -> 3967.5 | X9: =Engefoto!G11 -> 1404 | Y9: =Topocart!G11 -> 366 | Z9: =Hiparc!G11 -> 2647.06 | AA9: =Aerosat!G11 -> 312.5 | AC9: Valor Unit c/ BDI | AD9: =TerraGraph!G12 -> 402.5 | AE9: =Engefoto!G12 -> 546.65 | AF9: =Topocart!G12 -> 244 | AG9: =Hiparc!G12 -> 352.94 | AH9: =Aerosat!G12 -> 312.5 | AJ9: Valor Unit c/ BDI | AK9: =TerraGraph!G13 -> 345 | AL9: =Engefoto!G13 -> 1235 | AM9: =Topocart!G13 -> 4270 | AN9: =Hiparc!G13 -> 1411.76 | AO9: =Aerosat!G13 -> 1250 | AQ9: Valor Unit c/ BDI | AR9: =TerraGraph!G14 -> 316.25 | AS9: =Engefoto!G14 -> 1050.4 | AT9: =Topocart!G14 -> 219.6 | AU9: =Hiparc!G14 -> 58.82 | AV9: =Aerosat!G14 -> 125 | AX9: Valor Unit c/ BDI | AY9: =TerraGraph!G15 -> 111.55 | AZ9: =Engefoto!G15 -> 50.7 | BA9: =Topocart!G15 -> 42.7 | BB9: =Hiparc!G15 -> 11.76 | BC9: =Aerosat!G15 -> 12.5
A10: Distância da Média | B10: =ABS(B9-F11) -> 1363.074 | C10: =ABS(C9-$F$11) -> 4510.676 | D10: =ABS(D9-$F$11) -> 1037.924 | E10: 377.854 | F10: 1731.824 | H10: Distância da Média | I10: =ABS(I9-M11) -> 419.398 | J10: =ABS(J9-$M$11) -> 1648.398 | K10: =ABS(K9-$M$11) -> 1396.002 | L10: 1303.808 | M10: 1975.602 | O10: Distância da Média | P10: =ABS(P9-T11) -> 1366.088 | Q10: =ABS(Q9-$T$11) -> 366.088 | R10: =ABS(R9-$T$11) -> 323.912 | S10: 786.852 | T10: 621.412 | V10: Distância da Média | W10: =ABS(W9-AA11) -> 2228.088 | X10: =ABS(X9-$AA$11) -> 335.412 | Y10: =ABS(Y9-$AA$11) -> 1373.412 | Z10: 907.648 | AA10: 1426.912 | AC10: Distância da Média | AD10: =ABS(AD9-AH11) -> 30.782 | AE10: =ABS(AE9-$AH$11) -> 174.932 | AF10: =ABS(AF9-$AH$11) -> 127.718 | AG10: 18.778 | AH10: 59.218 | AJ10: Distância da Média | AK10: =ABS(AK9-AO11) -> 1357.352 | AL10: =ABS(AL9-$AO$11) -> 467.352 | AM10: =ABS(AM9-$AO$11) -> 2567.648 | AN10: 290.592 | AO10: 452.352 | AQ10: Distância da Média | AR10: =ABS(AR9-AV11) -> 37.764 | AS10: =ABS(AS9-$AV$11) -> 696.386 | AT10: =ABS(AT9-$AV$11) -> 134.414 | AU10: 295.194 | AV10: 229.014 | AX10: Distância da Média | AY10: =ABS(AY9-BC11) -> 65.708 | AZ10: =ABS(AZ9-$BC$11) -> 4.858 | BA10: =ABS(BA9-$BC$11) -> 3.142 | BB10: 34.082 | BC10: 33.342
E11: Média | F11: =AVERAGE(B9:F9) -> 1794.324 | L11: Média | M11: =AVERAGE(I9:M9) -> 2225.602 | S11: Média | T11: =AVERAGE(P9:T9) -> 933.912 | Z11: Média | AA11: =AVERAGE(W9:AA9) -> 1739.412 | AG11: Média | AH11: =AVERAGE(AD9:AH9) -> 371.718 | AN11: Média | AO11: =AVERAGE(AK9:AO9) -> 1702.352 | AU11: Média | AV11: =AVERAGE(AR9:AV9) -> 354.014 | BB11: Média | BC11: =AVERAGE(AY9:BC9) -> 45.842
E12: Mediana | F12: =MEDIAN(B9:F9) -> 756.4 | L12: Mediana | M12: =MEDIAN(I9:M9) -> 2645 | S12: Mediana | T12: =MEDIAN(P9:T9) -> 610 | Z12: Mediana | AA12: =MEDIAN(W9:AA9) -> 1404 | AG12: Mediana | AH12: =MEDIAN(AD9:AH9) -> 352.94 | AN12: Mediana | AO12: =MEDIAN(AK9:AO9) -> 1250 | AU12: Mediana | AV12: =MEDIAN(AR9:AV9) -> 219.6 | BB12: Mediana | BC12: =MEDIAN(AY9:BC9) -> 42.7
E13: CV | F13: =STDEVA(B9,D9)/AVERAGE(B9,D9) -> 0.3871776532 | L13: CV | M13: =STDEVA(J9,L9,I9)/AVERAGE(J9,L9,I9) -> 0.1892690915 | S13: CV | T13: =STDEVA(R9,T9)/AVERAGE(R9,T9) -> 0.4560742925 | Z13: CV | AA13: =STDEVA(Y9,AA9)/AVERAGE(Y9,AA9) -> 0.1115113126 | AG13: CV | AH13: =STDEVA(AF9:AH9,AD9)/AVERAGE(AF9:AH9,AD9) -> 0.2042890314 | AN13: CV | AO13: =STDEVA(AN9,AO9,AL9)/AVERAGE(AN9,AO9,AL9) -> 0.07545475419 | AU13: CV | AV13: =STDEVA(AT9,AR9)/AVERAGE(AT9,AR9) -> 0.255078363 | BB13: CV | BC13: =STDEVA(AZ9:BC9)/AVERAGE(AZ9:BC9) -> 0.6876323065
C14: Valor admitido: mediana do agrupamento CV | F14: =MEDIAN(B9,D9) -> 593.825 | J14: Valor admitido: média do agrupamento CV | M14: =AVERAGE(J9,L9,I9) -> 3349.47 | Q14: Valor admitido: mediana do agrupamento CV | T14: =MEDIAN(R9,T9) -> 461.25 | X14: Valor admitido: mediana do agrupamento CV | AA14: =MEDIAN(Y9,AA9) -> 339.25 | AE14: Valor admitido: média do agrupamento CV | AH14: =AVERAGE(AF9:AH9,AD9) -> 327.985 | AL14: Valor admitido: mediana do agrupamento CV | AO14: =MEDIAN(AL9,AN9,AO9) -> 1250 | AS14: Valor admitido: mediana do agrupamento CV | AV14: =AVERAGE(AT9,AR9) -> 267.925 | AZ14: Valor admitido: mediana do agrupamento CV | BC14: =MEDIAN(AZ9:BC9) -> 27.6
A16: Grupo 2 | B16: TerraGraph | C16: Engefoto | D16: Topocart | E16: Hiparc | F16: Aerosat | H16: Grupo 2 | I16: TerraGraph | J16: Engefoto | K16: Topocart | L16: Hiparc | M16: Aerosat | O16: Grupo 2 | P16: TerraGraph | Q16: Engefoto | R16: Topocart | S16: Hiparc | T16: Aerosat | V16: Grupo 2 | W16: TerraGraph | X16: Engefoto | Y16: Topocart | Z16: Hiparc | AA16: Aerosat | AC16: Grupo 2 | AD16: TerraGraph | AE16: Engefoto | AF16: Topocart | AG16: Hiparc | AH16: Aerosat | AJ16: Grupo 2 | AK16: TerraGraph | AL16: Engefoto | AM16: Topocart | AN16: Hiparc | AO16: Aerosat | AQ16: Grupo 2 | AR16: TerraGraph | AS16: Engefoto | AT16: Topocart | AU16: Hiparc | AV16: Aerosat | AX16: Grupo 2 | AY16: TerraGraph | AZ16: Engefoto | BA16: Topocart | BB16: Hiparc | BC16: Aerosat
A17: Valor Unit c/ BDI | B17: =TerraGraph!G16 -> 362.25 | C17: =Engefoto!G16 -> 6487 | D17: =Topocart!G16 -> 794.22 | E17: =Hiparc!G16 -> 1505 | F17: =Aerosat!G16 -> 125 | H17: Valor Unit c/ BDI | I17: =TerraGraph!G17 -> 4025 | J17: =Engefoto!G17 -> 4056 | K17: =Topocart!G17 -> 871.08 | L17: =Hiparc!G17 -> 3750 | M17: =Aerosat!G17 -> 437.5 | O17: Valor Unit c/ BDI | P17: =TerraGraph!G18 -> 2587.5 | Q17: =Engefoto!G18 -> 1365 | R17: =Topocart!G18 -> 640.5 | S17: =Hiparc!G18 -> 156.25 | T17: =Aerosat!G18 -> 375 | V17: Valor Unit c/ BDI | W17: =TerraGraph!G19 -> 4025 | X17: =Engefoto!G19 -> 247 | Y17: =Topocart!G19 -> 384.3 | Z17: =Hiparc!G19 -> 2812.5 | AA17: =Aerosat!G19 -> 437.5 | AC17: Valor Unit c/ BDI | AD17: =TerraGraph!G20 -> 402.5 | AE17: =Engefoto!G20 -> 565.5 | AF17: =Topocart!G20 -> 256.2 | AG17: =Hiparc!G20 -> 375 | AH17: =Aerosat!G20 -> 375 | AJ17: Valor Unit c/ BDI | AK17: =TerraGraph!G21 -> 2875 | AL17: =Engefoto!G21 -> 1248 | AM17: =Topocart!G21 -> 4483.5 | AN17: =Hiparc!G21 -> 1500 | AO17: =Aerosat!G21 -> 1875 | AQ17: Valor Unit c/ BDI | AR17: =TerraGraph!G22 -> 316.25 | AS17: =Engefoto!G22 -> 1050.4 | AT17: =Topocart!G22 -> 230.58 | AU17: =Hiparc!G22 -> 62.5 | AV17: =Aerosat!G22 -> 187.5 | AX17: Valor Unit c/ BDI | AY17: =TerraGraph!G23 -> 362.25 | AZ17: =Engefoto!G23 -> 97.5 | BA17: =Topocart!G23 -> 366 | BB17: =Hiparc!G23 -> 125 | BC17: =Aerosat!G23 -> 62.5
A18: Distância da Média | B18: =ABS(B17-F19) -> 1492.444 | C18: =ABS(C17-$F$19) -> 4632.306 | D18: =ABS(D17-$F$19) -> 1060.474 | E18: 349.694 | F18: 1729.694 | H18: Distância da Média | I18: =ABS(I17-M19) -> 1397.084 | J18: =ABS(J17-$M$19) -> 1428.084 | K18: =ABS(K17-$M$19) -> 1756.836 | L18: 1122.084 | M18: 2190.416 | O18: Distância da Média | P18: =ABS(P17-T19) -> 1562.65 | Q18: =ABS(Q17-$T$19) -> 340.15 | R18: =ABS(R17-$T$19) -> 384.35 | S18: 868.6 | T18: 649.85 | V18: Distância da Média | W18: =ABS(W17-AA19) -> 2443.74 | X18: =ABS(X17-$AA$19) -> 1334.26 | Y18: =ABS(Y17-$AA$19) -> 1196.96 | Z18: 1231.24 | AA18: 1143.76 | AC18: Distância da Média | AD18: =ABS(AD17-AH19) -> 7.66 | AE18: =ABS(AE17-$AH$19) -> 170.66 | AF18: =ABS(AF17-$AH$19) -> 138.64 | AG18: 19.84 | AH18: 19.84 | AJ18: Distância da Média | AK18: =ABS(AK17-AO19) -> 478.7 | AL18: =ABS(AL17-$AO$19) -> 1148.3 | AM18: =ABS(AM17-$AO$19) -> 2087.2 | AN18: 896.3 | AO18: 521.3 | AQ18: Distância da Média | AR18: =ABS(AR17-AV19) -> 53.196 | AS18: =ABS(AS17-$AV$19) -> 680.954 | AT18: =ABS(AT17-$AV$19) -> 138.866 | AU18: 306.946 | AV18: 181.946 | AX18: Distância da Média | AY18: =ABS(AY17-BC19) -> 159.6 | AZ18: =ABS(AZ17-$BC$19) -> 105.15 | BA18: =ABS(BA17-$BC$19) -> 163.35 | BB18: 77.65 | BC18: 140.15
E19: Média | F19: =AVERAGE(B17:F17) -> 1854.694 | L19: Média | M19: =AVERAGE(I17:M17) -> 2627.916 | S19: Média | T19: =AVERAGE(P17:T17) -> 1024.85 | Z19: Média | AA19: =AVERAGE(W17:AA17) -> 1581.26 | AG19: Média | AH19: =AVERAGE(AD17:AH17) -> 394.84 | AN19: Média | AO19: =AVERAGE(AK17:AO17) -> 2396.3 | AU19: Média | AV19: =AVERAGE(AR17:AV17) -> 369.446 | BB19: Média | BC19: =AVERAGE(AY17:BC17) -> 202.65
E20: Mediana | F20: =MEDIAN(B17:F17) -> 794.22 | L20: Mediana | M20: =MEDIAN(I17:M17) -> 3750 | S20: Mediana | T20: =MEDIAN(P17:T17) -> 640.5 | Z20: Mediana | AA20: =MEDIAN(W17:AA17) -> 437.5 | AG20: Mediana | AH20: =MEDIAN(AD17:AH17) -> 375 | AN20: Mediana | AO20: =MEDIAN(AK17:AO17) -> 1875 | AU20: Mediana | AV20: =MEDIAN(AR17:AV17) -> 230.58 | BB20: Mediana | BC20: =MEDIAN(AY17:BC17) -> 125
E21: CV | F21: =STDEVA(D17:E17)/AVERAGE(D17:E17) -> 0.4371894451 | L21: CV | M21: =STDEVA(J17,L17,I17)/AVERAGE(J17,L17,I17) -> 0.04271024076 | S21: CV | T21: =STDEVA(R17,T17)/AVERAGE(R17,T17) -> 0.3697426891 | Z21: CV | AA21: =STDEVA(Y17,AA17)/AVERAGE(Y17,AA17) -> 0.09155045208 | AG21: CV | AH21: =STDEVA(AF17:AH17,AD17)/AVERAGE(AF17:AH17,AD17) -> 0.1853720492 | AN21: CV | AO21: =STDEVA(AN17,AO17,AL17)/AVERAGE(AN17,AO17,AL17) -> 0.2047400118 | AU21: CV | AV21: =STDEVA(AT17,AV17)/AVERAGE(AT17,AV17) -> 0.1457240726 | BB21: CV | BC21: =STDEVA(AY17:BB17)/AVERAGE(AY17:BB17) -> 0.6160882377
C22: Valor admitido: mediana do agrupamento CV | F22: =MEDIAN(D17:E17) -> 1149.61 | J22: Valor admitido: média do agrupamento CV | M22: =AVERAGE(J17,L17,I17) -> 3943.666667 | Q22: Valor admitido: mediana do agrupamento CV | T22: =MEDIAN(R17,T17) -> 507.75 | X22: Valor admitido: mediana do agrupamento CV | AA22: =MEDIAN(Y17,AA17) -> 410.9 | AE22: Valor admitido: média do agrupamento CV | AH22: =AVERAGE(AF17:AH17,AD17) -> 352.175 | AL22: Valor admitido: mediana do agrupamento CV | AO22: =MEDIAN(AL17,AN17,AO17) -> 1500 | AS22: Valor admitido: mediana do agrupamento CV | AV22: =MEDIAN(AT17,AV17) -> 209.04 | AZ22: Valor admitido: média do agrupamento CV | BC22: =AVERAGE(AY17:BB17) -> 237.6875
A24: Grupo 3 | B24: TerraGraph | C24: Engefoto | D24: Topocart | E24: Hiparc | F24: Aerosat | H24: Grupo 3 | I24: TerraGraph | J24: Engefoto | K24: Topocart | L24: Hiparc | M24: Aerosat | O24: Grupo 3 | P24: TerraGraph | Q24: Engefoto | R24: Topocart | S24: Hiparc | T24: Aerosat | V24: Grupo 3 | W24: TerraGraph | X24: Engefoto | Y24: Topocart | Z24: Hiparc | AA24: Aerosat | AC24: Grupo 3 | AD24: TerraGraph | AE24: Engefoto | AF24: Topocart | AG24: Hiparc | AH24: Aerosat | AJ24: Grupo 3 | AK24: TerraGraph | AL24: Engefoto | AM24: Topocart | AN24: Hiparc | AO24: Aerosat | AQ24: Grupo 3 | AR24: TerraGraph | AS24: Engefoto | AT24: Topocart | AU24: Hiparc | AV24: Aerosat | AX24: Grupo 3 | AY24: TerraGraph | AZ24: Engefoto | BA24: Topocart | BB24: Hiparc | BC24: Aerosat
A25: Valor Unit c/ BDI | B25: =TerraGraph!G24 -> 362.25 | C25: =Engefoto!G24 -> 6305 | D25: =Topocart!G24 -> 779.092 | E25: =Hiparc!G24 -> 943.75 | F25: =Aerosat!G24 -> 75 | H25: Valor Unit c/ BDI | I25: =TerraGraph!G25 -> 3335 | J25: =Engefoto!G25 -> 3874 | K25: =Topocart!G25 -> 854.488 | L25: =Hiparc!G25 -> 1562.5 | M25: =Aerosat!G25 -> 281.25 | O25: Valor Unit c/ BDI | P25: =TerraGraph!G26 -> 2587.5 | Q25: =Engefoto!G26 -> 1300 | R25: =Topocart!G26 -> 628.3 | S25: =Hiparc!G26 -> 93.75 | T25: =Aerosat!G26 -> 375 | V25: Valor Unit c/ BDI | W25: =TerraGraph!G27 -> 4571.25 | X25: =Engefoto!G27 -> 1404 | Y25: =Topocart!G27 -> 376.98 | Z25: =Hiparc!G27 -> 1437.5 | AA25: =Aerosat!G27 -> 375 | AC25: Valor Unit c/ BDI | AD25: =TerraGraph!G28 -> 402.5 | AE25: =Engefoto!G28 -> 546.65 | AF25: =Topocart!G28 -> 251.32 | AG25: =Hiparc!G28 -> 218.75 | AH25: =Aerosat!G28 -> 375 | AJ25: Valor Unit c/ BDI | AK25: =TerraGraph!G29 -> 2875 | AL25: =Engefoto!G29 -> 1235 | AM25: =Topocart!G29 -> 4398.1 | AN25: =Hiparc!G29 -> 1500 | AO25: =Aerosat!G29 -> 1562.5 | AQ25: Valor Unit c/ BDI | AR25: =TerraGraph!G30 -> 66.7 | AS25: =Engefoto!G30 -> 1050.4 | AT25: =Topocart!G30 -> 97.6 | AU25: =Hiparc!G30 -> 12.5 | AV25: =Aerosat!G30 -> 187.5 | AX25: Valor Unit c/ BDI | AY25: =TerraGraph!G31 -> 146.05 | AZ25: =Engefoto!G31 -> 97.5 | BA25: =Topocart!G31 -> 134.2 | BB25: =Hiparc!G31 -> 25 | BC25: =Aerosat!G31 -> 31.25
A26: Distância da Média | B26: =ABS(B25-F27) -> 1330.7684 | C26: =ABS(C25-$F$27) -> 4611.9816 | D26: =ABS(D25-$F$27) -> 913.9264 | E26: 749.2684 | F26: 1618.0184 | H26: Distância da Média | I26: =ABS(I25-M27) -> 1353.5524 | J26: =ABS(J25-$M$27) -> 1892.5524 | K26: =ABS(K25-$M$27) -> 1126.9596 | L26: 418.9476 | M26: 1700.1976 | O26: Distância da Média | P26: =ABS(P25-T27) -> 1590.59 | Q26: =ABS(Q25-$T$27) -> 303.09 | R26: =ABS(R25-$T$27) -> 368.61 | S26: 903.16 | T26: 621.91 | V26: Distância da Média | W26: =ABS(W25-AA27) -> 2938.304 | X26: =ABS(X25-$AA$27) -> 228.946 | Y26: =ABS(Y25-$AA$27) -> 1255.966 | Z26: 195.446 | AA26: 1257.946 | AC26: Distância da Média | AD26: =ABS(AD25-AH27) -> 43.656 | AE26: =ABS(AE25-$AH$27) -> 187.806 | AF26: =ABS(AF25-$AH$27) -> 107.524 | AG26: 140.094 | AH26: 16.156 | AJ26: Distância da Média | AK26: =ABS(AK25-AO27) -> 560.88 | AL26: =ABS(AL25-$AO$27) -> 1079.12 | AM26: =ABS(AM25-$AO$27) -> 2083.98 | AN26: 814.12 | AO26: 751.62 | AQ26: Distância da Média | AR26: =ABS(AR25-AV27) -> 216.24 | AS26: =ABS(AS25-$AV$27) -> 767.46 | AT26: =ABS(AT25-$AV$27) -> 185.34 | AU26: 270.44 | AV26: 95.44 | AX26: Distância da Média | AY26: =ABS(AY25-BC27) -> 59.25 | AZ26: =ABS(AZ25-$BC$27) -> 10.7 | BA26: =ABS(BA25-$BC$27) -> 47.4 | BB26: 61.8 | BC26: 55.55
E27: Média | F27: =AVERAGE(B25:F25) -> 1693.0184 | L27: Média | M27: =AVERAGE(I25:M25) -> 1981.4476 | S27: Média | T27: =AVERAGE(P25:T25) -> 996.91 | Z27: Média | AA27: =AVERAGE(W25:AA25) -> 1632.946 | AG27: Média | AH27: =AVERAGE(AD25:AH25) -> 358.844 | AN27: Média | AO27: =AVERAGE(AK25:AO25) -> 2314.12 | AU27: Média | AV27: =AVERAGE(AR25:AV25) -> 282.94 | BB27: Média | BC27: =AVERAGE(AY25:BC25) -> 86.8
E28: Mediana | F28: =MEDIAN(B25:F25) -> 779.092 | L28: Mediana | M28: =MEDIAN(I25:M25) -> 1562.5 | S28: Mediana | T28: =MEDIAN(P25:T25) -> 628.3 | Z28: Mediana | AA28: =MEDIAN(W25:AA25) -> 1404 | AG28: Mediana | AH28: =MEDIAN(AD25:AH25) -> 375 | AN28: Mediana | AO28: =MEDIAN(AK25:AO25) -> 1562.5 | AU28: Mediana | AV28: =MEDIAN(AR25:AV25) -> 97.6 | BB28: Mediana | BC28: =MEDIAN(AY25:BC25) -> 97.5
E29: CV | F29: =STDEVA(D25:E25)/AVERAGE(D25:E25) -> 0.1351613072 | L29: CV | M29: =STDEVA(I25,J25)/AVERAGE(I25,J25) -> 0.1057374268 | S29: CV | T29: =STDEVA(R25,T25)/AVERAGE(R25,T25) -> 0.3570420566 | Z29: CV | AA29: =STDEVA(X25:AA25)/AVERAGE(X25:AA25) -> 0.6716030499 | AG29: CV | AH29: =STDEVA(AF25,AG25,AH25,AD25)/AVERAGE(AF25,AG25,AH25,AD25) -> 0.2899637157 | AN29: CV | AO29: =STDEVA(AN25,AO25,AL25)/AVERAGE(AN25,AO25,AL25) -> 0.1213761679 | AU29: CV | AV29: =STDEVA(AT25,AR25)/AVERAGE(AT25,AR25) -> 0.2659719968 | BB29: CV | BC29: =STDEVA(BB25,BC25)/AVERAGE(BB25,BC25) -> 0.1571348403
C30: Valor admitido: mediana do agrupamento CV | F30: =MEDIAN(D25:E25) -> 861.421 | J30: Valor admitido: mediana do agrupamento CV | M30: =MEDIAN(I25,J25) -> 3604.5 | Q30: Valor admitido: mediana do agrupamento CV | T30: =MEDIAN(R25,T25) -> 501.65 | X30: Valor admitido: mediana do agrupamento CV | AA30: =MEDIAN(X25:AA25) -> 890.49 | AE30: Valor admitido: média do agrupamento CV | AH30: =AVERAGE(AD25,AF25,AG25,AH25) -> 311.8925 | AL30: Valor admitido: média do agrupamento CV | AO30: =AVERAGE(AL25,AN25,AO25) -> 1432.5 | AS30: Valor admitido: mediana do agrupamento CV | AV30: =MEDIAN(AT25,AR25) -> 82.15 | AZ30: Valor admitido: mediana do agrupamento CV | BC30: =MEDIAN(BB25:BC25) -> 28.125
A32: Grupo 4 | B32: TerraGraph | C32: Engefoto | D32: Topocart | E32: Hiparc | F32: Aerosat | H32: Grupo 4 | I32: TerraGraph | J32: Engefoto | K32: Topocart | L32: Hiparc | M32: Aerosat | O32: Grupo 4 | P32: TerraGraph | Q32: Engefoto | R32: Topocart | S32: Hiparc | T32: Aerosat | V32: Grupo 4 | W32: TerraGraph | X32: Engefoto | Y32: Topocart | Z32: Hiparc | AA32: Aerosat | AC32: Grupo 4 | AD32: TerraGraph | AE32: Engefoto | AF32: Topocart | AG32: Hiparc | AH32: Aerosat | AJ32: Grupo 4 | AK32: TerraGraph | AL32: Engefoto | AM32: Topocart | AN32: Hiparc | AO32: Aerosat | AQ32: Grupo 4 | AR32: TerraGraph | AS32: Engefoto | AT32: Topocart | AU32: Hiparc | AV32: Aerosat | AX32: Grupo 4 | AY32: TerraGraph | AZ32: Engefoto | BA32: Topocart | BB32: Hiparc | BC32: Aerosat
A33: Valor Unit c/ BDI | B33: =TerraGraph!G32 -> 362.25 | C33: =Engefoto!G32 -> 6487 | D33: =Topocart!G32 -> 816.912 | E33: =Hiparc!G32 -> 1505 | F33: =Aerosat!G32 -> 125 | H33: Valor Unit c/ BDI | I33: =TerraGraph!G33 -> 2875 | J33: =Engefoto!G33 -> 4056 | K33: =Topocart!G33 -> 895.968 | L33: =Hiparc!G33 -> 3750 | M33: =Aerosat!G33 -> 437.5 | O33: Valor Unit c/ BDI | P33: =TerraGraph!G34 -> 3162.5 | Q33: =Engefoto!G34 -> 1365 | R33: =Topocart!G34 -> 658.8 | S33: =Hiparc!G34 -> 156.25 | T33: =Aerosat!G34 -> 375 | V33: Valor Unit c/ BDI | W33: =TerraGraph!G35 -> 4364.25 | X33: =Engefoto!G35 -> 247 | Y33: =Topocart!G35 -> 395.28 | Z33: =Hiparc!G35 -> 2812.5 | AA33: =Aerosat!G35 -> 437.5 | AC33: Valor Unit c/ BDI | AD33: =TerraGraph!G36 -> 402.5 | AE33: =Engefoto!G36 -> 565.5 | AF33: =Topocart!G36 -> 263.52 | AG33: =Hiparc!G36 -> 375 | AH33: =Aerosat!G36 -> 375 | AJ33: Valor Unit c/ BDI | AK33: =TerraGraph!G37 -> 2875 | AL33: =Engefoto!G37 -> 1248 | AM33: =Topocart!G37 -> 4611.6 | AN33: =Hiparc!G37 -> 1500 | AO33: =Aerosat!G37 -> 1875 | AQ33: Valor Unit c/ BDI | AR33: =TerraGraph!G38 -> 316.25 | AS33: =Engefoto!G38 -> 1050.4 | AT33: =Topocart!G38 -> 237.168 | AU33: =Hiparc!G38 -> 125 | AV33: =Aerosat!G38 -> 187.5 | AX33: Valor Unit c/ BDI | AY33: =TerraGraph!G39 -> 362.25 | AZ33: =Engefoto!G39 -> 97.5 | BA33: =Topocart!G39 -> 390.4 | BB33: =Hiparc!G39 -> 312.5 | BC33: =Aerosat!G39 -> 62.5
A34: Distância da Média | B34: =ABS(B33-F35) -> 1496.9824 | C34: =ABS(C33-$F$35) -> 4627.7676 | D34: =ABS(D33-$F$35) -> 1042.3204 | E34: 354.2324 | F34: 1734.2324 | H34: Distância da Média | I34: =ABS(I33-M35) -> 472.1064 | J34: =ABS(J33-$M$35) -> 1653.1064 | K34: =ABS(K33-$M$35) -> 1506.9256 | L34: 1347.1064 | M34: 1965.3936 | O34: Distância da Média | P34: =ABS(P33-T35) -> 2018.99 | Q34: =ABS(Q33-$T$35) -> 221.49 | R34: =ABS(R33-$T$35) -> 484.71 | S34: 987.26 | T34: 768.51 | V34: Distância da Média | W34: =ABS(W33-AA35) -> 2712.944 | X34: =ABS(X33-$AA$35) -> 1404.306 | Y34: =ABS(Y33-$AA$35) -> 1256.026 | Z34: 1161.194 | AA34: 1213.806 | AC34: Distância da Média | AD34: =ABS(AD33-AH35) -> 6.196 | AE34: =ABS(AE33-$AH$35) -> 169.196 | AF34: =ABS(AF33-$AH$35) -> 132.784 | AG34: 21.304 | AH34: 21.304 | AJ34: Distância da Média | AK34: =ABS(AK33-AO35) -> 453.08 | AL34: =ABS(AL33-$AO$35) -> 1173.92 | AM34: =ABS(AM33-$AO$35) -> 2189.68 | AN34: 921.92 | AO34: 546.92 | AQ34: Distância da Média | AR34: =ABS(AR33-AV35) -> 67.0136 | AS34: =ABS(AS33-$AV$35) -> 667.1364 | AT34: =ABS(AT33-$AV$35) -> 146.0956 | AU34: 258.2636 | AV34: 195.7636 | AX34: Distância da Média | AY34: =ABS(AY33-BC35) -> 117.22 | AZ34: =ABS(AZ33-$BC$35) -> 147.53 | BA34: =ABS(BA33-$BC$35) -> 145.37 | BB34: 67.47 | BC34: 182.53
E35: Média | F35: =AVERAGE(B33:F33) -> 1859.2324 | L35: Média | M35: =AVERAGE(I33:M33) -> 2402.8936 | S35: Média | T35: =AVERAGE(P33:T33) -> 1143.51 | Z35: Média | AA35: =AVERAGE(W33:AA33) -> 1651.306 | AG35: Média | AH35: =AVERAGE(AD33:AH33) -> 396.304 | AN35: Média | AO35: =AVERAGE(AK33:AO33) -> 2421.92 | AU35: Média | AV35: =AVERAGE(AR33:AV33) -> 383.2636 | BB35: Média | BC35: =AVERAGE(AY33:BC33) -> 245.03
E36: Mediana | F36: =MEDIAN(B33:F33) -> 816.912 | L36: Mediana | M36: =MEDIAN(I33:M33) -> 2875 | S36: Mediana | T36: =MEDIAN(P33:T33) -> 658.8 | Z36: Mediana | AA36: =MEDIAN(W33:AA33) -> 437.5 | AG36: Mediana | AH36: =MEDIAN(AD33:AH33) -> 375 | AN36: Mediana | AO36: =MEDIAN(AK33:AO33) -> 1875 | AU36: Mediana | AV36: =MEDIAN(AR33:AV33) -> 237.168 | BB36: Mediana | BC36: =MEDIAN(AY33:BC33) -> 312.5
E37: CV | F37: =STDEVA(D33:E33)/AVERAGE(D33:E33) -> 0.4190957201 | L37: CV | M37: =STDEVA(J33,L33,I33)/AVERAGE(J33,L33,I33) -> 0.1721522843 | S37: CV | T37: =STDEVA(R33,T33)/AVERAGE(R33,T33) -> 0.3882315815 | Z37: CV | AA37: =STDEVA(Y33,AA33)/AVERAGE(Y33,AA33) -> 0.07169732295 | AG37: CV | AH37: =STDEVA(AF33:AH33,AD33)/AVERAGE(AF33:AH33,AD33) -> 0.1742929283 | AN37: CV | AO37: =STDEVA(AN33,AO33,AL33)/AVERAGE(AN33,AO33,AL33) -> 0.2047400118 | AU37: CV | AV37: =STDEVA(AT33,AV33)/AVERAGE(AT33,AV33) -> 0.1654025244 | BB37: CV | BC37: =STDEVA(BA33,BB33,AY33)/AVERAGE(BA33,BB33,AY33) -> 0.1110996874
C38: Valor admitido: mediana do agrupamento CV | F38: =MEDIAN(D33:E33) -> 1160.956 | J38: Valor admitido: média do agrupamento CV | M38: =AVERAGE(J33,L33,I33) -> 3560.333333 | Q38: Valor admitido: mediana do agrupamento CV | T38: =MEDIAN(R33,T33) -> 516.9 | X38: Valor admitido: mediana do agrupamento CV | AA38: =MEDIAN(Y33,AA33) -> 416.39 | AE38: Valor admitido: média do agrupamento CV | AH38: =AVERAGE(AF33:AH33,AD33) -> 354.005 | AL38: Valor admitido: mediana do agrupamento CV | AO38: =MEDIAN(AL33,AN33,AO33) -> 1500 | AS38: Valor admitido: mediana do agrupamento CV | AV38: =MEDIAN(AT33,AV33) -> 212.334 | AZ38: Valor admitido: média do agrupamento CV | BC38: =AVERAGE(AY33,BA33,BB33) -> 355.05
A40: Grupo 5 | B40: TerraGraph | C40: Engefoto | D40: Topocart | E40: Hiparc | F40: Aerosat | H40: Grupo 5 | I40: TerraGraph | J40: Engefoto | K40: Topocart | L40: Hiparc | M40: Aerosat | O40: Grupo 5 | P40: TerraGraph | Q40: Engefoto | R40: Topocart | S40: Hiparc | T40: Aerosat | V40: Grupo 5 | W40: TerraGraph | X40: Engefoto | Y40: Topocart | Z40: Hiparc | AA40: Aerosat | AC40: Grupo 5 | AD40: TerraGraph | AE40: Engefoto | AF40: Topocart | AG40: Hiparc | AH40: Aerosat | AJ40: Grupo 5 | AK40: TerraGraph | AL40: Engefoto | AM40: Topocart | AN40: Hiparc | AO40: Aerosat | AQ40: Grupo 5 | AR40: TerraGraph | AS40: Engefoto | AT40: Topocart | AU40: Hiparc | AV40: Aerosat | AX40: Grupo 5 | AY40: TerraGraph | AZ40: Engefoto | BA40: Topocart | BB40: Hiparc | BC40: Aerosat
A41: Valor Unit c/ BDI | B41: =TerraGraph!G40 -> 546.25 | C41: =Engefoto!G40 -> 6487 | D41: =Topocart!G40 -> 847.168 | E41: =Hiparc!G40 -> 1505 | F41: =Aerosat!G40 -> 125 | H41: Valor Unit c/ BDI | I41: =TerraGraph!G41 -> 4025 | J41: =Engefoto!G41 -> 4056 | K41: =Topocart!G41 -> 929.152 | L41: =Hiparc!G41 -> 3750 | M41: =Aerosat!G41 -> 437.5 | O41: Valor Unit c/ BDI | P41: =TerraGraph!G42 -> 4025 | Q41: =Engefoto!G42 -> 1365 | R41: =Topocart!G42 -> 683.2 | S41: =Hiparc!G42 -> 156.25 | T41: =Aerosat!G42 -> 375 | V41: Valor Unit c/ BDI | W41: =TerraGraph!G43 -> 4715 | X41: =Engefoto!G43 -> 247 | Y41: =Topocart!G43 -> 409.92 | Z41: =Hiparc!G43 -> 2812.5 | AA41: =Aerosat!G43 -> 437.5 | AC41: Valor Unit c/ BDI | AD41: =TerraGraph!G44 -> 402.5 | AE41: =Engefoto!G44 -> 565.5 | AF41: =Topocart!G44 -> 273.28 | AG41: =Hiparc!G44 -> 375 | AH41: =Aerosat!G44 -> 375 | AJ41: Valor Unit c/ BDI | AK41: =TerraGraph!G45 -> 3450 | AL41: =Engefoto!G45 -> 1248 | AM41: =Topocart!G45 -> 4782.4 | AN41: =Hiparc!G45 -> 1500 | AO41: =Aerosat!G45 -> 1875 | AQ41: Valor Unit c/ BDI | AR41: =TerraGraph!G46 -> 1122.4 | AS41: =Engefoto!G46 -> 1050.4 | AT41: =Topocart!G46 -> 245.952 | AU41: =Hiparc!G46 -> 312.5 | AV41: =Aerosat!G46 -> 187.5 | AX41: Valor Unit c/ BDI | AY41: =TerraGraph!G47 -> 1175.3 | AZ41: =Engefoto!G47 -> 97.5 | BA41: =Topocart!G47 -> 427 | BB41: =Hiparc!G47 -> 625 | BC41: =Aerosat!G47 -> 62.5
A42: Distância da Média | B42: =ABS(B41-F43) -> 1355.8336 | C42: =ABS(C41-$F$43) -> 4584.9164 | D42: =ABS(D41-$F$43) -> 1054.9156 | E42: 397.0836 | F42: 1777.0836 | H42: Distância da Média | I42: =ABS(I41-M43) -> 1385.4696 | J42: =ABS(J41-$M$43) -> 1416.4696 | K42: =ABS(K41-$M$43) -> 1710.3784 | L42: 1110.4696 | M42: 2202.0304 | O42: Distância da Média | P42: =ABS(P41-T43) -> 2704.11 | Q42: =ABS(Q41-$T$43) -> 44.11 | R42: =ABS(R41-$T$43) -> 637.69 | S42: 1164.64 | T42: 945.89 | V42: Distância da Média | W42: =ABS(W41-AA43) -> 2990.616 | X42: =ABS(X41-$AA$43) -> 1477.384 | Y42: =ABS(Y41-$AA$43) -> 1314.464 | Z42: 1088.116 | AA42: 1286.884 | AC42: Distância da Média | AD42: =ABS(AD41-AH43) -> 4.244 | AE42: =ABS(AE41-$AH$43) -> 167.244 | AF42: =ABS(AF41-$AH$43) -> 124.976 | AG42: 23.256 | AH42: 23.256 | AJ42: Distância da Média | AK42: =ABS(AK41-AO43) -> 878.92 | AL42: =ABS(AL41-$AO$43) -> 1323.08 | AM42: =ABS(AM41-$AO$43) -> 2211.32 | AN42: 1071.08 | AO42: 696.08 | AQ42: Distância da Média | AR42: =ABS(AR41-AV43) -> 538.6496 | AS42: =ABS(AS41-$AV$43) -> 466.6496 | AT42: =ABS(AT41-$AV$43) -> 337.7984 | AU42: 271.2504 | AV42: 396.2504 | AX42: Distância da Média | AY42: =ABS(AY41-BC43) -> 697.84 | AZ42: =ABS(AZ41-$BC$43) -> 379.96 | BA42: =ABS(BA41-$BC$43) -> 50.46 | BB42: 147.54 | BC42: 414.96
E43: Média | F43: =AVERAGE(B41:F41) -> 1902.0836 | L43: Média | M43: =AVERAGE(I41:M41) -> 2639.5304 | S43: Média | T43: =AVERAGE(P41:T41) -> 1320.89 | Z43: Média | AA43: =AVERAGE(W41:AA41) -> 1724.384 | AG43: Média | AH43: =AVERAGE(AD41:AH41) -> 398.256 | AN43: Média | AO43: =AVERAGE(AK41:AO41) -> 2571.08 | AU43: Média | AV43: =AVERAGE(AR41:AV41) -> 583.7504 | BB43: Média | BC43: =AVERAGE(AY41:BC41) -> 477.46
E44: Mediana | F44: =MEDIAN(B41:F41) -> 847.168 | L44: Mediana | M44: =MEDIAN(I41:M41) -> 3750 | S44: Mediana | T44: =MEDIAN(P41:T41) -> 683.2 | Z44: Mediana | AA44: =MEDIAN(W41:AA41) -> 437.5 | AG44: Mediana | AH44: =MEDIAN(AD41:AH41) -> 375 | AN44: Mediana | AO44: =MEDIAN(AK41:AO41) -> 1875 | AU44: Mediana | AV44: =MEDIAN(AR41:AV41) -> 312.5 | BB44: Mediana | BC44: =MEDIAN(AY41:BC41) -> 427
E45: CV | F45: =STDEVA(D41:E41)/AVERAGE(D41:E41) -> 0.3955138137 | L45: CV | M45: =STDEVA(J41,L41,I41)/AVERAGE(J41,L41,I41) -> 0.04271024076 | S45: CV | T45: =STDEVA(R41,T41)/AVERAGE(R41,T41) -> 0.4118886977 | Z45: CV | AA45: =STDEVA(Y41,AA41)/AVERAGE(Y41,AA41) -> 0.04602677545 | AG45: CV | AH45: =STDEVA(AF41:AH41,AD41)/AVERAGE(AF41:AH41,AD41) -> 0.159740572 | AN45: CV | AO45: =STDEVA(AN41,AO41,AL41)/AVERAGE(AN41,AO41,AL41) -> 0.2047400118 | AU45: CV | AV45: =STDEVA(AR41:AU41)/AVERAGE(AR41:AU41) -> 0.6850160791 | BB45: CV | BC45: =STDEVA(BA41,BB41)/AVERAGE(BA41,BB41) -> 0.266173275
C46: Valor admitido: mediana do agrupamento CV | F46: =MEDIAN(D41:E41) -> 1176.084 | J46: Valor admitido: média do agrupamento CV | M46: =AVERAGE(J41,L41,I41) -> 3943.666667 | Q46: Valor admitido: mediana do agrupamento CV | T46: =MEDIAN(R41,T41) -> 529.1 | X46: Valor admitido: mediana do agrupamento CV | AA46: =MEDIAN(Y41,AA41) -> 423.71 | AE46: Valor admitido: média do agrupamento CV | AH46: =AVERAGE(AF41:AH41,AD41) -> 356.445 | AL46: Valor admitido: mediana do agrupamento CV | AO46: =MEDIAN(AL41,AN41,AO41) -> 1500 | AS46: Valor admitido: mediana do agrupamento CV | AV46: =MEDIAN(AR41:AU41) -> 681.45 | AZ46: Valor admitido: mediana do agrupamento CV | BC46: =MEDIAN(BA41:BB41) -> 526
A48: Grupo 6 | B48: TerraGraph | C48: Engefoto | D48: Topocart | E48: Hiparc | F48: Aerosat | H48: Grupo 6 | I48: TerraGraph | J48: Engefoto | K48: Topocart | L48: Hiparc | M48: Aerosat | O48: Grupo 6 | P48: TerraGraph | Q48: Engefoto | R48: Topocart | S48: Hiparc | T48: Aerosat | V48: Grupo 6 | W48: TerraGraph | X48: Engefoto | Y48: Topocart | Z48: Hiparc | AA48: Aerosat | AC48: Grupo 6 | AD48: TerraGraph | AE48: Engefoto | AF48: Topocart | AG48: Hiparc | AH48: Aerosat | AJ48: Grupo 6 | AK48: TerraGraph | AL48: Engefoto | AM48: Topocart | AN48: Hiparc | AO48: Aerosat | AQ48: Grupo 6 | AR48: TerraGraph | AS48: Engefoto | AT48: Topocart | AU48: Hiparc | AV48: Aerosat | AX48: Grupo 6 | AY48: TerraGraph | AZ48: Engefoto | BA48: Topocart | BB48: Hiparc | BC48: Aerosat
A49: Valor Unit c/ BDI | B49: =TerraGraph!G48 -> 339.25 | C49: =Engefoto!G48 -> 6487 | D49: =Topocart!G48 -> 794.22 | E49: =Hiparc!G48 -> 1416.47 | F49: =Aerosat!G48 -> 125 | H49: Valor Unit c/ BDI | I49: =TerraGraph!G49 -> 2875 | J49: =Engefoto!G49 -> 4056 | K49: =Topocart!G49 -> 871.08 | L49: =Hiparc!G49 -> 3529.41 | M49: =Aerosat!G49 -> 437.5 | O49: Valor Unit c/ BDI | P49: =TerraGraph!G50 -> 3421.25 | Q49: =Engefoto!G50 -> 1365 | R49: =Topocart!G50 -> 640.5 | S49: =Hiparc!G50 -> 147.06 | T49: =Aerosat!G50 -> 375 | V49: Valor Unit c/ BDI | W49: =TerraGraph!G51 -> 4571.25 | X49: =Engefoto!G51 -> 247 | Y49: =Topocart!G51 -> 384.3 | Z49: =Hiparc!G51 -> 2647.06 | AA49: =Aerosat!G51 -> 437.5 | AC49: Valor Unit c/ BDI | AD49: =TerraGraph!G52 -> 402.5 | AE49: =Engefoto!G52 -> 565.5 | AF49: =Topocart!G52 -> 256.2 | AG49: =Hiparc!G52 -> 352.94 | AH49: =Aerosat!G52 -> 375 | AJ49: Valor Unit c/ BDI | AK49: =TerraGraph!G53 -> 2300 | AL49: =Engefoto!G53 -> 1248 | AM49: =Topocart!G53 -> 4483.5 | AN49: =Hiparc!G53 -> 1411.76 | AO49: =Aerosat!G53 -> 1875 | AQ49: Valor Unit c/ BDI | AR49: =TerraGraph!G54 -> 1725 | AS49: =Engefoto!G54 -> 1050.4 | AT49: =Topocart!G54 -> 230.58 | AU49: =Hiparc!G54 -> 294.12 | AV49: =Aerosat!G54 -> 187.5 | AX49: Valor Unit c/ BDI | AY49: =TerraGraph!G55 -> 2530 | AZ49: =Engefoto!G55 -> 97.5 | BA49: =Topocart!G55 -> 427 | BB49: =Hiparc!G55 -> 588.24 | BC49: =Aerosat!G55 -> 62.5
A50: Distância da Média | B50: =ABS(B49-F51) -> 1493.138 | C50: =ABS(C49-$F$51) -> 4654.612 | D50: =ABS(D49-$F$51) -> 1038.168 | E50: 415.918 | F50: 1707.388 | H50: Distância da Média | I50: =ABS(I49-M51) -> 521.202 | J50: =ABS(J49-$M$51) -> 1702.202 | K50: =ABS(K49-$M$51) -> 1482.718 | L50: 1175.612 | M50: 1916.298 | O50: Distância da Média | P50: =ABS(P49-T51) -> 2231.488 | Q50: =ABS(Q49-$T$51) -> 175.238 | R50: =ABS(R49-$T$51) -> 549.262 | S50: 1042.702 | T50: 814.762 | V50: Distância da Média | W50: =ABS(W49-AA51) -> 2913.828 | X50: =ABS(X49-$AA$51) -> 1410.422 | Y50: =ABS(Y49-$AA$51) -> 1273.122 | Z50: 989.638 | AA50: 1219.922 | AC50: Distância da Média | AD50: =ABS(AD49-AH51) -> 12.072 | AE50: =ABS(AE49-$AH$51) -> 175.072 | AF50: =ABS(AF49-$AH$51) -> 134.228 | AG50: 37.488 | AH50: 15.428 | AJ50: Distância da Média | AK50: =ABS(AK49-AO51) -> 36.348 | AL50: =ABS(AL49-$AO$51) -> 1015.652 | AM50: =ABS(AM49-$AO$51) -> 2219.848 | AN50: 851.892 | AO50: 388.652 | AQ50: Distância da Média | AR50: =ABS(AR49-AV51) -> 1027.48 | AS50: =ABS(AS49-$AV$51) -> 352.88 | AT50: =ABS(AT49-$AV$51) -> 466.94 | AU50: 403.4 | AV50: 510.02 | AX50: Distância da Média | AY50: =ABS(AY49-BC51) -> 1788.952 | AZ50: =ABS(AZ49-$BC$51) -> 643.548 | BA50: =ABS(BA49-$BC$51) -> 314.048 | BB50: 152.808 | BC50: 678.548
E51: Média | F51: =AVERAGE(B49:F49) -> 1832.388 | L51: Média | M51: =AVERAGE(I49:M49) -> 2353.798 | S51: Média | T51: =AVERAGE(P49:T49) -> 1189.762 | Z51: Média | AA51: =AVERAGE(W49:AA49) -> 1657.422 | AG51: Média | AH51: =AVERAGE(AD49:AH49) -> 390.428 | AN51: Média | AO51: =AVERAGE(AK49:AO49) -> 2263.652 | AU51: Média | AV51: =AVERAGE(AR49:AV49) -> 697.52 | BB51: Média | BC51: =AVERAGE(AY49:BC49) -> 741.048
E52: Mediana | F52: =MEDIAN(B49:F49) -> 794.22 | L52: Mediana | M52: =MEDIAN(I49:M49) -> 2875 | S52: Mediana | T52: =MEDIAN(P49:T49) -> 640.5 | Z52: Mediana | AA52: =MEDIAN(W49:AA49) -> 437.5 | AG52: Mediana | AH52: =MEDIAN(AD49:AH49) -> 375 | AN52: Mediana | AO52: =MEDIAN(AK49:AO49) -> 1875 | AU52: Mediana | AV52: =MEDIAN(AR49:AV49) -> 294.12 | BB52: Mediana | BC52: =MEDIAN(AY49:BC49) -> 427
E53: CV | F53: =STDEVA(D49:E49)/AVERAGE(D49:E49) -> 0.3980632242 | L53: CV | M53: =STDEVA(J49,L49,I49)/AVERAGE(J49,L49,I49) -> 0.1696831319 | S53: CV | T53: =STDEVA(R49,T49)/AVERAGE(R49,T49) -> 0.3697426891 | Z53: CV | AA53: =STDEVA(Y49,AA49)/AVERAGE(Y49,AA49) -> 0.09155045208 | AG53: CV | AH53: =STDEVA(AF49,AG49,AH49,AD49)/AVERAGE(AF49,AG49,AH49,AD49) -> 0.1835318132 | AN53: CV | AO53: =STDEVA(AN49:AO49)/AVERAGE(AN49:AO49) -> 0.1993210002 | AU53: CV | AV53: =STDEVA(AT49,AV49)/AVERAGE(AT49,AV49) -> 0.1457240726 | BB53: CV | BC53: =STDEVA(BA49:BB49)/AVERAGE(BA49:BB49) -> 0.2246048174
C54: Valor admitido: mediana do agrupamento CV | F54: =MEDIAN(D49:E49) -> 1105.345 | J54: Valor admitido: média do agrupamento CV | M54: =AVERAGE(J49,L49,I49) -> 3486.803333 | Q54: Valor admitido: mediana do agrupamento CV | T54: =MEDIAN(R49,T49) -> 507.75 | X54: Valor admitido: mediana do agrupamento CV | AA54: =MEDIAN(Y49,AA49) -> 410.9 | AE54: Valor admitido: média do agrupamento CV | AH54: =AVERAGE(AF49:AH49,AD49) -> 346.66 | AL54: Valor admitido: mediana do agrupamento CV | AO54: =MEDIAN(AN49,AO49) -> 1643.38 | AS54: Valor admitido: mediana do agrupamento CV | AV54: =MEDIAN(AT49,AV49) -> 209.04 | AZ54: Valor admitido: mediana do agrupamento CV | BC54: =MEDIAN(BA49:BB49) -> 507.62
A56: Grupo 7 | B56: TerraGraph | C56: Engefoto | D56: Topocart | E56: Hiparc | F56: Aerosat | H56: Grupo 7 | I56: TerraGraph | J56: Engefoto | K56: Topocart | L56: Hiparc | M56: Aerosat | O56: Grupo 7 | P56: TerraGraph | Q56: Engefoto | R56: Topocart | S56: Hiparc | T56: Aerosat | V56: Grupo 7 | W56: TerraGraph | X56: Engefoto | Y56: Topocart | Z56: Hiparc | AA56: Aerosat | AC56: Grupo 7 | AD56: TerraGraph | AE56: Engefoto | AF56: Topocart | AG56: Hiparc | AH56: Aerosat | AJ56: Grupo 7 | AK56: TerraGraph | AL56: Engefoto | AM56: Topocart | AN56: Hiparc | AO56: Aerosat | AQ56: Grupo 7 | AR56: TerraGraph | AS56: Engefoto | AT56: Topocart | AU56: Hiparc | AV56: Aerosat | AX56: Grupo 7 | AY56: TerraGraph | AZ56: Engefoto | BA56: Topocart | BB56: Hiparc | BC56: Aerosat
A57: Valor Unit c/ BDI | B57: =TerraGraph!G56 -> 592.25 | C57: =Engefoto!G56 -> 6487 | D57: =Topocart!G56 -> 907.68 | E57: =Hiparc!G56 -> 1720 | F57: =Aerosat!G56 -> 75 | H57: Valor Unit c/ BDI | I57: =TerraGraph!G57 -> 4600 | J57: =Engefoto!G57 -> 4056 | K57: =Topocart!G57 -> 995.52 | L57: =Hiparc!G57 -> 4285.71 | M57: =Aerosat!G57 -> 281.25 | O57: Valor Unit c/ BDI | P57: =TerraGraph!G58 -> 3171.7 | Q57: =Engefoto!G58 -> 1365 | R57: =Topocart!G58 -> 732 | S57: =Hiparc!G58 -> 178.57 | T57: =Aerosat!G58 -> 375 | V57: Valor Unit c/ BDI | W57: =TerraGraph!G59 -> 5127.85 | X57: =Engefoto!G59 -> 247 | Y57: =Topocart!G59 -> 439.2 | Z57: =Hiparc!G59 -> 3214.29 | AA57: =Aerosat!G59 -> 375 | AC57: Valor Unit c/ BDI | AD57: =TerraGraph!G60 -> 402.5 | AE57: =Engefoto!G60 -> 565.5 | AF57: =Topocart!G60 -> 292.8 | AG57: =Hiparc!G60 -> 428.57 | AH57: =Aerosat!G60 -> 375 | AJ57: Valor Unit c/ BDI | AK57: =TerraGraph!G61 -> 517.5 | AL57: =Engefoto!G61 -> 1248 | AM57: =Topocart!G61 -> 5124 | AN57: =Hiparc!G61 -> 1714.29 | AO57: =Aerosat!G61 -> 1562.5 | AQ57: Valor Unit c/ BDI | AR57: =TerraGraph!G62 -> 2300 | AS57: =Engefoto!G62 -> 1050.4 | AT57: =Topocart!G62 -> 263.52 | AU57: =Hiparc!G62 -> 357.14 | AV57: =Aerosat!G62 -> 150 | AX57: Valor Unit c/ BDI | AY57: =TerraGraph!G63 -> 3450 | AZ57: =Engefoto!G63 -> 97.5 | BA57: =Topocart!G63 -> 427 | BB57: =Hiparc!G63 -> 714.29 | BC57: =Aerosat!G63 -> 18.75
A58: Distância da Média | B58: =ABS(B57-F59) -> 1364.136 | C58: =ABS(C57-$F$59) -> 4530.614 | D58: =ABS(D57-$F$59) -> 1048.706 | E58: 236.386 | F58: 1881.386 | H58: Distância da Média | I58: =ABS(I57-M59) -> 1756.304 | J58: =ABS(J57-$M$59) -> 1212.304 | K58: =ABS(K57-$M$59) -> 1848.176 | L58: 1442.014 | M58: 2562.446 | O58: Distância da Média | P58: =ABS(P57-T59) -> 2007.246 | Q58: =ABS(Q57-$T$59) -> 200.546 | R58: =ABS(R57-$T$59) -> 432.454 | S58: 985.884 | T58: 789.454 | V58: Distância da Média | W58: =ABS(W57-AA59) -> 3247.182 | X58: =ABS(X57-$AA$59) -> 1633.668 | Y58: =ABS(Y57-$AA$59) -> 1441.468 | Z58: 1333.622 | AA58: 1505.668 | AC58: Distância da Média | AD58: =ABS(AD57-AH59) -> 10.374 | AE58: =ABS(AE57-$AH$59) -> 152.626 | AF58: =ABS(AF57-$AH$59) -> 120.074 | AG58: 15.696 | AH58: 37.874 | AJ58: Distância da Média | AK58: =ABS(AK57-AO59) -> 1515.758 | AL58: =ABS(AL57-$AO$59) -> 785.258 | AM58: =ABS(AM57-$AO$59) -> 3090.742 | AN58: 318.968 | AO58: 470.758 | AQ58: Distância da Média | AR58: =ABS(AR57-AV59) -> 1475.788 | AS58: =ABS(AS57-$AV$59) -> 226.188 | AT58: =ABS(AT57-$AV$59) -> 560.692 | AU58: 467.072 | AV58: 674.212 | AX58: Distância da Média | AY58: =ABS(AY57-BC59) -> 2508.492 | AZ58: =ABS(AZ57-$BC$59) -> 844.008 | BA58: =ABS(BA57-$BC$59) -> 514.508 | BB58: 227.218 | BC58: 922.758
E59: Média | F59: =AVERAGE(B57:F57) -> 1956.386 | L59: Média | M59: =AVERAGE(I57:M57) -> 2843.696 | S59: Média | T59: =AVERAGE(P57:T57) -> 1164.454 | Z59: Média | AA59: =AVERAGE(W57:AA57) -> 1880.668 | AG59: Média | AH59: =AVERAGE(AD57:AH57) -> 412.874 | AN59: Média | AO59: =AVERAGE(AK57:AO57) -> 2033.258 | AU59: Média | AV59: =AVERAGE(AR57:AV57) -> 824.212 | BB59: Média | BC59: =AVERAGE(AY57:BC57) -> 941.508
E60: Mediana | F60: =MEDIAN(B57:F57) -> 907.68 | L60: Mediana | M60: =MEDIAN(I57:M57) -> 4056 | S60: Mediana | T60: =MEDIAN(P57:T57) -> 732 | Z60: Mediana | AA60: =MEDIAN(W57:AA57) -> 439.2 | AG60: Mediana | AH60: =MEDIAN(AD57:AH57) -> 402.5 | AN60: Mediana | AO60: =MEDIAN(AK57:AO57) -> 1562.5 | AU60: Mediana | AV60: =MEDIAN(AR57:AV57) -> 357.14 | BB60: Mediana | BC60: =MEDIAN(AY57:BC57) -> 427
E61: CV | F61: =STDEVA(D57:E57)/AVERAGE(D57:E57) -> 0.4371894451 | L61: CV | M61: =STDEVA(J57,L57,I57)/AVERAGE(J57,L57,I57) -> 0.0633054662 | S61: CV | T61: =STDEVA(R57,T57)/AVERAGE(R57,T57) -> 0.4560742925 | Z61: CV | AA61: =STDEVA(Y57,AA57)/AVERAGE(Y57,AA57) -> 0.1115113126 | AG61: CV | AH61: =STDEVA(AF57:AH57,AD57)/AVERAGE(AF57:AH57,AD57) -> 0.1569953157 | AN61: CV | AO61: =STDEVA(AN57,AO57,AL57)/AVERAGE(AN57,AO57,AL57) -> 0.1576842397 | AU61: CV | AV61: =STDEVA(AT57,AU57)/AVERAGE(AT57,AU57) -> 0.2133191662 | BB61: CV | BC61: =STDEVA(BA57:BB57)/AVERAGE(BA57:BB57) -> 0.3559913907
C62: Valor admitido: mediana do agrupamento CV | F62: =MEDIAN(D57:E57) -> 1313.84 | J62: Valor admitido: mediana do agrupamento CV | M62: =MEDIAN(J57,L57,I57) -> 4285.71 | Q62: Valor admitido: mediana do agrupamento CV | T62: =MEDIAN(R57,T57) -> 553.5 | X62: Valor admitido: mediana do agrupamento CV | AA62: =MEDIAN(Y57,AA57) -> 407.1 | AE62: Valor admitido: média do agrupamento CV | AH62: =AVERAGE(AF57:AH57,AD57) -> 374.7175 | AL62: Valor admitido: média do agrupamento CV | AO62: =AVERAGE(AN57,AO57,AL57) -> 1508.263333 | AS62: Valor admitido: mediana do agrupamento CV | AV62: =MEDIAN(AT57,AU57) -> 310.33 | AZ62: Valor admitido: mediana do agrupamento CV | BC62: =MEDIAN(BA57:BB57) -> 570.645
A64: Grupo 8 | B64: TerraGraph | C64: Engefoto | D64: Topocart | E64: Hiparc | F64: Aerosat | H64: Grupo 8 | I64: TerraGraph | J64: Engefoto | K64: Topocart | L64: Hiparc | M64: Aerosat | O64: Grupo 8 | P64: TerraGraph | Q64: Engefoto | R64: Topocart | S64: Hiparc | T64: Aerosat | V64: Grupo 8 | W64: TerraGraph | X64: Engefoto | Y64: Topocart | Z64: Hiparc | AA64: Aerosat | AC64: Grupo 8 | AD64: TerraGraph | AE64: Engefoto | AF64: Topocart | AG64: Hiparc | AH64: Aerosat | AJ64: Grupo 8 | AK64: TerraGraph | AL64: Engefoto | AM64: Topocart | AN64: Hiparc | AO64: Aerosat | AQ64: Grupo 8 | AR64: TerraGraph | AS64: Engefoto | AT64: Topocart | AU64: Hiparc | AV64: Aerosat | AX64: Grupo 8 | AY64: TerraGraph | AZ64: Engefoto | BA64: Topocart | BB64: Hiparc | BC64: Aerosat
A65: Valor Unit c/ BDI | B65: =TerraGraph!G64 -> 385.25 | C65: =Engefoto!G64 -> 6487 | D65: =Topocart!G64 -> 869.86 | E65: =Hiparc!G64 -> 1416.47 | F65: =Aerosat!G64 -> 125 | H65: Valor Unit c/ BDI | I65: =TerraGraph!G65 -> 3450 | J65: =Engefoto!G65 -> 4056 | K65: =Topocart!G65 -> 954.04 | L65: =Hiparc!G65 -> 3529.41 | M65: =Aerosat!G65 -> 437.5 | O65: Valor Unit c/ BDI | P65: =TerraGraph!G66 -> 3624.8 | Q65: =Engefoto!G66 -> 1365 | R65: =Topocart!G66 -> 701.5 | S65: =Hiparc!G66 -> 147.06 | T65: =Aerosat!G66 -> 375 | V65: Valor Unit c/ BDI | W65: =TerraGraph!G67 -> 5514.25 | X65: =Engefoto!G67 -> 247 | Y65: =Topocart!G67 -> 420.9 | Z65: =Hiparc!G67 -> 2647.06 | AA65: =Aerosat!G67 -> 437.5 | AC65: Valor Unit c/ BDI | AD65: =TerraGraph!G68 -> 402.5 | AE65: =Engefoto!G68 -> 565.5 | AF65: =Topocart!G68 -> 280.6 | AG65: =Hiparc!G68 -> 352.94 | AH65: =Aerosat!G68 -> 375 | AJ65: Valor Unit c/ BDI | AK65: =TerraGraph!G69 -> 402.5 | AL65: =Engefoto!G69 -> 1248 | AM65: =Topocart!G69 -> 4910.5 | AN65: =Hiparc!G69 -> 1411.76 | AO65: =Aerosat!G69 -> 1875 | AQ65: Valor Unit c/ BDI | AR65: =TerraGraph!G70 -> 1262.7 | AS65: =Engefoto!G70 -> 1050.4 | AT65: =Topocart!G70 -> 252.54 | AU65: =Hiparc!G70 -> 58.82 | AV65: =Aerosat!G70 -> 187.5 | AX65: Valor Unit c/ BDI | AY65: =TerraGraph!G71 -> 2067.7 | AZ65: =Engefoto!G71 -> 71.5 | BA65: =Topocart!G71 -> 366 | BB65: =Hiparc!G71 -> 117.65 | BC65: =Aerosat!G71 -> 62.5
A66: Distância da Média | B66: =ABS(B65-F67) -> 1471.466 | C66: =ABS(C65-$F$67) -> 4630.284 | D66: =ABS(D65-$F$67) -> 986.856 | E66: 440.246 | F66: 1731.716 | H66: Distância da Média | I66: =ABS(I65-M67) -> 964.61 | J66: =ABS(J65-$M$67) -> 1570.61 | K66: =ABS(K65-$M$67) -> 1531.35 | L66: 1044.02 | M66: 2047.89 | O66: Distância da Média | P66: =ABS(P65-T67) -> 2382.128 | Q66: =ABS(Q65-$T$67) -> 122.328 | R66: =ABS(R65-$T$67) -> 541.172 | S66: 1095.612 | T66: 867.672 | V66: Distância da Média | W66: =ABS(W65-AA67) -> 3660.908 | X66: =ABS(X65-$AA$67) -> 1606.342 | Y66: =ABS(Y65-$AA$67) -> 1432.442 | Z66: 793.718 | AA66: 1415.842 | AC66: Distância da Média | AD66: =ABS(AD65-AH67) -> 7.192 | AE66: =ABS(AE65-$AH$67) -> 170.192 | AF66: =ABS(AF65-$AH$67) -> 114.708 | AG66: 42.368 | AH66: 20.308 | AJ66: Distância da Média | AK66: =ABS(AK65-AO67) -> 1567.052 | AL66: =ABS(AL65-$AO$67) -> 721.552 | AM66: =ABS(AM65-$AO$67) -> 2940.948 | AN66: 557.792 | AO66: 94.552 | AQ66: Distância da Média | AR66: =ABS(AR65-AV67) -> 700.308 | AS66: =ABS(AS65-$AV$67) -> 488.008 | AT66: =ABS(AT65-$AV$67) -> 309.852 | AU66: 503.572 | AV66: 374.892 | AX66: Distância da Média | AY66: =ABS(AY65-BC67) -> 1530.63 | AZ66: =ABS(AZ65-$BC$67) -> 465.57 | BA66: =ABS(BA65-$BC$67) -> 171.07 | BB66: 419.42 | BC66: 474.57
E67: Média | F67: =AVERAGE(B65:F65) -> 1856.716 | L67: Média | M67: =AVERAGE(I65:M65) -> 2485.39 | S67: Média | T67: =AVERAGE(P65:T65) -> 1242.672 | Z67: Média | AA67: =AVERAGE(W65:AA65) -> 1853.342 | AG67: Média | AH67: =AVERAGE(AD65:AH65) -> 395.308 | AN67: Média | AO67: =AVERAGE(AK65:AO65) -> 1969.552 | AU67: Média | AV67: =AVERAGE(AR65:AV65) -> 562.392 | BB67: Média | BC67: =AVERAGE(AY65:BC65) -> 537.07
E68: Mediana | F68: =MEDIAN(B65:F65) -> 869.86 | L68: Mediana | M68: =MEDIAN(I65:M65) -> 3450 | S68: Mediana | T68: =MEDIAN(P65:T65) -> 701.5 | Z68: Mediana | AA68: =MEDIAN(W65:AA65) -> 437.5 | AG68: Mediana | AH68: =MEDIAN(AD65:AH65) -> 375 | AN68: Mediana | AO68: =MEDIAN(AK65:AO65) -> 1411.76 | AU68: Mediana | AV68: =MEDIAN(AR65:AV65) -> 252.54 | BB68: Mediana | BC68: =MEDIAN(AY65:BC65) -> 117.65
E69: CV | F69: =STDEVA(D65:E65)/AVERAGE(D65:E65) -> 0.3381066055 | L69: CV | M69: =STDEVA(J65,L65,I65)/AVERAGE(J65,L65,I65) -> 0.08953522575 | S69: CV | T69: =STDEVA(R65,T65)/AVERAGE(R65,T65) -> 0.4289277549 | Z69: CV | AA69: =STDEVA(Y65,AA65)/AVERAGE(Y65,AA65) -> 0.02734849154 | AG69: CV | AH69: =STDEVA(AF65:AH65,AD65)/AVERAGE(AF65:AH65,AD65) -> 0.1479873938 | AN69: CV | AO69: =STDEVA(AN65:AO65)/AVERAGE(AN65:AO65) -> 0.1993210002 | AU69: CV | AV69: =STDEVA(AR65:AS65)/AVERAGE(AR65:AS65) -> 0.1297987719 | BB69: CV | BC69: =STDEVA(AZ65,BC65)/AVERAGE(AZ65,BC65) -> 0.094984493
C70: Valor admitido: mediana do agrupamento CV | F70: =MEDIAN(D65:E65) -> 1143.165 | J70: Valor admitido: mediana do agrupamento CV | M70: =MEDIAN(J65,L65,I65) -> 3529.41 | Q70: Valor admitido: mediana do agrupamento CV | T70: =MEDIAN(R65,T65) -> 538.25 | X70: Valor admitido: mediana do agrupamento CV | AA70: =MEDIAN(Y65,AA65) -> 429.2 | AE70: Valor admitido: média do agrupamento CV | AH70: =AVERAGE(AF65:AH65,AD65) -> 352.76 | AL70: Valor admitido: mediana do agrupamento CV | AO70: =AVERAGE(AN65,AO65) -> 1643.38 | AS70: Valor admitido: mediana do agrupamento CV | AV70: =MEDIAN(AT65,AV65) -> 220.02 | AZ70: Valor admitido: mediana do agrupamento CV | BC70: =MEDIAN(BC65,AZ65) -> 67

Sheet TerraGraph
A2: ORÇAMENTO ONERADO
A3: OBJETO: | B3: Orçamento para contratação de empresa especializada para realização de serviços de levantamento cadastral multifinalitário e laudo de avaliação de bem imóvel
A4: LOCALIDADE: | B4: Área de atuação da Codevasf dividida em 8 grupos | G4: DATA BASE: | H4: 2024-10-01
A7: Grupo | B7: Descrição do Serviço | C7: Uni. | D7: Quant. | E7: Valor Unit | F7: BDI | G7: Valor Unit c/BDI | H7: Total | K7: G1 | L7: =I15 -> 73628750
A8: 1 | B8: Cadastro para certificação INCRA | C8: ha. | D8: 1200 | E8: 375 | F8: 0.15 | G8: =(Tabela17[[#This Row],[Valor Unit]]*Tabela17[[#This Row],[BDI]])+Tabela17[[#This Row],[Valor Unit]] -> 431.25 | H8: =Tabela17[[#This Row],[Valor Unit c/BDI]]*Tabela17[[#This Row],[Quant.]] -> 517500 | K8: G2 | L8: =I23 -> 4348150
A9: 1 | B9: Cadastro urbano | C9: ha. | D9: 400 | E9: 2300 | F9: 0.15 | G9: =(Tabela17[[#This Row],[Valor Unit]]*Tabela17[[#This Row],[BDI]])+Tabela17[[#This Row],[Valor Unit]] -> 2645 | H9: =Tabela17[[#This Row],[Valor Unit c/BDI]]*Tabela17[[#This Row],[Quant.]] -> 1058000 | K9: G3 | L9: =I31 -> 33020812.5
A10: 1 | B10: Cadastro Juridico | C10: uni. | D10: =4500+1200 -> 5700 | E10: 2000 | F10: 0.15 | G10: =(Tabela17[[#This Row],[Valor Unit]]*Tabela17[[#This Row],[BDI]])+Tabela17[[#This Row],[Valor Unit]] -> 2300 | H10: =Tabela17[[#This Row],[Valor Unit c/BDI]]*Tabela17[[#This Row],[Quant.]] -> 13110000 | K10: G4 | L10: =I39 -> 7834950
A11: 1 | B11: Cadastro Agrícola | C11: uni. | D11: 1200 | E11: 3450 | F11: 0.15 | G11: =(Tabela17[[#This Row],[Valor Unit]]*Tabela17[[#This Row],[BDI]])+Tabela17[[#This Row],[Valor Unit]] -> 3967.5 | H11: =Tabela17[[#This Row],[Valor Unit c/BDI]]*Tabela17[[#This Row],[Quant.]] -> 4761000 | K11: G5 | L11: =I47 -> 11447100
A12: 1 | B12: Cadastro Socioeconomico | C12: uni. | D12: 1600 | E12: 350 | F12: 0.15 | G12: =(Tabela17[[#This Row],[Valor Unit]]*Tabela17[[#This Row],[BDI]])+Tabela17[[#This Row],[Valor Unit]] -> 402.5 | H12: =Tabela17[[#This Row],[Valor Unit c/BDI]]*Tabela17[[#This Row],[Quant.]] -> 644000 | K12: G6 | L12: =I55 -> 9622050
A13: 1 | B13: Avaliação de Imóveis | C13: uni. | D13: 1200 | E13: 300 | F13: 0.15 | G13: =(Tabela17[[#This Row],[Valor Unit]]*Tabela17[[#This Row],[BDI]])+Tabela17[[#This Row],[Valor Unit]] -> 345 | H13: =Tabela17[[#This Row],[Valor Unit c/BDI]]*Tabela17[[#This Row],[Quant.]] -> 414000 | K13: G7 | L13: =I63 -> 7419455
A14: 1 | B14: Levantamento Planimétrico | C14: ha. | D14: 2200 | E14: 275 | F14: 0.15 | G14: =(Tabela17[[#This Row],[Valor Unit]]*Tabela17[[#This Row],[BDI]])+Tabela17[[#This Row],[Valor Unit]] -> 316.25 | H14: =Tabela17[[#This Row],[Valor Unit c/BDI]]*Tabela17[[#This Row],[Quant.]] -> 695750 | I14: Total G1 | K14: G8 | L14: =I71 -> 18365316
A15: 1 | B15: Levantamento Planialtimétrico | C15: ha. | D15: 470000 | E15: 97 | F15: 0.15 | G15: =(Tabela17[[#This Row],[Valor Unit]]*Tabela17[[#This Row],[BDI]])+Tabela17[[#This Row],[Valor Unit]] -> 111.55 | H15: =Tabela17[[#This Row],[Valor Unit c/BDI]]*Tabela17[[#This Row],[Quant.]] -> 52428500 | I15: =SUM(H8:H15) -> 73628750 | K15: Total | L15: =SUM(L7:L14) -> 165686583.5
A16: 2 | B16: Cadastro para certificação INCRA | C16: ha. | D16: 200 | E16: 315 | F16: 0.15 | G16: =(Tabela17[[#This Row],[Valor Unit]]*Tabela17[[#This Row],[BDI]])+Tabela17[[#This Row],[Valor Unit]] -> 362.25 | H16: =Tabela17[[#This Row],[Valor Unit c/BDI]]*Tabela17[[#This Row],[Quant.]] -> 72450
A17: 2 | B17: Cadastro urbano | C17: ha. | D17: 200 | E17: 3500 | F17: 0.15 | G17: =(Tabela17[[#This Row],[Valor Unit]]*Tabela17[[#This Row],[BDI]])+Tabela17[[#This Row],[Valor Unit]] -> 4025 | H17: =Tabela17[[#This Row],[Valor Unit c/BDI]]*Tabela17[[#This Row],[Quant.]] -> 805000
A18: 2 | B18: Cadastro Juridico | C18: uni. | D18: 200 | E18: 2250 | F18: 0.15 | G18: =(Tabela17[[#This Row],[Valor Unit]]*Tabela17[[#This Row],[BDI]])+Tabela17[[#This Row],[Valor Unit]] -> 2587.5 | H18: =Tabela17[[#This Row],[Valor Unit c/BDI]]*Tabela17[[#This Row],[Quant.]] -> 517500
A19: 2 | B19: Cadastro Agrícola | C19: uni. | D19: 200 | E19: 3500 | F19: 0.15 | G19: =(Tabela17[[#This Row],[Valor Unit]]*Tabela17[[#This Row],[BDI]])+Tabela17[[#This Row],[Valor Unit]] -> 4025 | H19: =Tabela17[[#This Row],[Valor Unit c/BDI]]*Tabela17[[#This Row],[Quant.]] -> 805000
A20: 2 | B20: Cadastro Socioeconomico | C20: uni. | D20: 200 | E20: 350 | F20: 0.15 | G20: =(Tabela17[[#This Row],[Valor Unit]]*Tabela17[[#This Row],[BDI]])+Tabela17[[#This Row],[Valor Unit]] -> 402.5 | H20: =Tabela17[[#This Row],[Valor Unit c/BDI]]*Tabela17[[#This Row],[Quant.]] -> 80500
A21: 2 | B21: Avaliação de Imóveis | C21: uni. | D21: 200 | E21: 2500 | F21: 0.15 | G21: =(Tabela17[[#This Row],[Valor Unit]]*Tabela17[[#This Row],[BDI]])+Tabela17[[#This Row],[Valor Unit]] -> 2875 | H21: =Tabela17[[#This Row],[Valor Unit c/BDI]]*Tabela17[[#This Row],[Quant.]] -> 575000
A22: 2 | B22: Levantamento Planimétrico | C22: ha. | D22: 2200 | E22: 275 | F22: 0.15 | G22: =(Tabela17[[#This Row],[Valor Unit]]*Tabela17[[#This Row],[BDI]])+Tabela17[[#This Row],[Valor Unit]] -> 316.25 | H22: =Tabela17[[#This Row],[Valor Unit c/BDI]]*Tabela17[[#This Row],[Quant.]] -> 695750 | I22: Total G2
A23: 2 | B23: Levantamento Planialtimétrico | C23: ha. | D23: 2200 | E23: 315 | F23: 0.15 | G23: =(Tabela17[[#This Row],[Valor Unit]]*Tabela17[[#This Row],[BDI]])+Tabela17[[#This Row],[Valor Unit]] -> 362.25 | H23: =Tabela17[[#This Row],[Valor Unit c/BDI]]*Tabela17[[#This Row],[Quant.]] -> 796950 | I23: =SUM(H16:H23) -> 4348150
A24: 3 | B24: Cadastro para certificação INCRA | C24: ha. | D24: 1875 | E24: 315 | F24: 0.15 | G24: =(Tabela17[[#This Row],[Valor Unit]]*Tabela17[[#This Row],[BDI]])+Tabela17[[#This Row],[Valor Unit]] -> 362.25 | H24: =Tabela17[[#This Row],[Valor Unit c/BDI]]*Tabela17[[#This Row],[Quant.]] -> 679218.75
A25: 3 | B25: Cadastro urbano | C25: ha. | D25: 1875 | E25: 2900 | F25: 0.15 | G25: =(Tabela17[[#This Row],[Valor Unit]]*Tabela17[[#This Row],[BDI]])+Tabela17[[#This Row],[Valor Unit]] -> 3335 | H25: =Tabela17[[#This Row],[Valor Unit c/BDI]]*Tabela17[[#This Row],[Quant.]] -> 6253125
A26: 3 | B26: Cadastro Juridico | C26: uni. | D26: 1875 | E26: 2250 | F26: 0.15 | G26: =(Tabela17[[#This Row],[Valor Unit]]*Tabela17[[#This Row],[BDI]])+Tabela17[[#This Row],[Valor Unit]] -> 2587.5 | H26: =Tabela17[[#This Row],[Valor Unit c/BDI]]*Tabela17[[#This Row],[Quant.]] -> 4851562.5
A27: 3 | B27: Cadastro Agrícola | C27: uni. | D27: 1875 | E27: 3975 | F27: 0.15 | G27: =(Tabela17[[#This Row],[Valor Unit]]*Tabela17[[#This Row],[BDI]])+Tabela17[[#This Row],[Valor Unit]] -> 4571.25 | H27: =Tabela17[[#This Row],[Valor Unit c/BDI]]*Tabela17[[#This Row],[Quant.]] -> 8571093.75
A28: 3 | B28: Cadastro Socioeconomico | C28: uni. | D28: 1875 | E28: 350 | F28: 0.15 | G28: =(Tabela17[[#This Row],[Valor Unit]]*Tabela17[[#This Row],[BDI]])+Tabela17[[#This Row],[Valor Unit]] -> 402.5 | H28: =Tabela17[[#This Row],[Valor Unit c/BDI]]*Tabela17[[#This Row],[Quant.]] -> 754687.5
A29: 3 | B29: Avaliação de Imóveis | C29: uni. | D29: 1775 | E29: 2500 | F29: 0.15 | G29: =(Tabela17[[#This Row],[Valor Unit]]*Tabela17[[#This Row],[BDI]])+Tabela17[[#This Row],[Valor Unit]] -> 2875 | H29: =Tabela17[[#This Row],[Valor Unit c/BDI]]*Tabela17[[#This Row],[Quant.]] -> 5103125
A30: 3 | B30: Levantamento Planimétrico | C30: ha. | D30: 32000 | E30: 58 | F30: 0.15 | G30: =(Tabela17[[#This Row],[Valor Unit]]*Tabela17[[#This Row],[BDI]])+Tabela17[[#This Row],[Valor Unit]] -> 66.7 | H30: =Tabela17[[#This Row],[Valor Unit c/BDI]]*Tabela17[[#This Row],[Quant.]] -> 2134400 | I30: Total G3
A31: 3 | B31: Levantamento Planialtimétrico | C31: ha. | D31: 32000 | E31: 127 | F31: 0.15 | G31: =(Tabela17[[#This Row],[Valor Unit]]*Tabela17[[#This Row],[BDI]])+Tabela17[[#This Row],[Valor Unit]] -> 146.05 | H31: =Tabela17[[#This Row],[Valor Unit c/BDI]]*Tabela17[[#This Row],[Quant.]] -> 4673600 | I31: =SUM(H24:H31) -> 33020812.5
A32: 4 | B32: Cadastro para certificação INCRA | C32: ha. | D32: 500 | E32: 315 | F32: 0.15 | G32: =(Tabela17[[#This Row],[Valor Unit]]*Tabela17[[#This Row],[BDI]])+Tabela17[[#This Row],[Valor Unit]] -> 362.25 | H32: =Tabela17[[#This Row],[Valor Unit c/BDI]]*Tabela17[[#This Row],[Quant.]] -> 181125
A33: 4 | B33: Cadastro urbano | C33: ha. | D33: 500 | E33: 2500 | F33: 0.15 | G33: =(Tabela17[[#This Row],[Valor Unit]]*Tabela17[[#This Row],[BDI]])+Tabela17[[#This Row],[Valor Unit]] -> 2875 | H33: =Tabela17[[#This Row],[Valor Unit c/BDI]]*Tabela17[[#This Row],[Quant.]] -> 1437500
A34: 4 | B34: Cadastro Juridico | C34: uni. | D34: 500 | E34: 2750 | F34: 0.15 | G34: =(Tabela17[[#This Row],[Valor Unit]]*Tabela17[[#This Row],[BDI]])+Tabela17[[#This Row],[Valor Unit]] -> 3162.5 | H34: =Tabela17[[#This Row],[Valor Unit c/BDI]]*Tabela17[[#This Row],[Quant.]] -> 1581250
A35: 4 | B35: Cadastro Agrícola | C35: uni. | D35: 500 | E35: 3795 | F35: 0.15 | G35: =(Tabela17[[#This Row],[Valor Unit]]*Tabela17[[#This Row],[BDI]])+Tabela17[[#This Row],[Valor Unit]] -> 4364.25 | H35: =Tabela17[[#This Row],[Valor Unit c/BDI]]*Tabela17[[#This Row],[Quant.]] -> 2182125
A36: 4 | B36: Cadastro Socioeconomico | C36: uni. | D36: 500 | E36: 350 | F36: 0.15 | G36: =(Tabela17[[#This Row],[Valor Unit]]*Tabela17[[#This Row],[BDI]])+Tabela17[[#This Row],[Valor Unit]] -> 402.5 | H36: =Tabela17[[#This Row],[Valor Unit c/BDI]]*Tabela17[[#This Row],[Quant.]] -> 201250
A37: 4 | B37: Avaliação de Imóveis | C37: uni. | D37: 500 | E37: 2500 | F37: 0.15 | G37: =(Tabela17[[#This Row],[Valor Unit]]*Tabela17[[#This Row],[BDI]])+Tabela17[[#This Row],[Valor Unit]] -> 2875 | H37: =Tabela17[[#This Row],[Valor Unit c/BDI]]*Tabela17[[#This Row],[Quant.]] -> 1437500
A38: 4 | B38: Levantamento Planimétrico | C38: ha. | D38: 1200 | E38: 275 | F38: 0.15 | G38: =(Tabela17[[#This Row],[Valor Unit]]*Tabela17[[#This Row],[BDI]])+Tabela17[[#This Row],[Valor Unit]] -> 316.25 | H38: =Tabela17[[#This Row],[Valor Unit c/BDI]]*Tabela17[[#This Row],[Quant.]] -> 379500 | I38: Total G4
A39: 4 | B39: Levantamento Planialtimétrico | C39: ha. | D39: 1200 | E39: 315 | F39: 0.15 | G39: =(Tabela17[[#This Row],[Valor Unit]]*Tabela17[[#This Row],[BDI]])+Tabela17[[#This Row],[Valor Unit]] -> 362.25 | H39: =Tabela17[[#This Row],[Valor Unit c/BDI]]*Tabela17[[#This Row],[Quant.]] -> 434700 | I39: =SUM(H32:H39) -> 7834950
A40: 5 | B40: Cadastro para certificação INCRA | C40: ha. | D40: 600 | E40: 475 | F40: 0.15 | G40: =(Tabela17[[#This Row],[Valor Unit]]*Tabela17[[#This Row],[BDI]])+Tabela17[[#This Row],[Valor Unit]] -> 546.25 | H40: =Tabela17[[#This Row],[Valor Unit c/BDI]]*Tabela17[[#This Row],[Quant.]] -> 327750
A41: 5 | B41: Cadastro urbano | C41: ha. | D41: 600 | E41: 3500 | F41: 0.15 | G41: =(Tabela17[[#This Row],[Valor Unit]]*Tabela17[[#This Row],[BDI]])+Tabela17[[#This Row],[Valor Unit]] -> 4025 | H41: =Tabela17[[#This Row],[Valor Unit c/BDI]]*Tabela17[[#This Row],[Quant.]] -> 2415000
A42: 5 | B42: Cadastro Juridico | C42: uni. | D42: 600 | E42: 3500 | F42: 0.15 | G42: =(Tabela17[[#This Row],[Valor Unit]]*Tabela17[[#This Row],[BDI]])+Tabela17[[#This Row],[Valor Unit]] -> 4025 | H42: =Tabela17[[#This Row],[Valor Unit c/BDI]]*Tabela17[[#This Row],[Quant.]] -> 2415000
A43: 5 | B43: Cadastro Agrícola | C43: uni. | D43: 600 | E43: 4100 | F43: 0.15 | G43: =(Tabela17[[#This Row],[Valor Unit]]*Tabela17[[#This Row],[BDI]])+Tabela17[[#This Row],[Valor Unit]] -> 4715 | H43: =Tabela17[[#This Row],[Valor Unit c/BDI]]*Tabela17[[#This Row],[Quant.]] -> 2829000
A44: 5 | B44: Cadastro Socioeconomico | C44: uni. | D44: 600 | E44: 350 | F44: 0.15 | G44: =(Tabela17[[#This Row],[Valor Unit]]*Tabela17[[#This Row],[BDI]])+Tabela17[[#This Row],[Valor Unit]] -> 402.5 | H44: =Tabela17[[#This Row],[Valor Unit c/BDI]]*Tabela17[[#This Row],[Quant.]] -> 241500
A45: 5 | B45: Avaliação de Imóveis | C45: uni. | D45: 600 | E45: 3000 | F45: 0.15 | G45: =(Tabela17[[#This Row],[Valor Unit]]*Tabela17[[#This Row],[BDI]])+Tabela17[[#This Row],[Valor Unit]] -> 3450 | H45: =Tabela17[[#This Row],[Valor Unit c/BDI]]*Tabela17[[#This Row],[Quant.]] -> 2070000
A46: 5 | B46: Levantamento Planimétrico | C46: ha. | D46: 500 | E46: 976 | F46: 0.15 | G46: =(Tabela17[[#This Row],[Valor Unit]]*Tabela17[[#This Row],[BDI]])+Tabela17[[#This Row],[Valor Unit]] -> 1122.4 | H46: =Tabela17[[#This Row],[Valor Unit c/BDI]]*Tabela17[[#This Row],[Quant.]] -> 561200 | I46: Total G5
A47: 5 | B47: Levantamento Planialtimétrico | C47: ha. | D47: 500 | E47: 1022 | F47: 0.15 | G47: =(Tabela17[[#This Row],[Valor Unit]]*Tabela17[[#This Row],[BDI]])+Tabela17[[#This Row],[Valor Unit]] -> 1175.3 | H47: =Tabela17[[#This Row],[Valor Unit c/BDI]]*Tabela17[[#This Row],[Quant.]] -> 587650 | I47: =SUM(H40:H47) -> 11447100
A48: 6 | B48: Cadastro para certificação INCRA | C48: ha. | D48: 600 | E48: 295 | F48: 0.15 | G48: =(Tabela17[[#This Row],[Valor Unit]]*Tabela17[[#This Row],[BDI]])+Tabela17[[#This Row],[Valor Unit]] -> 339.25 | H48: =Tabela17[[#This Row],[Valor Unit c/BDI]]*Tabela17[[#This Row],[Quant.]] -> 203550
A49: 6 | B49: Cadastro urbano | C49: ha. | D49: 600 | E49: 2500 | F49: 0.15 | G49: =(Tabela17[[#This Row],[Valor Unit]]*Tabela17[[#This Row],[BDI]])+Tabela17[[#This Row],[Valor Unit]] -> 2875 | H49: =Tabela17[[#This Row],[Valor Unit c/BDI]]*Tabela17[[#This Row],[Quant.]] -> 1725000
A50: 6 | B50: Cadastro Juridico | C50: uni. | D50: 600 | E50: 2975 | F50: 0.15 | G50: =(Tabela17[[#This Row],[Valor Unit]]*Tabela17[[#This Row],[BDI]])+Tabela17[[#This Row],[Valor Unit]] -> 3421.25 | H50: =Tabela17[[#This Row],[Valor Unit c/BDI]]*Tabela17[[#This Row],[Quant.]] -> 2052750
A51: 6 | B51: Cadastro Agrícola | C51: uni. | D51: 600 | E51: 3975 | F51: 0.15 | G51: =(Tabela17[[#This Row],[Valor Unit]]*Tabela17[[#This Row],[BDI]])+Tabela17[[#This Row],[Valor Unit]] -> 4571.25 | H51: =Tabela17[[#This Row],[Valor Unit c/BDI]]*Tabela17[[#This Row],[Quant.]] -> 2742750
A52: 6 | B52: Cadastro Socioeconomico | C52: uni. | D52: 600 | E52: 350 | F52: 0.15 | G52: =(Tabela17[[#This Row],[Valor Unit]]*Tabela17[[#This Row],[BDI]])+Tabela17[[#This Row],[Valor Unit]] -> 402.5 | H52: =Tabela17[[#This Row],[Valor Unit c/BDI]]*Tabela17[[#This Row],[Quant.]] -> 241500
A53: 6 | B53: Avaliação de Imóveis | C53: uni. | D53: 600 | E53: 2000 | F53: 0.15 | G53: =(Tabela17[[#This Row],[Valor Unit]]*Tabela17[[#This Row],[BDI]])+Tabela17[[#This Row],[Valor Unit]] -> 2300 | H53: =Tabela17[[#This Row],[Valor Unit c/BDI]]*Tabela17[[#This Row],[Quant.]] -> 1380000
A54: 6 | B54: Levantamento Planimétrico | C54: ha. | D54: 300 | E54: 1500 | F54: 0.15 | G54: =(Tabela17[[#This Row],[Valor Unit]]*Tabela17[[#This Row],[BDI]])+Tabela17[[#This Row],[Valor Unit]] -> 1725 | H54: =Tabela17[[#This Row],[Valor Unit c/BDI]]*Tabela17[[#This Row],[Quant.]] -> 517500 | I54: Total G6
A55: 6 | B55: Levantamento Planialtimétrico | C55: ha. | D55: 300 | E55: 2200 | F55: 0.15 | G55: =(Tabela17[[#This Row],[Valor Unit]]*Tabela17[[#This Row],[BDI]])+Tabela17[[#This Row],[Valor Unit]] -> 2530 | H55: =Tabela17[[#This Row],[Valor Unit c/BDI]]*Tabela17[[#This Row],[Quant.]] -> 759000 | I55: =SUM(H48:H55) -> 9622050
A56: 7 | B56: Cadastro para certificação INCRA | C56: ha. | D56: 200 | E56: 515 | F56: 0.15 | G56: =(Tabela17[[#This Row],[Valor Unit]]*Tabela17[[#This Row],[BDI]])+Tabela17[[#This Row],[Valor Unit]] -> 592.25 | H56: =Tabela17[[#This Row],[Valor Unit c/BDI]]*Tabela17[[#This Row],[Quant.]] -> 118450
A57: 7 | B57: Cadastro urbano | C57: ha. | D57: 500 | E57: 4000 | F57: 0.15 | G57: =(Tabela17[[#This Row],[Valor Unit]]*Tabela17[[#This Row],[BDI]])+Tabela17[[#This Row],[Valor Unit]] -> 4600 | H57: =Tabela17[[#This Row],[Valor Unit c/BDI]]*Tabela17[[#This Row],[Quant.]] -> 2300000
A58: 7 | B58: Cadastro Juridico | C58: uni. | D58: 550 | E58: 2758 | F58: 0.15 | G58: =(Tabela17[[#This Row],[Valor Unit]]*Tabela17[[#This Row],[BDI]])+Tabela17[[#This Row],[Valor Unit]] -> 3171.7 | H58: =Tabela17[[#This Row],[Valor Unit c/BDI]]*Tabela17[[#This Row],[Quant.]] -> 1744435
A59: 7 | B59: Cadastro Agrícola | C59: uni. | D59: 200 | E59: 4459 | F59: 0.15 | G59: =(Tabela17[[#This Row],[Valor Unit]]*Tabela17[[#This Row],[BDI]])+Tabela17[[#This Row],[Valor Unit]] -> 5127.85 | H59: =Tabela17[[#This Row],[Valor Unit c/BDI]]*Tabela17[[#This Row],[Quant.]] -> 1025570
A60: 7 | B60: Cadastro Socioeconomico | C60: uni. | D60: 550 | E60: 350 | F60: 0.15 | G60: =(Tabela17[[#This Row],[Valor Unit]]*Tabela17[[#This Row],[BDI]])+Tabela17[[#This Row],[Valor Unit]] -> 402.5 | H60: =Tabela17[[#This Row],[Valor Unit c/BDI]]*Tabela17[[#This Row],[Quant.]] -> 221375
A61: 7 | B61: Avaliação de Imóveis | C61: uni. | D61: 550 | E61: 450 | F61: 0.15 | G61: =(Tabela17[[#This Row],[Valor Unit]]*Tabela17[[#This Row],[BDI]])+Tabela17[[#This Row],[Valor Unit]] -> 517.5 | H61: =Tabela17[[#This Row],[Valor Unit c/BDI]]*Tabela17[[#This Row],[Quant.]] -> 284625
A62: 7 | B62: Levantamento Planimétrico | C62: ha. | D62: 300 | E62: 2000 | F62: 0.15 | G62: =(Tabela17[[#This Row],[Valor Unit]]*Tabela17[[#This Row],[BDI]])+Tabela17[[#This Row],[Valor Unit]] -> 2300 | H62: =Tabela17[[#This Row],[Valor Unit c/BDI]]*Tabela17[[#This Row],[Quant.]] -> 690000 | I62: Total G7
A63: 7 | B63: Levantamento Planialtimétrico | C63: ha. | D63: 300 | E63: 3000 | F63: 0.15 | G63: =(Tabela17[[#This Row],[Valor Unit]]*Tabela17[[#This Row],[BDI]])+Tabela17[[#This Row],[Valor Unit]] -> 3450 | H63: =Tabela17[[#This Row],[Valor Unit c/BDI]]*Tabela17[[#This Row],[Quant.]] -> 1035000 | I63: =SUM(H56:H63) -> 7419455
A64: 8 | B64: Cadastro para certificação INCRA | C64: ha. | D64: 730 | E64: 335 | F64: 0.15 | G64: =(Tabela17[[#This Row],[Valor Unit]]*Tabela17[[#This Row],[BDI]])+Tabela17[[#This Row],[Valor Unit]] -> 385.25 | H64: =Tabela17[[#This Row],[Valor Unit c/BDI]]*Tabela17[[#This Row],[Quant.]] -> 281232.5
A65: 8 | B65: Cadastro urbano | C65: ha. | D65: 600 | E65: 3000 | F65: 0.15 | G65: =(Tabela17[[#This Row],[Valor Unit]]*Tabela17[[#This Row],[BDI]])+Tabela17[[#This Row],[Valor Unit]] -> 3450 | H65: =Tabela17[[#This Row],[Valor Unit c/BDI]]*Tabela17[[#This Row],[Quant.]] -> 2070000
A66: 8 | B66: Cadastro Juridico | C66: uni. | D66: 760 | E66: 3152 | F66: 0.15 | G66: =(Tabela17[[#This Row],[Valor Unit]]*Tabela17[[#This Row],[BDI]])+Tabela17[[#This Row],[Valor Unit]] -> 3624.8 | H66: =Tabela17[[#This Row],[Valor Unit c/BDI]]*Tabela17[[#This Row],[Quant.]] -> 2754848
A67: 8 | B67: Cadastro Agrícola | C67: uni. | D67: 730 | E67: 4795 | F67: 0.15 | G67: =(Tabela17[[#This Row],[Valor Unit]]*Tabela17[[#This Row],[BDI]])+Tabela17[[#This Row],[Valor Unit]] -> 5514.25 | H67: =Tabela17[[#This Row],[Valor Unit c/BDI]]*Tabela17[[#This Row],[Quant.]] -> 4025402.5
A68: 8 | B68: Cadastro Socioeconomico | C68: uni. | D68: 1330 | E68: 350 | F68: 0.15 | G68: =(Tabela17[[#This Row],[Valor Unit]]*Tabela17[[#This Row],[BDI]])+Tabela17[[#This Row],[Valor Unit]] -> 402.5 | H68: =Tabela17[[#This Row],[Valor Unit c/BDI]]*Tabela17[[#This Row],[Quant.]] -> 535325
A69: 8 | B69: Avaliação de Imóveis | C69: uni. | D69: 760 | E69: 350 | F69: 0.15 | G69: =(Tabela17[[#This Row],[Valor Unit]]*Tabela17[[#This Row],[BDI]])+Tabela17[[#This Row],[Valor Unit]] -> 402.5 | H69: =Tabela17[[#This Row],[Valor Unit c/BDI]]*Tabela17[[#This Row],[Quant.]] -> 305900
A70: 8 | B70: Levantamento Planimétrico | C70: ha. | D70: 2520 | E70: 1098 | F70: 0.15 | G70: =(Tabela17[[#This Row],[Valor Unit]]*Tabela17[[#This Row],[BDI]])+Tabela17[[#This Row],[Valor Unit]] -> 1262.7 | H70: =Tabela17[[#This Row],[Valor Unit c/BDI]]*Tabela17[[#This Row],[Quant.]] -> 3182004 | I70: Total G8
A71: 8 | B71: Levantamento Planialtimétrico | C71: ha. | D71: 2520 | E71: 1798 | F71: 0.15 | G71: =(Tabela17[[#This Row],[Valor Unit]]*Tabela17[[#This Row],[BDI]])+Tabela17[[#This Row],[Valor Unit]] -> 2067.7 | H71: =Tabela17[[#This Row],[Valor Unit c/BDI]]*Tabela17[[#This Row],[Quant.]] -> 5210604 | I71: =SUM(H64:H71) -> 18365316
A72: TOTAL COM BDI: | G72: =SUM(Tabela17[Total]) -> 165686583.5

Sheet Engefoto
A2: ORÇAMENTO ONERADO
A3: OBJETO: | B3: Orçamento para contratação de empresa especializada para realização de serviços de levantamento cadastral multifinalitário e laudo de avaliação de bem imóvel
A4: LOCALIDADE: | B4: Área de atuação da Codevasf dividida em 8 grupos | G4: DATA BASE: | H4: 2024-10-01
A7: Grupo | B7: Descrição do Serviço | C7: Uni. | D7: Quant. | E7: Valor Unit | F7: BDI | G7: Valor Unit c/BDI | H7: Total | K7: G1 | L7: =I15 -> 46706920
A8: 1 | B8: Cadastro para certificação INCRA | C8: ha. | D8: 1200 | E8: 4850 | F8: 1.3 | G8: 6305 | H8: =Tabela13456[[#This Row],[Quant.]]*Tabela13456[[#This Row],[Valor Unit c/BDI]] -> 7566000 | K8: G2 | L8: =I23 -> 5319080
A9: 1 | B9: Cadastro urbano | C9: ha. | D9: 400 | E9: 2980 | F9: 1.3 | G9: 3874 | H9: =Tabela13456[[#This Row],[Quant.]]*Tabela13456[[#This Row],[Valor Unit c/BDI]] -> 1549600 | K9: G3 | L9: =I31 -> 64105518.75
A10: 1 | B10: Cadastro Juridico | C10: uni. | D10: =4500+1200 -> 5700 | E10: 1000 | F10: 1.3 | G10: 1300 | H10: =Tabela13456[[#This Row],[Quant.]]*Tabela13456[[#This Row],[Valor Unit c/BDI]] -> 7410000 | K10: G4 | L10: =I39 -> 8361730
A11: 1 | B11: Cadastro Agrícola | C11: uni. | D11: 1200 | E11: 1080 | F11: 1.3 | G11: 1404 | H11: =Tabela13456[[#This Row],[Quant.]]*Tabela13456[[#This Row],[Valor Unit c/BDI]] -> 1684800 | K11: G5 | L11: =I47 -> 8955050
A12: 1 | B12: Cadastro Socioeconomico | C12: uni. | D12: 1600 | E12: 420.5 | F12: 1.3 | G12: 546.65 | H12: =Tabela13456[[#This Row],[Quant.]]*Tabela13456[[#This Row],[Valor Unit c/BDI]] -> 874640 | K12: G6 | L12: =I55 -> 8725470
A13: 1 | B13: Avaliação de Imóveis | C13: uni. | D13: 1200 | E13: 950 | F13: 1.3 | G13: 1235 | H13: =Tabela13456[[#This Row],[Quant.]]*Tabela13456[[#This Row],[Valor Unit c/BDI]] -> 1482000 | K13: G7 | L13: =I63 -> 5467345
A14: 1 | B14: Levantamento Planimétrico | C14: ha. | D14: 2200 | E14: 808 | F14: 1.3 | G14: 1050.4 | H14: =Tabela13456[[#This Row],[Quant.]]*Tabela13456[[#This Row],[Valor Unit c/BDI]] -> 2310880 | I14: Total G1 | K14: G8 | L14: =I71 -> 12914603
A15: E | B15: Levantamento Planialtimétrico | C15: ha. | D15: 470000 | E15: 39 | F15: 1.3 | G15: 50.7 | H15: =Tabela13456[[#This Row],[Quant.]]*Tabela13456[[#This Row],[Valor Unit c/BDI]] -> 23829000 | I15: =SUM(H8:H15) -> 46706920 | K15: Total | L15: =SUM(L7:L14) -> 160555716.8
A16: 2 | B16: Cadastro para certificação INCRA | C16: ha. | D16: 200 | E16: 4990 | F16: 1.3 | G16: 6487 | H16: =Tabela13456[[#This Row],[Quant.]]*Tabela13456[[#This Row],[Valor Unit c/BDI]] -> 1297400
A17: 2 | B17: Cadastro urbano | C17: ha. | D17: 200 | E17: 3120 | F17: 1.3 | G17: 4056 | H17: =Tabela13456[[#This Row],[Quant.]]*Tabela13456[[#This Row],[Valor Unit c/BDI]] -> 811200
A18: 2 | B18: Cadastro Juridico | C18: uni. | D18: 200 | E18: 1050 | F18: 1.3 | G18: 1365 | H18: =Tabela13456[[#This Row],[Quant.]]*Tabela13456[[#This Row],[Valor Unit c/BDI]] -> 273000
A19: 2 | B19: Cadastro Agrícola | C19: uni. | D19: 200 | E19: 190 | F19: 1.3 | G19: 247 | H19: =Tabela13456[[#This Row],[Quant.]]*Tabela13456[[#This Row],[Valor Unit c/BDI]] -> 49400
A20: 2 | B20: Cadastro Socioeconomico | C20: uni. | D20: 200 | E20: 435 | F20: 1.3 | G20: 565.5 | H20: =Tabela13456[[#This Row],[Quant.]]*Tabela13456[[#This Row],[Valor Unit c/BDI]] -> 113100
A21: 2 | B21: Avaliação de Imóveis | C21: uni. | D21: 200 | E21: 960 | F21: 1.3 | G21: 1248 | H21: =Tabela13456[[#This Row],[Quant.]]*Tabela13456[[#This Row],[Valor Unit c/BDI]] -> 249600
A22: 2 | B22: Levantamento Planimétrico | C22: ha. | D22: 2200 | E22: 808 | F22: 1.3 | G22: 1050.4 | H22: =Tabela13456[[#This Row],[Quant.]]*Tabela13456[[#This Row],[Valor Unit c/BDI]] -> 2310880 | I22: Total G2
A23: 2 | B23: Levantamento Planialtimétrico | C23: ha. | D23: 2200 | E23: 75 | F23: 1.3 | G23: 97.5 | H23: =Tabela13456[[#This Row],[Quant.]]*Tabela13456[[#This Row],[Valor Unit c/BDI]] -> 214500 | I23: =SUM(H16:H23) -> 5319080
A24: 3 | B24: Cadastro para certificação INCRA | C24: ha. | D24: 1875 | E24: 4850 | F24: 1.3 | G24: 6305 | H24: =Tabela13456[[#This Row],[Quant.]]*Tabela13456[[#This Row],[Valor Unit c/BDI]] -> 11821875
A25: 3 | B25: Cadastro urbano | C25: ha. | D25: 1875 | E25: 2980 | F25: 1.3 | G25: 3874 | H25: =Tabela13456[[#This Row],[Quant.]]*Tabela13456[[#This Row],[Valor Unit c/BDI]] -> 7263750
A26: 3 | B26: Cadastro Juridico | C26: uni. | D26: 1875 | E26: 1000 | F26: 1.3 | G26: 1300 | H26: =Tabela13456[[#This Row],[Quant.]]*Tabela13456[[#This Row],[Valor Unit c/BDI]] -> 2437500
A27: 3 | B27: Cadastro Agrícola | C27: uni. | D27: 1875 | E27: 1080 | F27: 1.3 | G27: 1404 | H27: =Tabela13456[[#This Row],[Quant.]]*Tabela13456[[#This Row],[Valor Unit c/BDI]] -> 2632500
A28: 3 | B28: Cadastro Socioeconomico | C28: uni. | D28: 1875 | E28: 420.5 | F28: 1.3 | G28: 546.65 | H28: =Tabela13456[[#This Row],[Quant.]]*Tabela13456[[#This Row],[Valor Unit c/BDI]] -> 1024968.75
A29: 3 | B29: Avaliação de Imóveis | C29: uni. | D29: 1775 | E29: 950 | F29: 1.3 | G29: 1235 | H29: =Tabela13456[[#This Row],[Quant.]]*Tabela13456[[#This Row],[Valor Unit c/BDI]] -> 2192125
A30: 3 | B30: Levantamento Planimétrico | C30: ha. | D30: 32000 | E30: 808 | F30: 1.3 | G30: 1050.4 | H30: =Tabela13456[[#This Row],[Quant.]]*Tabela13456[[#This Row],[Valor Unit c/BDI]] -> 33612800 | I30: Total G3
A31: 3 | B31: Levantamento Planialtimétrico | C31: ha. | D31: 32000 | E31: 75 | F31: 1.3 | G31: 97.5 | H31: =Tabela13456[[#This Row],[Quant.]]*Tabela13456[[#This Row],[Valor Unit c/BDI]] -> 3120000 | I31: =SUM(H24:H31) -> 64105518.75
A32: 4 | B32: Cadastro para certificação INCRA | C32: ha. | D32: 500 | E32: 4990 | F32: 1.3 | G32: 6487 | H32: =Tabela13456[[#This Row],[Quant.]]*Tabela13456[[#This Row],[Valor Unit c/BDI]] -> 3243500
A33: 4 | B33: Cadastro urbano | C33: ha. | D33: 500 | E33: 3120 | F33: 1.3 | G33: 4056 | H33: =Tabela13456[[#This Row],[Quant.]]*Tabela13456[[#This Row],[Valor Unit c/BDI]] -> 2028000
A34: 4 | B34: Cadastro Juridico | C34: uni. | D34: 500 | E34: 1050 | F34: 1.3 | G34: 1365 | H34: =Tabela13456[[#This Row],[Quant.]]*Tabela13456[[#This Row],[Valor Unit c/BDI]] -> 682500
A35: 4 | B35: Cadastro Agrícola | C35: uni. | D35: 500 | E35: 190 | F35: 1.3 | G35: 247 | H35: =Tabela13456[[#This Row],[Quant.]]*Tabela13456[[#This Row],[Valor Unit c/BDI]] -> 123500
A36: 4 | B36: Cadastro Socioeconomico | C36: uni. | D36: 500 | E36: 435 | F36: 1.3 | G36: 565.5 | H36: =Tabela13456[[#This Row],[Quant.]]*Tabela13456[[#This Row],[Valor Unit c/BDI]] -> 282750
A37: 4 | B37: Avaliação de Imóveis | C37: uni. | D37: 500 | E37: 960 | F37: 1.3 | G37: 1248 | H37: =Tabela13456[[#This Row],[Quant.]]*Tabela13456[[#This Row],[Valor Unit c/BDI]] -> 624000
A38: 4 | B38: Levantamento Planimétrico | C38: ha. | D38: 1200 | E38: 808 | F38: 1.3 | G38: 1050.4 | H38: =Tabela13456[[#This Row],[Quant.]]*Tabela13456[[#This Row],[Valor Unit c/BDI]] -> 1260480 | I38: Total G4
A39: 4 | B39: Levantamento Planialtimétrico | C39: ha. | D39: 1200 | E39: 75 | F39: 1.3 | G39: 97.5 | H39: =Tabela13456[[#This Row],[Quant.]]*Tabela13456[[#This Row],[Valor Unit c/BDI]] -> 117000 | I39: =SUM(H32:H39) -> 8361730
A40: 5 | B40: Cadastro para certificação INCRA | C40: ha. | D40: 600 | E40: 4990 | F40: 1.3 | G40: 6487 | H40: =Tabela13456[[#This Row],[Quant.]]*Tabela13456[[#This Row],[Valor Unit c/BDI]] -> 3892200
A41: 5 | B41: Cadastro urbano | C41: ha. | D41: 600 | E41: 3120 | F41: 1.3 | G41: 4056 | H41: =Tabela13456[[#This Row],[Quant.]]*Tabela13456[[#This Row],[Valor Unit c/BDI]] -> 2433600
A42: 5 | B42: Cadastro Juridico | C42: uni. | D42: 600 | E42: 1050 | F42: 1.3 | G42: 1365 | H42: =Tabela13456[[#This Row],[Quant.]]*Tabela13456[[#This Row],[Valor Unit c/BDI]] -> 819000
A43: 5 | B43: Cadastro Agrícola | C43: uni. | D43: 600 | E43: 190 | F43: 1.3 | G43: 247 | H43: =Tabela13456[[#This Row],[Quant.]]*Tabela13456[[#This Row],[Valor Unit c/BDI]] -> 148200
A44: 5 | B44: Cadastro Socioeconomico | C44: uni. | D44: 600 | E44: 435 | F44: 1.3 | G44: 565.5 | H44: =Tabela13456[[#This Row],[Quant.]]*Tabela13456[[#This Row],[Valor Unit c/BDI]] -> 339300
A45: 5 | B45: Avaliação de Imóveis | C45: uni. | D45: 600 | E45: 960 | F45: 1.3 | G45: 1248 | H45: =Tabela13456[[#This Row],[Quant.]]*Tabela13456[[#This Row],[Valor Unit c/BDI]] -> 748800
A46: 5 | B46: Levantamento Planimétrico | C46: ha. | D46: 500 | E46: 808 | F46: 1.3 | G46: 1050.4 | H46: =Tabela13456[[#This Row],[Quant.]]*Tabela13456[[#This Row],[Valor Unit c/BDI]] -> 525200 | I46: Total G5
A47: 5 | B47: Levantamento Planialtimétrico | C47: ha. | D47: 500 | E47: 75 | F47: 1.3 | G47: 97.5 | H47: =Tabela13456[[#This Row],[Quant.]]*Tabela13456[[#This Row],[Valor Unit c/BDI]] -> 48750 | I47: =SUM(H40:H47) -> 8955050
A48: 6 | B48: Cadastro para certificação INCRA | C48: ha. | D48: 600 | E48: 4990 | F48: 1.3 | G48: 6487 | H48: =Tabela13456[[#This Row],[Quant.]]*Tabela13456[[#This Row],[Valor Unit c/BDI]] -> 3892200
A49: 6 | B49: Cadastro urbano | C49: ha. | D49: 600 | E49: 3120 | F49: 1.3 | G49: 4056 | H49: =Tabela13456[[#This Row],[Quant.]]*Tabela13456[[#This Row],[Valor Unit c/BDI]] -> 2433600
A50: 6 | B50: Cadastro Juridico | C50: uni. | D50: 600 | E50: 1050 | F50: 1.3 | G50: 1365 | H50: =Tabela13456[[#This Row],[Quant.]]*Tabela13456[[#This Row],[Valor Unit c/BDI]] -> 819000
A51: 6 | B51: Cadastro Agrícola | C51: uni. | D51: 600 | E51: 190 | F51: 1.3 | G51: 247 | H51: =Tabela13456[[#This Row],[Quant.]]*Tabela13456[[#This Row],[Valor Unit c/BDI]] -> 148200
A52: 6 | B52: Cadastro Socioeconomico | C52: uni. | D52: 600 | E52: 435 | F52: 1.3 | G52: 565.5 | H52: =Tabela13456[[#This Row],[Quant.]]*Tabela13456[[#This Row],[Valor Unit c/BDI]] -> 339300
A53: 6 | B53: Avaliação de Imóveis | C53: uni. | D53: 600 | E53: 960 | F53: 1.3 | G53: 1248 | H53: =Tabela13456[[#This Row],[Quant.]]*Tabela13456[[#This Row],[Valor Unit c/BDI]] -> 748800
A54: 6 | B54: Levantamento Planimétrico | C54: ha. | D54: 300 | E54: 808 | F54: 1.3 | G54: 1050.4 | H54: =Tabela13456[[#This Row],[Quant.]]*Tabela13456[[#This Row],[Valor Unit c/BDI]] -> 315120 | I54: Total G6
A55: 6 | B55: Levantamento Planialtimétrico | C55: ha. | D55: 300 | E55: 75 | F55: 1.3 | G55: 97.5 | H55: =Tabela13456[[#This Row],[Quant.]]*Tabela13456[[#This Row],[Valor Unit c/BDI]] -> 29250 | I55: =SUM(H48:H55) -> 8725470
A56: 7 | B56: Cadastro para certificação INCRA | C56: ha. | D56: 200 | E56: 4990 | F56: 1.3 | G56: 6487 | H56: =Tabela13456[[#This Row],[Quant.]]*Tabela13456[[#This Row],[Valor Unit c/BDI]] -> 1297400
A57: 7 | B57: Cadastro urbano | C57: ha. | D57: 500 | E57: 3120 | F57: 1.3 | G57: 4056 | H57: =Tabela13456[[#This Row],[Quant.]]*Tabela13456[[#This Row],[Valor Unit c/BDI]] -> 2028000
A58: 7 | B58: Cadastro Juridico | C58: uni. | D58: 550 | E58: 1050 | F58: 1.3 | G58: 1365 | H58: =Tabela13456[[#This Row],[Quant.]]*Tabela13456[[#This Row],[Valor Unit c/BDI]] -> 750750
A59: 7 | B59: Cadastro Agrícola | C59: uni. | D59: 200 | E59: 190 | F59: 1.3 | G59: 247 | H59: =Tabela13456[[#This Row],[Quant.]]*Tabela13456[[#This Row],[Valor Unit c/BDI]] -> 49400
A60: 7 | B60: Cadastro Socioeconomico | C60: uni. | D60: 550 | E60: 435 | F60: 1.3 | G60: 565.5 | H60: =Tabela13456[[#This Row],[Quant.]]*Tabela13456[[#This Row],[Valor Unit c/BDI]] -> 311025
A61: 7 | B61: Avaliação de Imóveis | C61: uni. | D61: 550 | E61: 960 | F61: 1.3 | G61: 1248 | H61: =Tabela13456[[#This Row],[Quant.]]*Tabela13456[[#This Row],[Valor Unit c/BDI]] -> 686400
A62: 7 | B62: Levantamento Planimétrico | C62: ha. | D62: 300 | E62: 808 | F62: 1.3 | G62: 1050.4 | H62: =Tabela13456[[#This Row],[Quant.]]*Tabela13456[[#This Row],[Valor Unit c/BDI]] -> 315120 | I62: Total G7
A63: 7 | B63: Levantamento Planialtimétrico | C63: ha. | D63: 300 | E63: 75 | F63: 1.3 | G63: 97.5 | H63: =Tabela13456[[#This Row],[Quant.]]*Tabela13456[[#This Row],[Valor Unit c/BDI]] -> 29250 | I63: =SUM(H56:H63) -> 5467345
A64: 8 | B64: Cadastro para certificação INCRA | C64: ha. | D64: 730 | E64: 4990 | F64: 1.3 | G64: 6487 | H64: =Tabela13456[[#This Row],[Quant.]]*Tabela13456[[#This Row],[Valor Unit c/BDI]] -> 4735510
A65: 8 | B65: Cadastro urbano | C65: ha. | D65: 600 | E65: 3120 | F65: 1.3 | G65: 4056 | H65: =Tabela13456[[#This Row],[Quant.]]*Tabela13456[[#This Row],[Valor Unit c/BDI]] -> 2433600
A66: 8 | B66: Cadastro Juridico | C66: uni. | D66: 760 | E66: 1050 | F66: 1.3 | G66: 1365 | H66: =Tabela13456[[#This Row],[Quant.]]*Tabela13456[[#This Row],[Valor Unit c/BDI]] -> 1037400
A67: 8 | B67: Cadastro Agrícola | C67: uni. | D67: 730 | E67: 190 | F67: 1.3 | G67: 247 | H67: =Tabela13456[[#This Row],[Quant.]]*Tabela13456[[#This Row],[Valor Unit c/BDI]] -> 180310
A68: 8 | B68: Cadastro Socioeconomico | C68: uni. | D68: 1330 | E68: 435 | F68: 1.3 | G68: 565.5 | H68: =Tabela13456[[#This Row],[Quant.]]*Tabela13456[[#This Row],[Valor Unit c/BDI]] -> 752115
A69: 8 | B69: Avaliação de Imóveis | C69: uni. | D69: 760 | E69: 960 | F69: 1.3 | G69: 1248 | H69: =Tabela13456[[#This Row],[Quant.]]*Tabela13456[[#This Row],[Valor Unit c/BDI]] -> 948480
A70: 8 | B70: Levantamento Planimétrico | C70: ha. | D70: 2520 | E70: 808 | F70: 1.3 | G70: 1050.4 | H70: =Tabela13456[[#This Row],[Quant.]]*Tabela13456[[#This Row],[Valor Unit c/BDI]] -> 2647008 | I70: Total G8
A71: 8 | B71: Levantamento Planialtimétrico | C71: ha. | D71: 2520 | E71: 55 | F71: 1.3 | G71: 71.5 | H71: =Tabela13456[[#This Row],[Quant.]]*Tabela13456[[#This Row],[Valor Unit c/BDI]] -> 180180 | I71: =SUM(H64:H71) -> 12914603
A72: TOTAL COM BDI: | G72: =SUM(H8:H71) -> 160555716.8

Sheet Topocart
A2: ORÇAMENTO ONERADO
A3: OBJETO: | B3: Orçamento para contratação de empresa especializada para realização de serviços de levantamento cadastral multifinalitário e laudo de avaliação de bem imóvel
A4: LOCALIDADE: | B4: Área de atuação da Codevasf dividida em 8 grupos | G4: DATA BASE: | H4: 2024-10-01
A7: Grupo | B7: Descrição do Serviço | C7: Uni. | D7: Quant. | E7: Valor Unit | F7: BDI | G7: Valor Unit c/BDI | H7: Total | K7: G1 | L7: =I15 -> 31222240
A8: 1 | B8: Cadastro para certificação INCRA | C8: ha. | D8: 1200 | E8: 620 | F8: 0.22 | G8: =(Tabela1345[[#This Row],[Valor Unit]]*Tabela1345[[#This Row],[BDI]])+Tabela1345[[#This Row],[Valor Unit]] -> 756.4 | H8: =Tabela1345[[#This Row],[Quant.]]*Tabela1345[[#This Row],[Valor Unit c/BDI]] -> 907680 | K8: G2 | L8: =I23 -> 2798436
A9: 1 | B9: Cadastro urbano | C9: ha. | D9: 400 | E9: 680 | F9: 0.22 | G9: =(Tabela1345[[#This Row],[Valor Unit]]*Tabela1345[[#This Row],[BDI]])+Tabela1345[[#This Row],[Valor Unit]] -> 829.6 | H9: =Tabela1345[[#This Row],[Quant.]]*Tabela1345[[#This Row],[Valor Unit c/BDI]] -> 331840 | K9: G3 | L9: =I31 -> 20643315
A10: 1 | B10: Cadastro Juridico | C10: uni. | D10: =4500+1200 -> 5700 | E10: 500 | F10: 0.22 | G10: =(Tabela1345[[#This Row],[Valor Unit]]*Tabela1345[[#This Row],[BDI]])+Tabela1345[[#This Row],[Valor Unit]] -> 610 | H10: =Tabela1345[[#This Row],[Quant.]]*Tabela1345[[#This Row],[Valor Unit c/BDI]] -> 3477000 | K10: G4 | L10: =I39 -> 4574121.6
A11: 1 | B11: Cadastro Agrícola | C11: uni. | D11: 1200 | E11: 300 | F11: 0.22 | G11: =(Tabela1345[[#This Row],[Valor Unit]]*Tabela1345[[#This Row],[BDI]])+Tabela1345[[#This Row],[Valor Unit]] -> 366 | H11: =Tabela1345[[#This Row],[Quant.]]*Tabela1345[[#This Row],[Valor Unit c/BDI]] -> 439200 | K11: G5 | L11: =I47 -> 5091548
A12: 1 | B12: Cadastro Socioeconomico | C12: uni. | D12: 1600 | E12: 200 | F12: 0.22 | G12: =(Tabela1345[[#This Row],[Valor Unit]]*Tabela1345[[#This Row],[BDI]])+Tabela1345[[#This Row],[Valor Unit]] -> 244 | H12: =Tabela1345[[#This Row],[Quant.]]*Tabela1345[[#This Row],[Valor Unit c/BDI]] -> 390400 | K12: G6 | L12: =I55 -> 4655154
A13: 1 | B13: Avaliação de Imóveis | C13: uni. | D13: 1200 | E13: 3500 | F13: 0.22 | G13: =(Tabela1345[[#This Row],[Valor Unit]]*Tabela1345[[#This Row],[BDI]])+Tabela1345[[#This Row],[Valor Unit]] -> 4270 | H13: =Tabela1345[[#This Row],[Quant.]]*Tabela1345[[#This Row],[Valor Unit c/BDI]] -> 5124000 | K13: G7 | L13: =I63 -> 4356132
A14: 1 | B14: Levantamento Planimétrico | C14: ha. | D14: 2200 | E14: 180 | F14: 0.22 | G14: =(Tabela1345[[#This Row],[Valor Unit]]*Tabela1345[[#This Row],[BDI]])+Tabela1345[[#This Row],[Valor Unit]] -> 219.6 | H14: =Tabela1345[[#This Row],[Quant.]]*Tabela1345[[#This Row],[Valor Unit c/BDI]] -> 483120 | I14: Total G1 | K14: G8 | L14: =I71 -> 7711717.6
A15: 1 | B15: Levantamento Planialtimétrico | C15: ha. | D15: 470000 | E15: 35 | F15: 0.22 | G15: =(Tabela1345[[#This Row],[Valor Unit]]*Tabela1345[[#This Row],[BDI]])+Tabela1345[[#This Row],[Valor Unit]] -> 42.7 | H15: =Tabela1345[[#This Row],[Quant.]]*Tabela1345[[#This Row],[Valor Unit c/BDI]] -> 20069000 | I15: =SUM(H8:H15) -> 31222240 | K15: Total | L15: =SUM(L7:L14) -> 81052664.2
A16: 2 | B16: Cadastro para certificação INCRA | C16: ha. | D16: 200 | E16: 651 | F16: 0.22 | G16: =(Tabela1345[[#This Row],[Valor Unit]]*Tabela1345[[#This Row],[BDI]])+Tabela1345[[#This Row],[Valor Unit]] -> 794.22 | H16: =Tabela1345[[#This Row],[Quant.]]*Tabela1345[[#This Row],[Valor Unit c/BDI]] -> 158844
A17: 2 | B17: Cadastro urbano | C17: ha. | D17: 200 | E17: 714 | F17: 0.22 | G17: =(Tabela1345[[#This Row],[Valor Unit]]*Tabela1345[[#This Row],[BDI]])+Tabela1345[[#This Row],[Valor Unit]] -> 871.08 | H17: =Tabela1345[[#This Row],[Quant.]]*Tabela1345[[#This Row],[Valor Unit c/BDI]] -> 174216
A18: 2 | B18: Cadastro Juridico | C18: uni. | D18: 200 | E18: 525 | F18: 0.22 | G18: =(Tabela1345[[#This Row],[Valor Unit]]*Tabela1345[[#This Row],[BDI]])+Tabela1345[[#This Row],[Valor Unit]] -> 640.5 | H18: =Tabela1345[[#This Row],[Quant.]]*Tabela1345[[#This Row],[Valor Unit c/BDI]] -> 128100
A19: 2 | B19: Cadastro Agrícola | C19: uni. | D19: 200 | E19: 315 | F19: 0.22 | G19: =(Tabela1345[[#This Row],[Valor Unit]]*Tabela1345[[#This Row],[BDI]])+Tabela1345[[#This Row],[Valor Unit]] -> 384.3 | H19: =Tabela1345[[#This Row],[Quant.]]*Tabela1345[[#This Row],[Valor Unit c/BDI]] -> 76860
A20: 2 | B20: Cadastro Socioeconomico | C20: uni. | D20: 200 | E20: 210 | F20: 0.22 | G20: =(Tabela1345[[#This Row],[Valor Unit]]*Tabela1345[[#This Row],[BDI]])+Tabela1345[[#This Row],[Valor Unit]] -> 256.2 | H20: =Tabela1345[[#This Row],[Quant.]]*Tabela1345[[#This Row],[Valor Unit c/BDI]] -> 51240
A21: 2 | B21: Avaliação de Imóveis | C21: uni. | D21: 200 | E21: 3675 | F21: 0.22 | G21: =(Tabela1345[[#This Row],[Valor Unit]]*Tabela1345[[#This Row],[BDI]])+Tabela1345[[#This Row],[Valor Unit]] -> 4483.5 | H21: =Tabela1345[[#This Row],[Quant.]]*Tabela1345[[#This Row],[Valor Unit c/BDI]] -> 896700
A22: 2 | B22: Levantamento Planimétrico | C22: ha. | D22: 2200 | E22: 189 | F22: 0.22 | G22: =(Tabela1345[[#This Row],[Valor Unit]]*Tabela1345[[#This Row],[BDI]])+Tabela1345[[#This Row],[Valor Unit]] -> 230.58 | H22: =Tabela1345[[#This Row],[Quant.]]*Tabela1345[[#This Row],[Valor Unit c/BDI]] -> 507276 | I22: Total G2
A23: 2 | B23: Levantamento Planialtimétrico | C23: ha. | D23: 2200 | E23: 300 | F23: 0.22 | G23: =(Tabela1345[[#This Row],[Valor Unit]]*Tabela1345[[#This Row],[BDI]])+Tabela1345[[#This Row],[Valor Unit]] -> 366 | H23: =Tabela1345[[#This Row],[Quant.]]*Tabela1345[[#This Row],[Valor Unit c/BDI]] -> 805200 | I23: =SUM(H16:H23) -> 2798436
A24: 3 | B24: Cadastro para certificação INCRA | C24: ha. | D24: 1875 | E24: 638.6 | F24: 0.22 | G24: =(Tabela1345[[#This Row],[Valor Unit]]*Tabela1345[[#This Row],[BDI]])+Tabela1345[[#This Row],[Valor Unit]] -> 779.092 | H24: =Tabela1345[[#This Row],[Quant.]]*Tabela1345[[#This Row],[Valor Unit c/BDI]] -> 1460797.5
A25: 3 | B25: Cadastro urbano | C25: ha. | D25: 1875 | E25: 700.4 | F25: 0.22 | G25: =(Tabela1345[[#This Row],[Valor Unit]]*Tabela1345[[#This Row],[BDI]])+Tabela1345[[#This Row],[Valor Unit]] -> 854.488 | H25: =Tabela1345[[#This Row],[Quant.]]*Tabela1345[[#This Row],[Valor Unit c/BDI]] -> 1602165
A26: 3 | B26: Cadastro Juridico | C26: uni. | D26: 1875 | E26: 515 | F26: 0.22 | G26: =(Tabela1345[[#This Row],[Valor Unit]]*Tabela1345[[#This Row],[BDI]])+Tabela1345[[#This Row],[Valor Unit]] -> 628.3 | H26: =Tabela1345[[#This Row],[Quant.]]*Tabela1345[[#This Row],[Valor Unit c/BDI]] -> 1178062.5
A27: 3 | B27: Cadastro Agrícola | C27: uni. | D27: 1875 | E27: 309 | F27: 0.22 | G27: =(Tabela1345[[#This Row],[Valor Unit]]*Tabela1345[[#This Row],[BDI]])+Tabela1345[[#This Row],[Valor Unit]] -> 376.98 | H27: =Tabela1345[[#This Row],[Quant.]]*Tabela1345[[#This Row],[Valor Unit c/BDI]] -> 706837.5
A28: 3 | B28: Cadastro Socioeconomico | C28: uni. | D28: 1875 | E28: 206 | F28: 0.22 | G28: =(Tabela1345[[#This Row],[Valor Unit]]*Tabela1345[[#This Row],[BDI]])+Tabela1345[[#This Row],[Valor Unit]] -> 251.32 | H28: =Tabela1345[[#This Row],[Quant.]]*Tabela1345[[#This Row],[Valor Unit c/BDI]] -> 471225
A29: 3 | B29: Avaliação de Imóveis | C29: uni. | D29: 1775 | E29: 3605 | F29: 0.22 | G29: =(Tabela1345[[#This Row],[Valor Unit]]*Tabela1345[[#This Row],[BDI]])+Tabela1345[[#This Row],[Valor Unit]] -> 4398.1 | H29: =Tabela1345[[#This Row],[Quant.]]*Tabela1345[[#This Row],[Valor Unit c/BDI]] -> 7806627.5
A30: 3 | B30: Levantamento Planimétrico | C30: ha. | D30: 32000 | E30: 80 | F30: 0.22 | G30: =(Tabela1345[[#This Row],[Valor Unit]]*Tabela1345[[#This Row],[BDI]])+Tabela1345[[#This Row],[Valor Unit]] -> 97.6 | H30: =Tabela1345[[#This Row],[Quant.]]*Tabela1345[[#This Row],[Valor Unit c/BDI]] -> 3123200 | I30: Total G3
A31: 3 | B31: Levantamento Planialtimétrico | C31: ha. | D31: 32000 | E31: 110 | F31: 0.22 | G31: =(Tabela1345[[#This Row],[Valor Unit]]*Tabela1345[[#This Row],[BDI]])+Tabela1345[[#This Row],[Valor Unit]] -> 134.2 | H31: =Tabela1345[[#This Row],[Quant.]]*Tabela1345[[#This Row],[Valor Unit c/BDI]] -> 4294400 | I31: =SUM(H24:H31) -> 20643315
A32: 4 | B32: Cadastro para certificação INCRA | C32: ha. | D32: 500 | E32: 669.6 | F32: 0.22 | G32: =(Tabela1345[[#This Row],[Valor Unit]]*Tabela1345[[#This Row],[BDI]])+Tabela1345[[#This Row],[Valor Unit]] -> 816.912 | H32: =Tabela1345[[#This Row],[Quant.]]*Tabela1345[[#This Row],[Valor Unit c/BDI]] -> 408456
A33: 4 | B33: Cadastro urbano | C33: ha. | D33: 500 | E33: 734.4 | F33: 0.22 | G33: =(Tabela1345[[#This Row],[Valor Unit]]*Tabela1345[[#This Row],[BDI]])+Tabela1345[[#This Row],[Valor Unit]] -> 895.968 | H33: =Tabela1345[[#This Row],[Quant.]]*Tabela1345[[#This Row],[Valor Unit c/BDI]] -> 447984
A34: 4 | B34: Cadastro Juridico | C34: uni. | D34: 500 | E34: 540 | F34: 0.22 | G34: =(Tabela1345[[#This Row],[Valor Unit]]*Tabela1345[[#This Row],[BDI]])+Tabela1345[[#This Row],[Valor Unit]] -> 658.8 | H34: =Tabela1345[[#This Row],[Quant.]]*Tabela1345[[#This Row],[Valor Unit c/BDI]] -> 329400
A35: 4 | B35: Cadastro Agrícola | C35: uni. | D35: 500 | E35: 324 | F35: 0.22 | G35: =(Tabela1345[[#This Row],[Valor Unit]]*Tabela1345[[#This Row],[BDI]])+Tabela1345[[#This Row],[Valor Unit]] -> 395.28 | H35: =Tabela1345[[#This Row],[Quant.]]*Tabela1345[[#This Row],[Valor Unit c/BDI]] -> 197640
A36: 4 | B36: Cadastro Socioeconomico | C36: uni. | D36: 500 | E36: 216 | F36: 0.22 | G36: =(Tabela1345[[#This Row],[Valor Unit]]*Tabela1345[[#This Row],[BDI]])+Tabela1345[[#This Row],[Valor Unit]] -> 263.52 | H36: =Tabela1345[[#This Row],[Quant.]]*Tabela1345[[#This Row],[Valor Unit c/BDI]] -> 131760
A37: 4 | B37: Avaliação de Imóveis | C37: uni. | D37: 500 | E37: 3780 | F37: 0.22 | G37: =(Tabela1345[[#This Row],[Valor Unit]]*Tabela1345[[#This Row],[BDI]])+Tabela1345[[#This Row],[Valor Unit]] -> 4611.6 | H37: =Tabela1345[[#This Row],[Quant.]]*Tabela1345[[#This Row],[Valor Unit c/BDI]] -> 2305800
A38: 4 | B38: Levantamento Planimétrico | C38: ha. | D38: 1200 | E38: 194.4 | F38: 0.22 | G38: =(Tabela1345[[#This Row],[Valor Unit]]*Tabela1345[[#This Row],[BDI]])+Tabela1345[[#This Row],[Valor Unit]] -> 237.168 | H38: =Tabela1345[[#This Row],[Quant.]]*Tabela1345[[#This Row],[Valor Unit c/BDI]] -> 284601.6 | I38: Total G4
A39: 4 | B39: Levantamento Planialtimétrico | C39: ha. | D39: 1200 | E39: 320 | F39: 0.22 | G39: =(Tabela1345[[#This Row],[Valor Unit]]*Tabela1345[[#This Row],[BDI]])+Tabela1345[[#This Row],[Valor Unit]] -> 390.4 | H39: =Tabela1345[[#This Row],[Quant.]]*Tabela1345[[#This Row],[Valor Unit c/BDI]] -> 468480 | I39: =SUM(H32:H39) -> 4574121.6
A40: 5 | B40: Cadastro para certificação INCRA | C40: ha. | D40: 600 | E40: 694.4 | F40: 0.22 | G40: =(Tabela1345[[#This Row],[Valor Unit]]*Tabela1345[[#This Row],[BDI]])+Tabela1345[[#This Row],[Valor Unit]] -> 847.168 | H40: =Tabela1345[[#This Row],[Quant.]]*Tabela1345[[#This Row],[Valor Unit c/BDI]] -> 508300.8
A41: 5 | B41: Cadastro urbano | C41: ha. | D41: 600 | E41: 761.6 | F41: 0.22 | G41: =(Tabela1345[[#This Row],[Valor Unit]]*Tabela1345[[#This Row],[BDI]])+Tabela1345[[#This Row],[Valor Unit]] -> 929.152 | H41: =Tabela1345[[#This Row],[Quant.]]*Tabela1345[[#This Row],[Valor Unit c/BDI]] -> 557491.2
A42: 5 | B42: Cadastro Juridico | C42: uni. | D42: 600 | E42: 560 | F42: 0.22 | G42: =(Tabela1345[[#This Row],[Valor Unit]]*Tabela1345[[#This Row],[BDI]])+Tabela1345[[#This Row],[Valor Unit]] -> 683.2 | H42: =Tabela1345[[#This Row],[Quant.]]*Tabela1345[[#This Row],[Valor Unit c/BDI]] -> 409920
A43: 5 | B43: Cadastro Agrícola | C43: uni. | D43: 600 | E43: 336 | F43: 0.22 | G43: =(Tabela1345[[#This Row],[Valor Unit]]*Tabela1345[[#This Row],[BDI]])+Tabela1345[[#This Row],[Valor Unit]] -> 409.92 | H43: =Tabela1345[[#This Row],[Quant.]]*Tabela1345[[#This Row],[Valor Unit c/BDI]] -> 245952
A44: 5 | B44: Cadastro Socioeconomico | C44: uni. | D44: 600 | E44: 224 | F44: 0.22 | G44: =(Tabela1345[[#This Row],[Valor Unit]]*Tabela1345[[#This Row],[BDI]])+Tabela1345[[#This Row],[Valor Unit]] -> 273.28 | H44: =Tabela1345[[#This Row],[Quant.]]*Tabela1345[[#This Row],[Valor Unit c/BDI]] -> 163968
A45: 5 | B45: Avaliação de Imóveis | C45: uni. | D45: 600 | E45: 3920 | F45: 0.22 | G45: =(Tabela1345[[#This Row],[Valor Unit]]*Tabela1345[[#This Row],[BDI]])+Tabela1345[[#This Row],[Valor Unit]] -> 4782.4 | H45: =Tabela1345[[#This Row],[Quant.]]*Tabela1345[[#This Row],[Valor Unit c/BDI]] -> 2869440
A46: 5 | B46: Levantamento Planimétrico | C46: ha. | D46: 500 | E46: 201.6 | F46: 0.22 | G46: =(Tabela1345[[#This Row],[Valor Unit]]*Tabela1345[[#This Row],[BDI]])+Tabela1345[[#This Row],[Valor Unit]] -> 245.952 | H46: =Tabela1345[[#This Row],[Quant.]]*Tabela1345[[#This Row],[Valor Unit c/BDI]] -> 122976 | I46: Total G5
A47: 5 | B47: Levantamento Planialtimétrico | C47: ha. | D47: 500 | E47: 350 | F47: 0.22 | G47: =(Tabela1345[[#This Row],[Valor Unit]]*Tabela1345[[#This Row],[BDI]])+Tabela1345[[#This Row],[Valor Unit]] -> 427 | H47: =Tabela1345[[#This Row],[Quant.]]*Tabela1345[[#This Row],[Valor Unit c/BDI]] -> 213500 | I47: =SUM(H40:H47) -> 5091548
A48: 6 | B48: Cadastro para certificação INCRA | C48: ha. | D48: 600 | E48: 651 | F48: 0.22 | G48: =(Tabela1345[[#This Row],[Valor Unit]]*Tabela1345[[#This Row],[BDI]])+Tabela1345[[#This Row],[Valor Unit]] -> 794.22 | H48: =Tabela1345[[#This Row],[Quant.]]*Tabela1345[[#This Row],[Valor Unit c/BDI]] -> 476532
A49: 6 | B49: Cadastro urbano | C49: ha. | D49: 600 | E49: 714 | F49: 0.22 | G49: =(Tabela1345[[#This Row],[Valor Unit]]*Tabela1345[[#This Row],[BDI]])+Tabela1345[[#This Row],[Valor Unit]] -> 871.08 | H49: =Tabela1345[[#This Row],[Quant.]]*Tabela1345[[#This Row],[Valor Unit c/BDI]] -> 522648
A50: 6 | B50: Cadastro Juridico | C50: uni. | D50: 600 | E50: 525 | F50: 0.22 | G50: =(Tabela1345[[#This Row],[Valor Unit]]*Tabela1345[[#This Row],[BDI]])+Tabela1345[[#This Row],[Valor Unit]] -> 640.5 | H50: =Tabela1345[[#This Row],[Quant.]]*Tabela1345[[#This Row],[Valor Unit c/BDI]] -> 384300
A51: 6 | B51: Cadastro Agrícola | C51: uni. | D51: 600 | E51: 315 | F51: 0.22 | G51: =(Tabela1345[[#This Row],[Valor Unit]]*Tabela1345[[#This Row],[BDI]])+Tabela1345[[#This Row],[Valor Unit]] -> 384.3 | H51: =Tabela1345[[#This Row],[Quant.]]*Tabela1345[[#This Row],[Valor Unit c/BDI]] -> 230580
A52: 6 | B52: Cadastro Socioeconomico | C52: uni. | D52: 600 | E52: 210 | F52: 0.22 | G52: =(Tabela1345[[#This Row],[Valor Unit]]*Tabela1345[[#This Row],[BDI]])+Tabela1345[[#This Row],[Valor Unit]] -> 256.2 | H52: =Tabela1345[[#This Row],[Quant.]]*Tabela1345[[#This Row],[Valor Unit c/BDI]] -> 153720
A53: 6 | B53: Avaliação de Imóveis | C53: uni. | D53: 600 | E53: 3675 | F53: 0.22 | G53: =(Tabela1345[[#This Row],[Valor Unit]]*Tabela1345[[#This Row],[BDI]])+Tabela1345[[#This Row],[Valor Unit]] -> 4483.5 | H53: =Tabela1345[[#This Row],[Quant.]]*Tabela1345[[#This Row],[Valor Unit c/BDI]] -> 2690100
A54: 6 | B54: Levantamento Planimétrico | C54: ha. | D54: 300 | E54: 189 | F54: 0.22 | G54: =(Tabela1345[[#This Row],[Valor Unit]]*Tabela1345[[#This Row],[BDI]])+Tabela1345[[#This Row],[Valor Unit]] -> 230.58 | H54: =Tabela1345[[#This Row],[Quant.]]*Tabela1345[[#This Row],[Valor Unit c/BDI]] -> 69174 | I54: Total G6
A55: 6 | B55: Levantamento Planialtimétrico | C55: ha. | D55: 300 | E55: 350 | F55: 0.22 | G55: =(Tabela1345[[#This Row],[Valor Unit]]*Tabela1345[[#This Row],[BDI]])+Tabela1345[[#This Row],[Valor Unit]] -> 427 | H55: =Tabela1345[[#This Row],[Quant.]]*Tabela1345[[#This Row],[Valor Unit c/BDI]] -> 128100 | I55: =SUM(H48:H55) -> 4655154
A56: 7 | B56: Cadastro para certificação INCRA | C56: ha. | D56: 200 | E56: 744 | F56: 0.22 | G56: =(Tabela1345[[#This Row],[Valor Unit]]*Tabela1345[[#This Row],[BDI]])+Tabela1345[[#This Row],[Valor Unit]] -> 907.68 | H56: =Tabela1345[[#This Row],[Quant.]]*Tabela1345[[#This Row],[Valor Unit c/BDI]] -> 181536
A57: 7 | B57: Cadastro urbano | C57: ha. | D57: 500 | E57: 816 | F57: 0.22 | G57: =(Tabela1345[[#This Row],[Valor Unit]]*Tabela1345[[#This Row],[BDI]])+Tabela1345[[#This Row],[Valor Unit]] -> 995.52 | H57: =Tabela1345[[#This Row],[Quant.]]*Tabela1345[[#This Row],[Valor Unit c/BDI]] -> 497760
A58: 7 | B58: Cadastro Juridico | C58: uni. | D58: 550 | E58: 600 | F58: 0.22 | G58: =(Tabela1345[[#This Row],[Valor Unit]]*Tabela1345[[#This Row],[BDI]])+Tabela1345[[#This Row],[Valor Unit]] -> 732 | H58: =Tabela1345[[#This Row],[Quant.]]*Tabela1345[[#This Row],[Valor Unit c/BDI]] -> 402600
A59: 7 | B59: Cadastro Agrícola | C59: uni. | D59: 200 | E59: 360 | F59: 0.22 | G59: =(Tabela1345[[#This Row],[Valor Unit]]*Tabela1345[[#This Row],[BDI]])+Tabela1345[[#This Row],[Valor Unit]] -> 439.2 | H59: =Tabela1345[[#This Row],[Quant.]]*Tabela1345[[#This Row],[Valor Unit c/BDI]] -> 87840
A60: 7 | B60: Cadastro Socioeconomico | C60: uni. | D60: 550 | E60: 240 | F60: 0.22 | G60: =(Tabela1345[[#This Row],[Valor Unit]]*Tabela1345[[#This Row],[BDI]])+Tabela1345[[#This Row],[Valor Unit]] -> 292.8 | H60: =Tabela1345[[#This Row],[Quant.]]*Tabela1345[[#This Row],[Valor Unit c/BDI]] -> 161040
A61: 7 | B61: Avaliação de Imóveis | C61: uni. | D61: 550 | E61: 4200 | F61: 0.22 | G61: =(Tabela1345[[#This Row],[Valor Unit]]*Tabela1345[[#This Row],[BDI]])+Tabela1345[[#This Row],[Valor Unit]] -> 5124 | H61: =Tabela1345[[#This Row],[Quant.]]*Tabela1345[[#This Row],[Valor Unit c/BDI]] -> 2818200
A62: 7 | B62: Levantamento Planimétrico | C62: ha. | D62: 300 | E62: 216 | F62: 0.22 | G62: =(Tabela1345[[#This Row],[Valor Unit]]*Tabela1345[[#This Row],[BDI]])+Tabela1345[[#This Row],[Valor Unit]] -> 263.52 | H62: =Tabela1345[[#This Row],[Quant.]]*Tabela1345[[#This Row],[Valor Unit c/BDI]] -> 79056 | I62: Total G7
A63: 7 | B63: Levantamento Planialtimétrico | C63: ha. | D63: 300 | E63: 350 | F63: 0.22 | G63: =(Tabela1345[[#This Row],[Valor Unit]]*Tabela1345[[#This Row],[BDI]])+Tabela1345[[#This Row],[Valor Unit]] -> 427 | H63: =Tabela1345[[#This Row],[Quant.]]*Tabela1345[[#This Row],[Valor Unit c/BDI]] -> 128100 | I63: =SUM(H56:H63) -> 4356132
A64: 8 | B64: Cadastro para certificação INCRA | C64: ha. | D64: 730 | E64: 713 | F64: 0.22 | G64: =(Tabela1345[[#This Row],[Valor Unit]]*Tabela1345[[#This Row],[BDI]])+Tabela1345[[#This Row],[Valor Unit]] -> 869.86 | H64: =Tabela1345[[#This Row],[Quant.]]*Tabela1345[[#This Row],[Valor Unit c/BDI]] -> 634997.8
A65: 8 | B65: Cadastro urbano | C65: ha. | D65: 600 | E65: 782 | F65: 0.22 | G65: =(Tabela1345[[#This Row],[Valor Unit]]*Tabela1345[[#This Row],[BDI]])+Tabela1345[[#This Row],[Valor Unit]] -> 954.04 | H65: =Tabela1345[[#This Row],[Quant.]]*Tabela1345[[#This Row],[Valor Unit c/BDI]] -> 572424
A66: 8 | B66: Cadastro Juridico | C66: uni. | D66: 760 | E66: 575 | F66: 0.22 | G66: =(Tabela1345[[#This Row],[Valor Unit]]*Tabela1345[[#This Row],[BDI]])+Tabela1345[[#This Row],[Valor Unit]] -> 701.5 | H66: =Tabela1345[[#This Row],[Quant.]]*Tabela1345[[#This Row],[Valor Unit c/BDI]] -> 533140
A67: 8 | B67: Cadastro Agrícola | C67: uni. | D67: 730 | E67: 345 | F67: 0.22 | G67: =(Tabela1345[[#This Row],[Valor Unit]]*Tabela1345[[#This Row],[BDI]])+Tabela1345[[#This Row],[Valor Unit]] -> 420.9 | H67: =Tabela1345[[#This Row],[Quant.]]*Tabela1345[[#This Row],[Valor Unit c/BDI]] -> 307257
A68: 8 | B68: Cadastro Socioeconomico | C68: uni. | D68: 1330 | E68: 230 | F68: 0.22 | G68: =(Tabela1345[[#This Row],[Valor Unit]]*Tabela1345[[#This Row],[BDI]])+Tabela1345[[#This Row],[Valor Unit]] -> 280.6 | H68: =Tabela1345[[#This Row],[Quant.]]*Tabela1345[[#This Row],[Valor Unit c/BDI]] -> 373198
A69: 8 | B69: Avaliação de Imóveis | C69: uni. | D69: 760 | E69: 4025 | F69: 0.22 | G69: =(Tabela1345[[#This Row],[Valor Unit]]*Tabela1345[[#This Row],[BDI]])+Tabela1345[[#This Row],[Valor Unit]] -> 4910.5 | H69: =Tabela1345[[#This Row],[Quant.]]*Tabela1345[[#This Row],[Valor Unit c/BDI]] -> 3731980
A70: 8 | B70: Levantamento Planimétrico | C70: ha. | D70: 2520 | E70: 207 | F70: 0.22 | G70: =(Tabela1345[[#This Row],[Valor Unit]]*Tabela1345[[#This Row],[BDI]])+Tabela1345[[#This Row],[Valor Unit]] -> 252.54 | H70: =Tabela1345[[#This Row],[Quant.]]*Tabela1345[[#This Row],[Valor Unit c/BDI]] -> 636400.8 | I70: Total G8
A71: 8 | B71: Levantamento Planialtimétrico | C71: ha. | D71: 2520 | E71: 300 | F71: 0.22 | G71: =(Tabela1345[[#This Row],[Valor Unit]]*Tabela1345[[#This Row],[BDI]])+Tabela1345[[#This Row],[Valor Unit]] -> 366 | H71: =Tabela1345[[#This Row],[Quant.]]*Tabela1345[[#This Row],[Valor Unit c/BDI]] -> 922320 | I71: =SUM(H64:H71) -> 7711717.6
A72: TOTAL COM BDI: | G72: =SUM(H8:H71) -> 81052664.2

Sheet Hiparc
A2: ORÇAMENTO ONERADO
A3: OBJETO: | B3: Orçamento para contratação de empresa especializada para realização de serviços de levantamento cadastral multifinalitário e laudo de avaliação de bem imóvel
A4: LOCALIDADE: | B4: Área de atuação da Codevasf dividida em 8 grupos | G4: DATA BASE: | H4: 2024-10-01
A7: Grupo | B7: Descrição do Serviço | C7: Uni. | D7: Quant. | E7: Valor Unit | F7: BDI | G7: Valor Unit c/BDI | H7: Total | K7: G1 | L7: =I15 -> 15043882.35
A8: 1 | B8: Cadastro para certificação INCRA | C8: ha. | D8: 1200 | E8: 1204 | F8: 0.15 | G8: 1416.47 | H8: 1699764.71 | K8: G2 | L8: =I23 -> 2432250
A9: 1 | B9: Cadastro urbano | C9: ha. | D9: 400 | E9: 3000 | F9: 0.15 | G9: 3529.41 | H9: 1411764.71 | K9: G3 | L9: =I31 -> 11842968.75
A10: 1 | B10: Cadastro Juridico | C10: uni. | D10: =4500+1200 -> 5700 | E10: 125 | F10: 0.15 | G10: 147.06 | H10: 838235.29 | K10: G4 | L10: =I39 -> 5574375
A11: 1 | B11: Cadastro Agrícola | C11: uni. | D11: 1200 | E11: 2250 | F11: 0.15 | G11: 2647.06 | H11: 3176470.59 | K11: G5 | L11: =I47 -> 6528000
A12: 1 | B12: Cadastro Socioeconomico | C12: uni. | D12: 1600 | E12: 300 | F12: 0.15 | G12: 352.94 | H12: 564,705,88 | K12: G6 | L12: =I55 -> 5967529.41
A13: 1 | B13: Avaliação de Imóveis | C13: uni. | D13: 1200 | E13: 1200 | F13: 0.15 | G13: 1411.76 | H13: 1694117.65 | K13: G7 | L13: =I63 -> 4727928.57
A14: 1 | B14: Levantamento Planimétrico | C14: ha. | D14: 2200 | E14: 50 | F14: 0.15 | G14: 58.82 | H14: 129411.76 | I14: Total G1 | K14: G8 | L14: =I71 -> 7182847.06
A15: 1 | B15: Levantamento Planialtimétrico | C15: ha. | D15: 470000 | E15: 10 | F15: 0.15 | G15: 11.76 | H15: 5529411.76 | I15: 15043882.35 | K15: Total | L15: =SUM(L7:L14) -> 59299781.14
A16: 2 | B16: Cadastro para certificação INCRA | C16: ha. | D16: 200 | E16: 1204 | F16: 0.2 | G16: 1505 | H16: =Tabela134[[#This Row],[Quant.]]*Tabela134[[#This Row],[Valor Unit c/BDI]] -> 301000
A17: 2 | B17: Cadastro urbano | C17: ha. | D17: 200 | E17: 3000 | F17: 0.2 | G17: 3750 | H17: =Tabela134[[#This Row],[Quant.]]*Tabela134[[#This Row],[Valor Unit c/BDI]] -> 750000
A18: 2 | B18: Cadastro Juridico | C18: uni. | D18: 200 | E18: 125 | F18: 0.2 | G18: 156.25 | H18: =Tabela134[[#This Row],[Quant.]]*Tabela134[[#This Row],[Valor Unit c/BDI]] -> 31250
A19: 2 | B19: Cadastro Agrícola | C19: uni. | D19: 200 | E19: 2250 | F19: 0.2 | G19: 2812.5 | H19: =Tabela134[[#This Row],[Quant.]]*Tabela134[[#This Row],[Valor Unit c/BDI]] -> 562500
A20: 2 | B20: Cadastro Socioeconomico | C20: uni. | D20: 200 | E20: 300 | F20: 0.2 | G20: 375 | H20: =Tabela134[[#This Row],[Quant.]]*Tabela134[[#This Row],[Valor Unit c/BDI]] -> 75000
A21: 2 | B21: Avaliação de Imóveis | C21: uni. | D21: 200 | E21: 1200 | F21: 0.2 | G21: 1500 | H21: =Tabela134[[#This Row],[Quant.]]*Tabela134[[#This Row],[Valor Unit c/BDI]] -> 300000
A22: 2 | B22: Levantamento Planimétrico | C22: ha. | D22: 2200 | E22: 50 | F22: 0.2 | G22: 62.5 | H22: =Tabela134[[#This Row],[Quant.]]*Tabela134[[#This Row],[Valor Unit c/BDI]] -> 137500 | I22: Total G2
A23: 2 | B23: Levantamento Planialtimétrico | C23: ha. | D23: 2200 | E23: 10 | F23: 0.2 | G23: 125 | H23: =Tabela134[[#This Row],[Quant.]]*Tabela134[[#This Row],[Valor Unit c/BDI]] -> 275000 | I23: =SUM(H16:H23) -> 2432250
A24: 3 | B24: Cadastro para certificação INCRA | C24: ha. | D24: 1875 | E24: 755 | F24: 0.2 | G24: 943.75 | H24: =Tabela134[[#This Row],[Quant.]]*Tabela134[[#This Row],[Valor Unit c/BDI]] -> 1769531.25
A25: 3 | B25: Cadastro urbano | C25: ha. | D25: 1875 | E25: 1250 | F25: 0.2 | G25: 1562.5 | H25: =Tabela134[[#This Row],[Quant.]]*Tabela134[[#This Row],[Valor Unit c/BDI]] -> 2929687.5
A26: 3 | B26: Cadastro Juridico | C26: uni. | D26: 1875 | E26: 75 | F26: 0.2 | G26: 93.75 | H26: =Tabela134[[#This Row],[Quant.]]*Tabela134[[#This Row],[Valor Unit c/BDI]] -> 175781.25
A27: 3 | B27: Cadastro Agrícola | C27: uni. | D27: 1875 | E27: 1150 | F27: 0.2 | G27: 1437.5 | H27: =Tabela134[[#This Row],[Quant.]]*Tabela134[[#This Row],[Valor Unit c/BDI]] -> 2695312.5
A28: 3 | B28: Cadastro Socioeconomico | C28: uni. | D28: 1875 | E28: 175 | F28: 0.2 | G28: 218.75 | H28: =Tabela134[[#This Row],[Quant.]]*Tabela134[[#This Row],[Valor Unit c/BDI]] -> 410156.25
A29: 3 | B29: Avaliação de Imóveis | C29: uni. | D29: 1775 | E29: 1200 | F29: 0.2 | G29: 1500 | H29: =Tabela134[[#This Row],[Quant.]]*Tabela134[[#This Row],[Valor Unit c/BDI]] -> 2662500
A30: 3 | B30: Levantamento Planimétrico | C30: ha. | D30: 32000 | E30: 10 | F30: 0.2 | G30: 12.5 | H30: =Tabela134[[#This Row],[Quant.]]*Tabela134[[#This Row],[Valor Unit c/BDI]] -> 400000 | I30: Total G3
A31: 3 | B31: Levantamento Planialtimétrico | C31: ha. | D31: 32000 | E31: 20 | F31: 0.2 | G31: 25 | H31: =Tabela134[[#This Row],[Quant.]]*Tabela134[[#This Row],[Valor Unit c/BDI]] -> 800000 | I31: =SUM(H24:H31) -> 11842968.75
A32: 4 | B32: Cadastro para certificação INCRA | C32: ha. | D32: 500 | E32: 1204 | F32: 0.2 | G32: 1505 | H32: =Tabela134[[#This Row],[Quant.]]*Tabela134[[#This Row],[Valor Unit c/BDI]] -> 752500
A33: 4 | B33: Cadastro urbano | C33: ha. | D33: 500 | E33: 3000 | F33: 0.2 | G33: 3750 | H33: =Tabela134[[#This Row],[Quant.]]*Tabela134[[#This Row],[Valor Unit c/BDI]] -> 1875000
A34: 4 | B34: Cadastro Juridico | C34: uni. | D34: 500 | E34: 125 | F34: 0.2 | G34: 156.25 | H34: =Tabela134[[#This Row],[Quant.]]*Tabela134[[#This Row],[Valor Unit c/BDI]] -> 78125
A35: 4 | B35: Cadastro Agrícola | C35: uni. | D35: 500 | E35: 2250 | F35: 0.2 | G35: 2812.5 | H35: =Tabela134[[#This Row],[Quant.]]*Tabela134[[#This Row],[Valor Unit c/BDI]] -> 1406250
A36: 4 | B36: Cadastro Socioeconomico | C36: uni. | D36: 500 | E36: 300 | F36: 0.2 | G36: 375 | H36: =Tabela134[[#This Row],[Quant.]]*Tabela134[[#This Row],[Valor Unit c/BDI]] -> 187500
A37: 4 | B37: Avaliação de Imóveis | C37: uni. | D37: 500 | E37: 1200 | F37: 0.2 | G37: 1500 | H37: =Tabela134[[#This Row],[Quant.]]*Tabela134[[#This Row],[Valor Unit c/BDI]] -> 750000
A38: 4 | B38: Levantamento Planimétrico | C38: ha. | D38: 1200 | E38: 100 | F38: 0.2 | G38: 125 | H38: =Tabela134[[#This Row],[Quant.]]*Tabela134[[#This Row],[Valor Unit c/BDI]] -> 150000 | I38: Total G4
A39: 4 | B39: Levantamento Planialtimétrico | C39: ha. | D39: 1200 | E39: 250 | F39: 0.2 | G39: 312.5 | H39: =Tabela134[[#This Row],[Quant.]]*Tabela134[[#This Row],[Valor Unit c/BDI]] -> 375000 | I39: =SUM(H32:H39) -> 5574375
A40: 5 | B40: Cadastro para certificação INCRA | C40: ha. | D40: 600 | E40: 1204 | F40: 0.2 | G40: 1505 | H40: =Tabela134[[#This Row],[Quant.]]*Tabela134[[#This Row],[Valor Unit c/BDI]] -> 903000
A41: 5 | B41: Cadastro urbano | C41: ha. | D41: 600 | E41: 3000 | F41: 0.2 | G41: 3750 | H41: =Tabela134[[#This Row],[Quant.]]*Tabela134[[#This Row],[Valor Unit c/BDI]] -> 2250000
A42: 5 | B42: Cadastro Juridico | C42: uni. | D42: 600 | E42: 125 | F42: 0.2 | G42: 156.25 | H42: =Tabela134[[#This Row],[Quant.]]*Tabela134[[#This Row],[Valor Unit c/BDI]] -> 93750
A43: 5 | B43: Cadastro Agrícola | C43: uni. | D43: 600 | E43: 2250 | F43: 0.2 | G43: 2812.5 | H43: =Tabela134[[#This Row],[Quant.]]*Tabela134[[#This Row],[Valor Unit c/BDI]] -> 1687500
A44: 5 | B44: Cadastro Socioeconomico | C44: uni. | D44: 600 | E44: 300 | F44: 0.2 | G44: 375 | H44: =Tabela134[[#This Row],[Quant.]]*Tabela134[[#This Row],[Valor Unit c/BDI]] -> 225000
A45: 5 | B45: Avaliação de Imóveis | C45: uni. | D45: 600 | E45: 1200 | F45: 0.2 | G45: 1500 | H45: =Tabela134[[#This Row],[Quant.]]*Tabela134[[#This Row],[Valor Unit c/BDI]] -> 900000
A46: 5 | B46: Levantamento Planimétrico | C46: ha. | D46: 500 | E46: 250 | F46: 0.2 | G46: 312.5 | H46: =Tabela134[[#This Row],[Quant.]]*Tabela134[[#This Row],[Valor Unit c/BDI]] -> 156250 | I46: Total G5
A47: 5 | B47: Levantamento Planialtimétrico | C47: ha. | D47: 500 | E47: 500 | F47: 0.2 | G47: 625 | H47: =Tabela134[[#This Row],[Quant.]]*Tabela134[[#This Row],[Valor Unit c/BDI]] -> 312500 | I47: =SUM(H40:H47) -> 6528000
A48: 6 | B48: Cadastro para certificação INCRA | C48: ha. | D48: 600 | E48: 1204 | F48: 0.15 | G48: 1416.47 | H48: 849882.35
A49: 6 | B49: Cadastro urbano | C49: ha. | D49: 600 | E49: 3000 | F49: 0.15 | G49: 3529.41 | H49: 2117647.06
A50: 6 | B50: Cadastro Juridico | C50: uni. | D50: 600 | E50: 125 | F50: 0.15 | G50: 147.06 | H50: 88235.29
A51: 6 | B51: Cadastro Agrícola | C51: uni. | D51: 600 | E51: 2250 | F51: 0.15 | G51: 2647.06 | H51: 1588235.29
A52: 6 | B52: Cadastro Socioeconomico | C52: uni. | D52: 600 | E52: 300 | F52: 0.15 | G52: 352.94 | H52: 211764.71
A53: 6 | B53: Avaliação de Imóveis | C53: uni. | D53: 600 | E53: 1200 | F53: 0.15 | G53: 1411.76 | H53: 847058.82
A54: 6 | B54: Levantamento Planimétrico | C54: ha. | D54: 300 | E54: 250 | F54: 0.15 | G54: 294.12 | H54: 88235.29 | I54: Total G6
A55: 6 | B55: Levantamento Planialtimétrico | C55: ha. | D55: 300 | E55: 500 | F55: 0.15 | G55: 588.24 | H55: 176470.59 | I55: 5967529.41
A56: 7 | B56: Cadastro para certificação INCRA | C56: ha. | D56: 200 | E56: 1204 | F56: 0.3 | G56: 1720 | H56: =Tabela134[[#This Row],[Quant.]]*Tabela134[[#This Row],[Valor Unit c/BDI]] -> 344000
A57: 7 | B57: Cadastro urbano | C57: ha. | D57: 500 | E57: 3000 | F57: 0.3 | G57: 4285.71 | H57: 2142857.14
A58: 7 | B58: Cadastro Juridico | C58: uni. | D58: 550 | E58: 125 | F58: 0.3 | G58: 178.57 | H58: 98214.29
A59: 7 | B59: Cadastro Agrícola | C59: uni. | D59: 200 | E59: 2250 | F59: 0.3 | G59: 3214.29 | H59: 642857.14
A60: 7 | B60: Cadastro Socioeconomico | C60: uni. | D60: 550 | E60: 300 | F60: 0.3 | G60: 428.57 | H60: 235714.29
A61: 7 | B61: Avaliação de Imóveis | C61: uni. | D61: 550 | E61: 1200 | F61: 0.3 | G61: 1714.29 | H61: 942857.14
A62: 7 | B62: Levantamento Planimétrico | C62: ha. | D62: 300 | E62: 250 | F62: 0.3 | G62: 357.14 | H62: 107142.86 | I62: Total G7
A63: 7 | B63: Levantamento Planialtimétrico | C63: ha. | D63: 300 | E63: 500 | F63: 0.3 | G63: 714.29 | H63: 214285.71 | I63: =SUM(H56:H63) -> 4727928.57
A64: 8 | B64: Cadastro para certificação INCRA | C64: ha. | D64: 730 | E64: 1204 | F64: 0.15 | G64: 1416.47 | H64: 1034023.53
A65: 8 | B65: Cadastro urbano | C65: ha. | D65: 600 | E65: 3000 | F65: 0.15 | G65: 3529.41 | H65: 2117647.06
A66: 8 | B66: Cadastro Juridico | C66: uni. | D66: 760 | E66: 125 | F66: 0.15 | G66: 147.06 | H66: 111764.71
A67: 8 | B67: Cadastro Agrícola | C67: uni. | D67: 730 | E67: 2250 | F67: 0.15 | G67: 2647.06 | H67: 1932352.94
A68: 8 | B68: Cadastro Socioeconomico | C68: uni. | D68: 1330 | E68: 300 | F68: 0.15 | G68: 352.94 | H68: 469411.76
A69: 8 | B69: Avaliação de Imóveis | C69: uni. | D69: 760 | E69: 1200 | F69: 0.15 | G69: 1411.76 | H69: 1072941.18
A70: 8 | B70: Levantamento Planimétrico | C70: ha. | D70: 2520 | E70: 50 | F70: 0.15 | G70: 58.82 | H70: 148235.29 | I70: Total G8
A71: 8 | B71: Levantamento Planialtimétrico | C71: ha. | D71: 2520 | E71: 100 | F71: 0.15 | G71: 117.65 | H71: 296470.59 | I71: =SUM(H64:H71) -> 7182847.06
A72: TOTAL COM BDI: | G72: =SUM(I15,I23,I31,I39,I47,I55,I63,I71) -> 59299781.14

Sheet Aerosat
A2: ORÇAMENTO ONERADO
A3: OBJETO: | B3: Orçamento para contratação de empresa especializada para realização de serviços de levantamento cadastral multifinalitário e laudo de avaliação de bem imóvel
A4: LOCALIDADE: | B4: Área de atuação da Codevasf dividida em 8 grupos | G4: DATA BASE: | H4: 2024-10-01
A7: Grupo | B7: Descrição do Serviço | C7: Uni. | D7: Quant. | E7: Valor Unit | F7: BDI | G7: Valor Unit c/BDI | H7: Total | K7: G1 | L7: =I15 -> 10481250
A8: 1 | B8: Cadastro para certificação INCRA | C8: ha. | D8: 1200 | E8: 50 | F8: 0.25 | G8: =Tabela13[[#This Row],[Valor Unit]]*1.25 -> 62.5 | H8: =Tabela13[[#This Row],[Quant.]]*Tabela13[[#This Row],[Valor Unit c/BDI]] -> 75000 | K8: G2 | L8: =I23 -> 1275000
A9: 1 | B9: Cadastro urbano | C9: ha. | D9: 400 | E9: 200 | F9: 0.25 | G9: =Tabela13[[#This Row],[Valor Unit]]*1.25 -> 250 | H9: =Tabela13[[#This Row],[Quant.]]*Tabela13[[#This Row],[Valor Unit c/BDI]] -> 100000 | K9: G3 | L9: =I31 -> 12550781.25
A10: 1 | B10: Cadastro Juridico | C10: uni. | D10: =4500+1200 -> 5700 | E10: 250 | F10: 0.25 | G10: =Tabela13[[#This Row],[Valor Unit]]*1.25 -> 312.5 | H10: =Tabela13[[#This Row],[Quant.]]*Tabela13[[#This Row],[Valor Unit c/BDI]] -> 1781250 | K10: G4 | L10: =I39 -> 2112500
A11: 1 | B11: Cadastro Agrícola | C11: uni. | D11: 1200 | E11: 250 | F11: 0.25 | G11: =Tabela13[[#This Row],[Valor Unit]]*1.25 -> 312.5 | H11: =Tabela13[[#This Row],[Quant.]]*Tabela13[[#This Row],[Valor Unit c/BDI]] -> 375000 | K11: G5 | L11: =I47 -> 2300000
A12: 1 | B12: Cadastro Socioeconomico | C12: uni. | D12: 1600 | E12: 250 | F12: 0.25 | G12: =Tabela13[[#This Row],[Valor Unit]]*1.25 -> 312.5 | H12: =Tabela13[[#This Row],[Quant.]]*Tabela13[[#This Row],[Valor Unit c/BDI]] -> 500000 | K12: G6 | L12: =I55 -> 2250000
A13: 1 | B13: Avaliação de Imóveis | C13: uni. | D13: 1200 | E13: 1000 | F13: 0.25 | G13: =Tabela13[[#This Row],[Valor Unit]]*1.25 -> 1250 | H13: =Tabela13[[#This Row],[Quant.]]*Tabela13[[#This Row],[Valor Unit c/BDI]] -> 1500000 | K13: G7 | L13: =I63 -> 1553125
A14: 1 | B14: Levantamento Planimétrico | C14: ha. | D14: 2200 | E14: 100 | F14: 0.25 | G14: =Tabela13[[#This Row],[Valor Unit]]*1.25 -> 125 | H14: =Tabela13[[#This Row],[Quant.]]*Tabela13[[#This Row],[Valor Unit c/BDI]] -> 275000 | I14: Total G1 | K14: G8 | L14: =I71 -> 3511875
A15: 1 | B15: Levantamento Planialtimétrico | C15: ha. | D15: 470000 | E15: 10 | F15: 0.25 | G15: =Tabela13[[#This Row],[Valor Unit]]*1.25 -> 12.5 | H15: =Tabela13[[#This Row],[Quant.]]*Tabela13[[#This Row],[Valor Unit c/BDI]] -> 5875000 | I15: =SUM(H8:H15) -> 10481250 | K15: Total | L15: =SUM(L7:L14) -> 36034531.25
A16: 2 | B16: Cadastro para certificação INCRA | C16: ha. | D16: 200 | E16: 100 | F16: 0.25 | G16: =Tabela13[[#This Row],[Valor Unit]]*1.25 -> 125 | H16: =Tabela13[[#This Row],[Quant.]]*Tabela13[[#This Row],[Valor Unit c/BDI]] -> 25000
A17: 2 | B17: Cadastro urbano | C17: ha. | D17: 200 | E17: 350 | F17: 0.25 | G17: =Tabela13[[#This Row],[Valor Unit]]*1.25 -> 437.5 | H17: =Tabela13[[#This Row],[Quant.]]*Tabela13[[#This Row],[Valor Unit c/BDI]] -> 87500
A18: 2 | B18: Cadastro Juridico | C18: uni. | D18: 200 | E18: 300 | F18: 0.25 | G18: =Tabela13[[#This Row],[Valor Unit]]*1.25 -> 375 | H18: =Tabela13[[#This Row],[Quant.]]*Tabela13[[#This Row],[Valor Unit c/BDI]] -> 75000
A19: 2 | B19: Cadastro Agrícola | C19: uni. | D19: 200 | E19: 350 | F19: 0.25 | G19: =Tabela13[[#This Row],[Valor Unit]]*1.25 -> 437.5 | H19: =Tabela13[[#This Row],[Quant.]]*Tabela13[[#This Row],[Valor Unit c/BDI]] -> 87500
A20: 2 | B20: Cadastro Socioeconomico | C20: uni. | D20: 200 | E20: 300 | F20: 0.25 | G20: =Tabela13[[#This Row],[Valor Unit]]*1.25 -> 375 | H20: =Tabela13[[#This Row],[Quant.]]*Tabela13[[#This Row],[Valor Unit c/BDI]] -> 75000
A21: 2 | B21: Avaliação de Imóveis | C21: uni. | D21: 200 | E21: 1500 | F21: 0.25 | G21: =Tabela13[[#This Row],[Valor Unit]]*1.25 -> 1875 | H21: =Tabela13[[#This Row],[Quant.]]*Tabela13[[#This Row],[Valor Unit c/BDI]] -> 375000
A22: 2 | B22: Levantamento Planimétrico | C22: ha. | D22: 2200 | E22: 150 | F22: 0.25 | G22: =Tabela13[[#This Row],[Valor Unit]]*1.25 -> 187.5 | H22: =Tabela13[[#This Row],[Quant.]]*Tabela13[[#This Row],[Valor Unit c/BDI]] -> 412500 | I22: Total G2
A23: 2 | B23: Levantamento Planialtimétrico | C23: ha. | D23: 2200 | E23: 50 | F23: 0.25 | G23: =Tabela13[[#This Row],[Valor Unit]]*1.25 -> 62.5 | H23: =Tabela13[[#This Row],[Quant.]]*Tabela13[[#This Row],[Valor Unit c/BDI]] -> 137500 | I23: =SUM(H16:H23) -> 1275000
A24: 3 | B24: Cadastro para certificação INCRA | C24: ha. | D24: 1875 | E24: 60 | F24: 0.25 | G24: =Tabela13[[#This Row],[Valor Unit]]*1.25 -> 75 | H24: =Tabela13[[#This Row],[Quant.]]*Tabela13[[#This Row],[Valor Unit c/BDI]] -> 140625
A25: 3 | B25: Cadastro urbano | C25: ha. | D25: 1875 | E25: 225 | F25: 0.25 | G25: =Tabela13[[#This Row],[Valor Unit]]*1.25 -> 281.25 | H25: =Tabela13[[#This Row],[Quant.]]*Tabela13[[#This Row],[Valor Unit c/BDI]] -> 527343.75
A26: 3 | B26: Cadastro Juridico | C26: uni. | D26: 1875 | E26: 300 | F26: 0.25 | G26: =Tabela13[[#This Row],[Valor Unit]]*1.25 -> 375 | H26: =Tabela13[[#This Row],[Quant.]]*Tabela13[[#This Row],[Valor Unit c/BDI]] -> 703125
A27: 3 | B27: Cadastro Agrícola | C27: uni. | D27: 1875 | E27: 300 | F27: 0.25 | G27: =Tabela13[[#This Row],[Valor Unit]]*1.25 -> 375 | H27: =Tabela13[[#This Row],[Quant.]]*Tabela13[[#This Row],[Valor Unit c/BDI]] -> 703125
A28: 3 | B28: Cadastro Socioeconomico | C28: uni. | D28: 1875 | E28: 300 | F28: 0.25 | G28: =Tabela13[[#This Row],[Valor Unit]]*1.25 -> 375 | H28: =Tabela13[[#This Row],[Quant.]]*Tabela13[[#This Row],[Valor Unit c/BDI]] -> 703125
A29: 3 | B29: Avaliação de Imóveis | C29: uni. | D29: 1775 | E29: 1250 | F29: 0.25 | G29: =Tabela13[[#This Row],[Valor Unit]]*1.25 -> 1562.5 | H29: =Tabela13[[#This Row],[Quant.]]*Tabela13[[#This Row],[Valor Unit c/BDI]] -> 2773437.5
A30: 3 | B30: Levantamento Planimétrico | C30: ha. | D30: 32000 | E30: 150 | F30: 0.25 | G30: =Tabela13[[#This Row],[Valor Unit]]*1.25 -> 187.5 | H30: =Tabela13[[#This Row],[Quant.]]*Tabela13[[#This Row],[Valor Unit c/BDI]] -> 6000000 | I30: Total G3
A31: 3 | B31: Levantamento Planialtimétrico | C31: ha. | D31: 32000 | E31: 25 | F31: 0.25 | G31: =Tabela13[[#This Row],[Valor Unit]]*1.25 -> 31.25 | H31: =Tabela13[[#This Row],[Quant.]]*Tabela13[[#This Row],[Valor Unit c/BDI]] -> 1000000 | I31: =SUM(H24:H31) -> 12550781.25
A32: 4 | B32: Cadastro para certificação INCRA | C32: ha. | D32: 500 | E32: 100 | F32: 0.25 | G32: =Tabela13[[#This Row],[Valor Unit]]*1.25 -> 125 | H32: =Tabela13[[#This Row],[Quant.]]*Tabela13[[#This Row],[Valor Unit c/BDI]] -> 62500
A33: 4 | B33: Cadastro urbano | C33: ha. | D33: 500 | E33: 350 | F33: 0.25 | G33: =Tabela13[[#This Row],[Valor Unit]]*1.25 -> 437.5 | H33: =Tabela13[[#This Row],[Quant.]]*Tabela13[[#This Row],[Valor Unit c/BDI]] -> 218750
A34: 4 | B34: Cadastro Juridico | C34: uni. | D34: 500 | E34: 300 | F34: 0.25 | G34: =Tabela13[[#This Row],[Valor Unit]]*1.25 -> 375 | H34: =Tabela13[[#This Row],[Quant.]]*Tabela13[[#This Row],[Valor Unit c/BDI]] -> 187500
A35: 4 | B35: Cadastro Agrícola | C35: uni. | D35: 500 | E35: 350 | F35: 0.25 | G35: =Tabela13[[#This Row],[Valor Unit]]*1.25 -> 437.5 | H35: =Tabela13[[#This Row],[Quant.]]*Tabela13[[#This Row],[Valor Unit c/BDI]] -> 218750
A36: 4 | B36: Cadastro Socioeconomico | C36: uni. | D36: 500 | E36: 300 | F36: 0.25 | G36: =Tabela13[[#This Row],[Valor Unit]]*1.25 -> 375 | H36: =Tabela13[[#This Row],[Quant.]]*Tabela13[[#This Row],[Valor Unit c/BDI]] -> 187500
A37: 4 | B37: Avaliação de Imóveis | C37: uni. | D37: 500 | E37: 1500 | F37: 0.25 | G37: =Tabela13[[#This Row],[Valor Unit]]*1.25 -> 1875 | H37: =Tabela13[[#This Row],[Quant.]]*Tabela13[[#This Row],[Valor Unit c/BDI]] -> 937500
A38: 4 | B38: Levantamento Planimétrico | C38: ha. | D38: 1200 | E38: 150 | F38: 0.25 | G38: =Tabela13[[#This Row],[Valor Unit]]*1.25 -> 187.5 | H38: =Tabela13[[#This Row],[Quant.]]*Tabela13[[#This Row],[Valor Unit c/BDI]] -> 225000 | I38: Total G4
A39: 4 | B39: Levantamento Planialtimétrico | C39: ha. | D39: 1200 | E39: 50 | F39: 0.25 | G39: =Tabela13[[#This Row],[Valor Unit]]*1.25 -> 62.5 | H39: =Tabela13[[#This Row],[Quant.]]*Tabela13[[#This Row],[Valor Unit c/BDI]] -> 75000 | I39: =SUM(H32:H39) -> 2112500
A40: 5 | B40: Cadastro para certificação INCRA | C40: ha. | D40: 600 | E40: 100 | F40: 0.25 | G40: =Tabela13[[#This Row],[Valor Unit]]*1.25 -> 125 | H40: =Tabela13[[#This Row],[Quant.]]*Tabela13[[#This Row],[Valor Unit c/BDI]] -> 75000
A41: 5 | B41: Cadastro urbano | C41: ha. | D41: 600 | E41: 350 | F41: 0.25 | G41: =Tabela13[[#This Row],[Valor Unit]]*1.25 -> 437.5 | H41: =Tabela13[[#This Row],[Quant.]]*Tabela13[[#This Row],[Valor Unit c/BDI]] -> 262500
A42: 5 | B42: Cadastro Juridico | C42: uni. | D42: 600 | E42: 300 | F42: 0.25 | G42: =Tabela13[[#This Row],[Valor Unit]]*1.25 -> 375 | H42: =Tabela13[[#This Row],[Quant.]]*Tabela13[[#This Row],[Valor Unit c/BDI]] -> 225000
A43: 5 | B43: Cadastro Agrícola | C43: uni. | D43: 600 | E43: 350 | F43: 0.25 | G43: =Tabela13[[#This Row],[Valor Unit]]*1.25 -> 437.5 | H43: =Tabela13[[#This Row],[Quant.]]*Tabela13[[#This Row],[Valor Unit c/BDI]] -> 262500
A44: 5 | B44: Cadastro Socioeconomico | C44: uni. | D44: 600 | E44: 300 | F44: 0.25 | G44: =Tabela13[[#This Row],[Valor Unit]]*1.25 -> 375 | H44: =Tabela13[[#This Row],[Quant.]]*Tabela13[[#This Row],[Valor Unit c/BDI]] -> 225000
A45: 5 | B45: Avaliação de Imóveis | C45: uni. | D45: 600 | E45: 1500 | F45: 0.25 | G45: =Tabela13[[#This Row],[Valor Unit]]*1.25 -> 1875 | H45: =Tabela13[[#This Row],[Quant.]]*Tabela13[[#This Row],[Valor Unit c/BDI]] -> 1125000
A46: 5 | B46: Levantamento Planimétrico | C46: ha. | D46: 500 | E46: 150 | F46: 0.25 | G46: =Tabela13[[#This Row],[Valor Unit]]*1.25 -> 187.5 | H46: =Tabela13[[#This Row],[Quant.]]*Tabela13[[#This Row],[Valor Unit c/BDI]] -> 93750 | I46: Total G5
A47: 5 | B47: Levantamento Planialtimétrico | C47: ha. | D47: 500 | E47: 50 | F47: 0.25 | G47: =Tabela13[[#This Row],[Valor Unit]]*1.25 -> 62.5 | H47: =Tabela13[[#This Row],[Quant.]]*Tabela13[[#This Row],[Valor Unit c/BDI]] -> 31250 | I47: =SUM(H40:H47) -> 2300000
A48: 6 | B48: Cadastro para certificação INCRA | C48: ha. | D48: 600 | E48: 100 | F48: 0.25 | G48: =Tabela13[[#This Row],[Valor Unit]]*1.25 -> 125 | H48: =Tabela13[[#This Row],[Quant.]]*Tabela13[[#This Row],[Valor Unit c/BDI]] -> 75000
A49: 6 | B49: Cadastro urbano | C49: ha. | D49: 600 | E49: 350 | F49: 0.25 | G49: =Tabela13[[#This Row],[Valor Unit]]*1.25 -> 437.5 | H49: =Tabela13[[#This Row],[Quant.]]*Tabela13[[#This Row],[Valor Unit c/BDI]] -> 262500
A50: 6 | B50: Cadastro Juridico | C50: uni. | D50: 600 | E50: 300 | F50: 0.25 | G50: =Tabela13[[#This Row],[Valor Unit]]*1.25 -> 375 | H50: =Tabela13[[#This Row],[Quant.]]*Tabela13[[#This Row],[Valor Unit c/BDI]] -> 225000
A51: 6 | B51: Cadastro Agrícola | C51: uni. | D51: 600 | E51: 350 | F51: 0.25 | G51: =Tabela13[[#This Row],[Valor Unit]]*1.25 -> 437.5 | H51: =Tabela13[[#This Row],[Quant.]]*Tabela13[[#This Row],[Valor Unit c/BDI]] -> 262500
A52: 6 | B52: Cadastro Socioeconomico | C52: uni. | D52: 600 | E52: 300 | F52: 0.25 | G52: =Tabela13[[#This Row],[Valor Unit]]*1.25 -> 375 | H52: =Tabela13[[#This Row],[Quant.]]*Tabela13[[#This Row],[Valor Unit c/BDI]] -> 225000
A53: 6 | B53: Avaliação de Imóveis | C53: uni. | D53: 600 | E53: 1500 | F53: 0.25 | G53: =Tabela13[[#This Row],[Valor Unit]]*1.25 -> 1875 | H53: =Tabela13[[#This Row],[Quant.]]*Tabela13[[#This Row],[Valor Unit c/BDI]] -> 1125000
A54: 6 | B54: Levantamento Planimétrico | C54: ha. | D54: 300 | E54: 150 | F54: 0.25 | G54: =Tabela13[[#This Row],[Valor Unit]]*1.25 -> 187.5 | H54: =Tabela13[[#This Row],[Quant.]]*Tabela13[[#This Row],[Valor Unit c/BDI]] -> 56250 | I54: Total G6
A55: 6 | B55: Levantamento Planialtimétrico | C55: ha. | D55: 300 | E55: 50 | F55: 0.25 | G55: =Tabela13[[#This Row],[Valor Unit]]*1.25 -> 62.5 | H55: =Tabela13[[#This Row],[Quant.]]*Tabela13[[#This Row],[Valor Unit c/BDI]] -> 18750 | I55: =SUM(H48:H55) -> 2250000
A56: 7 | B56: Cadastro para certificação INCRA | C56: ha. | D56: 200 | E56: 60 | F56: 0.25 | G56: =Tabela13[[#This Row],[Valor Unit]]*1.25 -> 75 | H56: =Tabela13[[#This Row],[Quant.]]*Tabela13[[#This Row],[Valor Unit c/BDI]] -> 15000
A57: 7 | B57: Cadastro urbano | C57: ha. | D57: 500 | E57: 225 | F57: 0.25 | G57: =Tabela13[[#This Row],[Valor Unit]]*1.25 -> 281.25 | H57: =Tabela13[[#This Row],[Quant.]]*Tabela13[[#This Row],[Valor Unit c/BDI]] -> 140625
A58: 7 | B58: Cadastro Juridico | C58: uni. | D58: 550 | E58: 300 | F58: 0.25 | G58: =Tabela13[[#This Row],[Valor Unit]]*1.25 -> 375 | H58: =Tabela13[[#This Row],[Quant.]]*Tabela13[[#This Row],[Valor Unit c/BDI]] -> 206250
A59: 7 | B59: Cadastro Agrícola | C59: uni. | D59: 200 | E59: 300 | F59: 0.25 | G59: =Tabela13[[#This Row],[Valor Unit]]*1.25 -> 375 | H59: =Tabela13[[#This Row],[Quant.]]*Tabela13[[#This Row],[Valor Unit c/BDI]] -> 75000
A60: 7 | B60: Cadastro Socioeconomico | C60: uni. | D60: 550 | E60: 300 | F60: 0.25 | G60: =Tabela13[[#This Row],[Valor Unit]]*1.25 -> 375 | H60: =Tabela13[[#This Row],[Quant.]]*Tabela13[[#This Row],[Valor Unit c/BDI]] -> 206250
A61: 7 | B61: Avaliação de Imóveis | C61: uni. | D61: 550 | E61: 1250 | F61: 0.25 | G61: =Tabela13[[#This Row],[Valor Unit]]*1.25 -> 1562.5 | H61: =Tabela13[[#This Row],[Quant.]]*Tabela13[[#This Row],[Valor Unit c/BDI]] -> 859375
A62: 7 | B62: Levantamento Planimétrico | C62: ha. | D62: 300 | E62: 120 | F62: 0.25 | G62: =Tabela13[[#This Row],[Valor Unit]]*1.25 -> 150 | H62: =Tabela13[[#This Row],[Quant.]]*Tabela13[[#This Row],[Valor Unit c/BDI]] -> 45000 | I62: Total G7
A63: 7 | B63: Levantamento Planialtimétrico | C63: ha. | D63: 300 | E63: 15 | F63: 0.25 | G63: =Tabela13[[#This Row],[Valor Unit]]*1.25 -> 18.75 | H63: =Tabela13[[#This Row],[Quant.]]*Tabela13[[#This Row],[Valor Unit c/BDI]] -> 5625 | I63: =SUM(H56:H63) -> 1553125
A64: 8 | B64: Cadastro para certificação INCRA | C64: ha. | D64: 730 | E64: 100 | F64: 0.25 | G64: =Tabela13[[#This Row],[Valor Unit]]*1.25 -> 125 | H64: =Tabela13[[#This Row],[Quant.]]*Tabela13[[#This Row],[Valor Unit c/BDI]] -> 91250
A65: 8 | B65: Cadastro urbano | C65: ha. | D65: 600 | E65: 350 | F65: 0.25 | G65: =Tabela13[[#This Row],[Valor Unit]]*1.25 -> 437.5 | H65: =Tabela13[[#This Row],[Quant.]]*Tabela13[[#This Row],[Valor Unit c/BDI]] -> 262500
A66: 8 | B66: Cadastro Juridico | C66: uni. | D66: 760 | E66: 300 | F66: 0.25 | G66: =Tabela13[[#This Row],[Valor Unit]]*1.25 -> 375 | H66: =Tabela13[[#This Row],[Quant.]]*Tabela13[[#This Row],[Valor Unit c/BDI]] -> 285000
A67: 8 | B67: Cadastro Agrícola | C67: uni. | D67: 730 | E67: 350 | F67: 0.25 | G67: =Tabela13[[#This Row],[Valor Unit]]*1.25 -> 437.5 | H67: =Tabela13[[#This Row],[Quant.]]*Tabela13[[#This Row],[Valor Unit c/BDI]] -> 319375
A68: 8 | B68: Cadastro Socioeconomico | C68: uni. | D68: 1330 | E68: 300 | F68: 0.25 | G68: =Tabela13[[#This Row],[Valor Unit]]*1.25 -> 375 | H68: =Tabela13[[#This Row],[Quant.]]*Tabela13[[#This Row],[Valor Unit c/BDI]] -> 498750
A69: 8 | B69: Avaliação de Imóveis | C69: uni. | D69: 760 | E69: 1500 | F69: 0.25 | G69: =Tabela13[[#This Row],[Valor Unit]]*1.25 -> 1875 | H69: =Tabela13[[#This Row],[Quant.]]*Tabela13[[#This Row],[Valor Unit c/BDI]] -> 1425000
A70: 8 | B70: Levantamento Planimétrico | C70: ha. | D70: 2520 | E70: 150 | F70: 0.25 | G70: =Tabela13[[#This Row],[Valor Unit]]*1.25 -> 187.5 | H70: =Tabela13[[#This Row],[Quant.]]*Tabela13[[#This Row],[Valor Unit c/BDI]] -> 472500 | I70: Total G8
A71: 8 | B71: Levantamento Planialtimétrico | C71: ha. | D71: 2520 | E71: 50 | F71: 0.25 | G71: =Tabela13[[#This Row],[Valor Unit]]*1.25 -> 62.5 | H71: =Tabela13[[#This Row],[Quant.]]*Tabela13[[#This Row],[Valor Unit c/BDI]] -> 157500 | I71: =SUM(H64:H71) -> 3511875
A72: TOTAL COM BDI: | G72: =SUM(Tabela13[Total]) -> 36034531.25
